Workbook

Sheet RAW data RNA-seq (reads)
B2: gene | C2: T0 Control1 | D2: T0 AO1 | E2: T60 Control1 | F2: T60 AO1 | G2: T240 Control1 | H2: T240 AO1 | I2: T0 Control2 | J2: T0 AO2 | K2: T60 Control2 | L2: T60 AO2 | M2: T240 Control2 | N2: T240 AO2 | O2: T0 Control3 | P2: T0 AO3 | Q2: T60 Control3 | R2: T60 AO3 | S2: T240 Control3 | T2: T240 AO3 | U2: T0 Control4 | V2: T0 AO4 | W2: T60 Control4 | X2: T60 AO4 | Y2: T240 Control4 | Z2: T240 AO4 | AA2: T0 Control5 | AB2: T0 AO5 | AC2: T60 Control5 | AD2: T60 AO5 | AE2: T240 Control5 | AF2: T240 AO5 | AH2: Mean t0 Control | AI2: Mean t0 AO | AJ2: Mean T60 Control | AK2: Mean T60 AO | AL2: Mean T240 Control | AM2: Mean T240 AO
A3: 1 | B3: Hsp68 | C3: 217.1096366 | D3: 155.7185559 | E3: 19424.5736 | F3: 21252.45319 | G3: 55639.21382 | H3: 88051.98686 | I3: 183.5368339 | J3: 189.8395952 | K3: 28025.71858 | L3: 33382.8399 | M3: 85021.81518 | N3: 78317.83797 | O3: 145.4066616 | P3: 176.8835249 | Q3: 31651.44328 | R3: 36865.34409 | S3: 99695.00685 | T3: 115398.292 | U3: 145.1285489 | V3: 165.3089377 | W3: 37695.38855 | X3: 34641.93879 | Y3: 142323.4404 | Z3: 135737.012 | AA3: 141.8357098 | AB3: 149.0946505 | AC3: 37296.24766 | AD3: 43789.1687 | AE3: 147668.2959 | AF3: 171391.5925 | AH3: =AVERAGE(C3, I3, O3, U3, AA3) -> 166.6034782 | AI3: =AVERAGE(D3, J3, P3, V3, AB3) -> 167.3690528 | AJ3: =AVERAGE(E3, K3, Q3, W3, AC3) -> 30818.67433 | AK3: =AVERAGE(F3, L3, Q3, W3, AC3) -> 32255.67452 | AL3: =AVERAGE(G3, M3, S3, Y3, AE3) -> 106069.5544 | AM3: =AVERAGE(H3, N3, T3, Z3, AF3) -> 117779.3443
A4: 2 | B4: Hsp70Ab | C4: 27.41283291 | D4: 3.114371117 | E4: 1493.717211 | F4: 1732.66298 | G4: 3735.607089 | H4: 5936.687419 | I4: 14.03516965 | J4: 9.819289407 | K4: 2766.533044 | L4: 3326.318814 | M4: 5089.586777 | N4: 5287.584374 | O4: 11.88859497 | P4: 12.6345375 | Q4: 2860.750594 | R4: 3529.986303 | S4: 7219.769684 | T4: 7735.19831 | U4: 6.011241671 | V4: 7.471590406 | W4: 3570.597904 | X4: 3239.150618 | Y4: 8719.411692 | Z4: 8871.138538 | AA4: 4.857387321 | AB4: 1.840674697 | AC4: 3387.961317 | AD4: 3330.577454 | AE4: 8591.944135 | AF4: 12410.95508 | AH4: =AVERAGE(C4, I4, O4, U4, AA4) -> 12.84104531 | AI4: 6.976092625 | AJ4: 2815.912014 | AK4: =AVERAGE(F4, L4, Q4, W4, AC4) -> 2975.658322 | AL4: =AVERAGE(G4, M4, S4, Y4, AE4) -> 6671.263876 | AM4: 8048.312743
A5: 3 | B5: Hsp70Bc | C5: 4.386053265 | D5: 3.114371117 | E5: 363.7420153 | F5: 374.3612175 | G5: 460.9195695 | H5: 818.150089 | I5: 1.079628435 | J5: 3.273096469 | K5: 562.3368354 | L5: 833.7025572 | M5: 1029.54862 | N5: 955.1815874 | O5: 0.9145073055 | P5: 1.804933928 | Q5: 719.4588422 | R5: 776.617397 | S5: 1069.720228 | T5: 1303.590458 | U5: 2.57624643 | V5: 0 | W5: 767.4200687 | X5: 667.6658313 | Y5: 1330.520849 | Z5: 1266.856425 | AA5: 0.9714774643 | AB5: 0 | AC5: 709.2836611 | AD5: 863.6427777 | AE5: 1402.036998 | AF5: 1613.073043 | AH5: 1.98558258 | AI5: 1.638480303 | AJ5: 624.4482845 | AK5: 680.8452693 | AL5: 1058.549253 | AM5: 1191.37032
A6: 4 | B6: CG43759 | C6: 554.8357381 | D6: 386.1820186 | E6: 1078.72632 | F6: 1203.69831 | G6: 1119.920276 | H6: 1062.915213 | I6: 452.3643142 | J6: 392.7715763 | K6: 1073.77603 | L6: 1136.305708 | M6: 1149.496032 | N6: 1208.277283 | O6: 436.2199847 | P6: 358.2793847 | Q6: 1269.019092 | R6: 1054.199436 | S6: 1135.94635 | T6: 1089.835319 | U6: 427.6569074 | V6: 449.2293732 | W6: 1048.183508 | X6: 1068.469822 | Y6: 1145.093738 | Z6: 1207.128702 | AA6: 388.5909857 | AB6: 339.6044816 | AC6: 1202.763995 | AD6: 1177.400641 | AE6: 1359.148757 | AF6: 1052.318458 | AH6: 451.933586 | AI6: 385.2133669 | AJ6: 1134.493789 | AK6: 1171.994123 | AL6: 1181.921031 | AM6: 1124.094995
A7: 5 | B7: Hsp70Bb | C7: 1.096513316 | D7: 0 | E7: 536.2382288 | F7: 558.7810504 | G7: 995.48469 | H7: 1682.760225 | I7: 0 | J7: 1.091032156 | K7: 1187.885257 | L7: 1878.146594 | M7: 2279.90952 | N7: 2657.113013 | O7: 0 | P7: 1.804933928 | Q7: 1411.392214 | R7: 1667.533281 | S7: 2702.923725 | T7: 2982.042147 | U7: 1.71749762 | V7: 3.735795203 | W7: 1433.230512 | X7: 1232.063287 | Y7: 2863.818714 | Z7: 3347.896011 | AA7: 0.9714774643 | AB7: 1.840674697 | AC7: 1635.125206 | AD7: 1525.661087 | AE7: 2958.26743 | AF7: 4202.04495 | AH7: =AVERAGE(C7, I7, O7, U7, AA7) -> 0.7570976801 | AI7: 1.694487197 | AJ7: 1240.774283 | AK7: 1383.335115 | AL7: 2360.080816 | AM7: 2974.371269
A8: 6 | B8: Tom70 | C8: 1240.156561 | D8: 1154.393561 | E8: 2726.190156 | F8: 2696.725939 | G8: 3429.597127 | H8: 2567.767454 | I8: 1089.345091 | J8: 1140.128603 | K8: 2637.647084 | L8: 2310.436809 | M8: 2446.200251 | N8: 2420.472456 | O8: 1059.913967 | P8: 1040.544409 | Q8: 2943.327005 | R8: 2672.747651 | S8: 3085.688256 | T8: 2813.56519 | U8: 1039.08606 | V8: 1051.62635 | W8: 2067.845017 | X8: 2349.611149 | Y8: 2500.555076 | Z8: 2690.891066 | AA8: 1073.482598 | AB8: 921.257686 | AC8: 2502.865855 | AD8: 2349.410253 | AE8: 2769.354943 | AF8: 2433.034628 | AH8: 1100.396855 | AI8: 1061.590122 | AJ8: 2575.575023 | AK8: 2504.240125 | AL8: 2846.279131 | AM8: 2585.146159
A9: 7 | B9: mthl1 | C9: 497.8170456 | D9: 451.583812 | E9: 1131.225168 | F9: 1225.784518 | G9: 1542.747319 | H9: 1248.755399 | I9: 472.8772545 | J9: 346.9482257 | K9: 1243.708475 | L9: 1122.410665 | M9: 1240.365283 | N9: 1277.232147 | O9: 343.8547469 | P9: 281.5696928 | Q9: 1314.578491 | R9: 1213.4009 | S9: 1370.543965 | T9: 1283.58382 | U9: 437.9618931 | V9: 403.4658819 | W9: 875.2688821 | X9: 1003.032436 | Y9: 1239.433847 | Z9: 1146.353125 | AA9: 383.7335984 | AB9: 383.7806744 | AC9: 1134.099301 | AD9: 1142.898058 | AE9: 1420.417672 | AF9: 1084.332071 | AH9: 427.2489077 | AI9: 373.4696574 | AJ9: 1139.776063 | AK9: 1134.428371 | AL9: 1362.701617 | AM9: 1208.051312
A10: 8 | B10: Edem2 | C10: 689.706876 | D10: 652.9798109 | E10: 2053.704918 | F10: 2109.232819 | G10: 2376.973648 | H10: 2154.159722 | I10: 919.8434266 | J10: 915.3759792 | K10: 2470.998357 | L10: 2308.120969 | M10: 2505.265264 | N10: 2467.487136 | O10: 730.6913371 | P10: 776.121589 | Q10: 2657.631607 | R10: 2479.868955 | S10: 2719.760874 | T10: 2648.247175 | U10: 909.4149899 | V10: 1012.4005 | W10: 1885.125953 | X10: 1926.313057 | Y10: 2085.241722 | Z10: 2314.711201 | AA10: 841.2994841 | AB10: 905.611951 | AC10: 2062.204517 | AD10: 2021.635716 | AE10: 2278.182477 | AF10: 2030.282716 | AH10: 818.1912227 | AI10: 852.4979661 | AJ10: 2225.93307 | AK10: 2204.463173 | AL10: 2393.084797 | AM10: 2322.97759
A11: 9 | B11: Hsp70Bbb | C11: 0 | D11: 0 | E11: 374.9917684 | F11: 374.3612175 | G11: 563.7693908 | H11: 959.7965725 | I11: 0 | J11: 3.273096469 | K11: 653.4600307 | L11: 782.7540676 | M11: 1277.621676 | N11: 1205.926549 | O11: 0 | P11: 0.902466964 | Q11: 743.1876958 | R11: 787.8431412 | S11: 1360.441676 | T11: 1466.802511 | U11: 0 | V11: 1.867897602 | W11: 762.9635062 | X11: 645.1717297 | Y11: 1663.422153 | Z11: 1520.437281 | AA11: 0 | AB11: 0 | AC11: 655.7101079 | AD11: 771.9952919 | AE11: 1574.611107 | AF11: 1912.555234 | AH11: 0 | AI11: 1.208692207 | AJ11: 638.0626218 | AK11: 663.795319 | AL11: 1287.973201 | AM11: 1413.103629
A12: 10 | B12: sqz | C12: 348.6912346 | D12: 285.4840191 | E12: 832.4817258 | F12: 821.6069199 | G12: 994.2149392 | H12: 823.8159483 | I12: 266.6682234 | J12: 246.5732673 | K12: 655.9228197 | L12: 585.9076305 | M12: 661.528151 | N12: 653.5040557 | O12: 234.1138702 | P12: 205.7624678 | Q12: 704.2723758 | R12: 698.0371873 | S12: 771.1414448 | T12: 723.3979361 | U12: 240.4496668 | V12: 304.4673091 | W12: 667.5930679 | X12: 743.3278091 | Y12: 836.048553 | Z12: 755.5032938 | AA12: 227.3257266 | AB12: 223.6419757 | AC12: 784.7393697 | AD12: 845.3132806 | AE12: 880.2300742 | AF12: 693.9725255 | AH12: 263.4497443 | AI12: 253.1858078 | AJ12: 729.0018718 | AK12: 712.8238728 | AL12: 828.6326324 | AM12: 730.0387519
A13: 11 | B13: Hsp23 | C13: 353.0772879 | D13: 442.2406987 | E13: 3259.92844 | F13: 3035.749224 | G13: 9317.431959 | H13: 12487.55399 | I13: 755.7399045 | J13: 685.1681942 | K13: 6934.393064 | L13: 8215.057976 | M13: 17965.75972 | N13: 19147.51212 | O13: 941.9425247 | P13: 742.7303113 | Q13: 9433.64305 | R13: 9344.921819 | S13: 20819.69653 | T13: 25491.61665 | U13: 271.364624 | V13: 468.842298 | W13: 5725.791546 | X13: 5198.182368 | Y13: 22639.45744 | Z13: 20825.06583 | AA13: 347.7889322 | AB13: 242.0487227 | AC13: 5894.599958 | AD13: 6500.502256 | AE13: 23038.13307 | AF13: 29651.83501 | AH13: 533.9826546 | AI13: 516.206045 | AJ13: 6249.671212 | AK13: 6460.968351 | AL13: 18756.09574 | AM13: 21520.71672
A14: 12 | B14: lncRNA:alphagamma-element:CR32865 | C14: 1.096513316 | D14: 1.038123706 | E14: 351.2422897 | F14: 365.5267345 | G14: 695.8234823 | H14: 1156.968478 | I14: 0 | J14: 4.364128626 | K14: 169.1115155 | L14: 247.0229799 | M14: 368.9291611 | N14: 463.0946006 | O14: 1.829014611 | P14: 0 | Q14: 173.6952086 | R14: 247.9868955 | S14: 423.1736895 | T14: 488.5831767 | U14: 0 | V14: 0 | W14: 675.6148805 | X14: 698.3396061 | Y14: 1460.645137 | Z14: 1238.564346 | AA14: 0 | AB14: 0 | AC14: 679.8559347 | AD14: 806.4978748 | AE14: 2259.801803 | AF14: 2043.70778 | AH14: 0.5851055855 | AI14: 1.080450466 | AJ14: 409.9039658 | AK14: 428.3431476 | AL14: 1041.674655 | AM14: 1078.183676
A15: 13 | B15: Hsp67Bc | C15: 30.70237286 | D15: 26.99121635 | E15: 89.99802441 | F15: 78.40603671 | G15: 402.511029 | H15: 494.0629346 | I15: 20.51294026 | J15: 31.63993254 | K15: 120.676664 | L15: 135.862639 | M15: 383.4682414 | N15: 414.5127643 | O15: 13.71760958 | P15: 17.14687232 | Q15: 103.4578018 | R15: 132.6678865 | S15: 400.7241569 | T15: 470.6824999 | U15: 15.45747858 | V15: 12.14133441 | W15: 120.3271885 | X15: 98.15607933 | Y15: 620.2591081 | Z15: 577.3679818 | AA15: 13.6006845 | AB15: 13.80506023 | AC15: 133.5566043 | AD15: 136.9321258 | AE15: 609.625701 | AF15: 785.8825772 | AH15: 18.79821716 | AI15: 20.34488317 | AJ15: 113.6032566 | AK15: 114.322054 | AL15: 483.3176473 | AM15: 548.5017516
A16: 14 | B16: LBR | C16: 1572.400096 | D16: 1210.452241 | E16: 2823.688016 | F16: 3083.23457 | G16: 3707.67257 | H16: 2630.091907 | I16: 1119.574687 | J16: 986.2930694 | K16: 2425.026295 | L16: 2420.825203 | M16: 2617.943136 | N16: 2464.352824 | O16: 1155.022727 | P16: 808.6103997 | Q16: 2630.106137 | R16: 2272.702948 | S16: 2660.269613 | T16: 2447.127807 | U16: 894.8162601 | V16: 950.7598792 | W16: 2242.542268 | X16: 2301.555568 | Y16: 2568.870327 | Z16: 2699.273904 | AA16: 1107.484309 | AB16: 954.3898305 | AC16: 2787.333877 | AD16: 2718.156608 | AE16: 3187.004712 | AF16: 2434.067325 | AH16: 1169.859616 | AI16: 982.101084 | AJ16: 2581.739318 | AK16: 2632.808411 | AL16: 2948.352072 | AM16: 2534.982753
A17: 15 | B17: Dap160 | C17: 1462.748764 | D17: 1258.205931 | E17: 2292.449677 | F17: 2391.936275 | G17: 2214.445535 | H17: 2405.723877 | I17: 1286.917094 | J17: 1328.877166 | K17: 1883.212701 | L17: 1883.550222 | M17: 1950.96283 | N17: 1918.198955 | O17: 1139.476103 | P17: 981.8840568 | Q17: 2114.715436 | R17: 1925.725398 | S17: 2039.540037 | T17: 1966.968478 | U17: 1179.920865 | V17: 1133.813844 | W17: 1962.670141 | X17: 2134.894725 | Y17: 2142.713282 | Z17: 2129.240906 | AA17: 1165.772957 | AB17: 1119.130216 | AC17: 2121.059969 | AD17: 2194.14863 | AE17: 2267.970992 | AF17: 2002.399891 | AH17: 1246.967157 | AI17: 1164.382243 | AJ17: 2074.821585 | AK17: 2094.786409 | AL17: 2123.126535 | AM17: 2084.506421
A18: 16 | B18: Hsp70Ba | C18: 0 | D18: 0 | E18: 117.4974208 | F18: 242.9482828 | G18: 331.4049797 | H18: 260.6295297 | I18: 0 | J18: 0 | K18: 358.7462731 | L18: 216.1451074 | M18: 170.8341928 | N18: 506.1913909 | O18: 0.9145073055 | P18: 0 | Q18: 514.4415468 | R18: 456.173425 | S18: 358.070045 | T18: 579.1395413 | U18: 0 | V18: 0.9339488008 | W18: 244.219627 | X18: 191.1998629 | Y18: 339.4075189 | Z18: 680.0577499 | AA18: 0.9714774643 | AB18: 0.9203373486 | AC18: 205.2395275 | AD18: 9.703851435 | AE18: 702.5502216 | AF18: 453.3540754 | AH18: 0.377196954 | AI18: 0.3708572299 | AJ18: 288.028879 | AK18: 284.5988183 | AL18: 380.4533916 | AM18: 495.8744574
A19: 17 | B19: tra2 | C19: 506.5891521 | D19: 562.6630485 | E19: 897.4802989 | F19: 885.6569217 | G19: 1005.642697 | H19: 865.7433075 | I19: 561.4067862 | J19: 567.3367213 | K19: 848.0203664 | L19: 823.6672487 | M19: 940.4967532 | N19: 948.9129634 | O19: 443.5360432 | P19: 486.4296936 | Q19: 934.9168331 | R19: 783.7610524 | S19: 948.4927523 | T19: 893.9808556 | U19: 538.4355039 | V19: 593.0574885 | W19: 782.5723813 | X19: 765.8219106 | Y19: 977.0165321 | Z19: 930.4950415 | AA19: 498.3679392 | AB19: 472.1330598 | AC19: 939.4235724 | AD19: 766.6042634 | AE19: 871.039737 | AF19: 809.6346131 | AH19: 509.6670849 | AI19: 536.3240024 | AJ19: 880.4826904 | AK19: 873.2473914 | AL19: 948.5376943 | AM19: 889.7533562
A20: 18 | B20: vas | C20: 3004.446487 | D20: 2487.344399 | E20: 5944.869501 | F20: 5689.407058 | G20: 6692.856889 | H20: 5540.077265 | I20: 2354.669617 | J20: 2401.361776 | K20: 4300.029699 | L20: 4541.363096 | M20: 4804.257327 | N20: 5532.844289 | O20: 2012.830579 | P20: 1767.030315 | Q20: 4468.617716 | R20: 4294.357433 | S20: 5253.190628 | T20: 4575.202376 | U20: 2167.481997 | V20: 2575.830793 | W20: 4491.323724 | X20: 4614.358188 | Y20: 5084.60657 | Z20: 5377.590713 | AA20: 2284.914996 | AB20: 1815.825589 | AC20: 5127.215401 | AD20: 4851.925718 | AE20: 5881.815809 | AF20: 4599.633376 | AH20: 2364.868735 | AI20: 2209.478574 | AJ20: 4866.411208 | AK20: 4863.585399 | AL20: 5543.345445 | AM20: 5125.069604
A21: 19 | B21: swi2 | C21: 95.39665852 | D21: 105.888618 | E21: 9.99978049 | F21: 19.87758677 | G21: 13.96725968 | H21: 14.73123429 | I21: 45.34439427 | J21: 79.64534742 | K21: 12.3139453 | L21: 15.43893624 | M21: 11.8130027 | N21: 6.268624035 | O21: 53.95593102 | P21: 67.6850223 | Q21: 10.4406956 | R21: 9.184699833 | S21: 12.34724293 | T21: 11.58279083 | U21: 142.5523025 | V21: 109.2720097 | W21: 16.04362513 | X21: 26.58393815 | Y21: 19.51864326 | Z21: 16.76567642 | AA21: 87.43297178 | AB21: 86.51171077 | AC21: 16.6002559 | AD21: 19.40770287 | AE21: 13.27493151 | AF21: 18.58854979 | AH21: 84.93645161 | AI21: 89.80054163 | AJ21: 13.07966048 | AK21: 15.68021993 | AL21: 14.18421602 | AM21: 13.58737507
A22: 20 | B22: Tgi | C22: 876.1141397 | D22: 770.2877897 | E22: 1117.47547 | F22: 1158.421585 | G22: 1253.244119 | H22: 1049.31715 | I22: 777.3324732 | J22: 650.2551652 | K22: 1224.006163 | L22: 1150.20075 | M22: 1196.748042 | N22: 1270.179945 | O22: 813.9115019 | P22: 673.2403551 | Q22: 1373.426048 | R22: 1179.723667 | S22: 1293.093078 | T22: 1239.358618 | U22: 759.1339481 | V22: 763.0361703 | W22: 1000.052633 | X22: 1008.144731 | Y22: 1205.818406 | Z22: 1188.267317 | AA22: 756.7809447 | AB22: 681.049638 | AC22: 1137.117529 | AD22: 1181.713464 | AE22: 1322.387408 | AF22: 1106.018712 | AH22: 796.6546015 | AI22: 707.5738237 | AJ22: 1170.415569 | AK22: 1163.843709 | AL22: 1254.258211 | AM22: 1170.628349
A23: 21 | B23: imd | C23: 180.9246972 | D23: 175.4429063 | E23: 409.9910001 | F23: 472.644841 | G23: 539.6441241 | H23: 486.1307315 | I23: 148.988724 | J23: 157.1086305 | K23: 372.7020778 | L23: 321.9018207 | M23: 352.5726959 | N23: 322.8341378 | O23: 124.3729935 | P23: 163.3465205 | Q23: 448.9499107 | R23: 427.5988033 | S23: 441.1333156 | T23: 447.5169183 | U23: 211.2522073 | V23: 199.8650434 | W23: 355.6336904 | X23: 366.0403792 | Y23: 434.8319971 | Z23: 413.9026367 | AA23: 217.610952 | AB23: 212.5979275 | AC23: 433.1157675 | AD23: 402.1707317 | AE23: 481.9821288 | AF23: 398.6211233 | AH23: 176.6299148 | AI23: 181.6722056 | AJ23: 404.0784893 | AK23: 406.4492061 | AL23: 450.0328523 | AM23: 413.8011095
A24: 22 | B24: Pex23 | C24: 1479.196464 | D24: 1224.985973 | E24: 2376.197839 | F24: 2588.503522 | G24: 2596.64055 | H24: 2456.716611 | I24: 1608.646368 | J24: 1421.6149 | K24: 2906.912021 | L24: 2628.478896 | M24: 2653.382144 | N24: 2657.113013 | O24: 1625.079482 | P24: 1175.011987 | Q24: 3108.479826 | R24: 2734.999506 | S24: 3028.441948 | T24: 2864.108277 | U24: 1071.718515 | V24: 1105.79538 | W24: 2048.236142 | X24: 2136.939644 | Y24: 2381.274478 | Z24: 2593.440572 | AA24: 1160.91557 | AB24: 1027.096481 | AC24: 2443.255845 | AD24: 2311.673053 | AE24: 2650.901708 | AF24: 2336.993787 | AH24: 1389.11128 | AI24: 1190.900944 | AJ24: 2576.616334 | AK24: 2563.390846 | AL24: 2662.128166 | AM24: 2581.674452
A25: 23 | B25: pon | C25: 828.9640671 | D25: 788.9740164 | E25: 1994.956208 | F25: 2016.470747 | G25: 1917.323829 | H25: 1739.418818 | I25: 1017.009986 | J25: 980.8379086 | K25: 2361.814709 | L25: 2184.609479 | M25: 2244.470512 | N25: 2415.770988 | O25: 1098.323274 | P25: 808.6103997 | Q25: 2935.733771 | R25: 2517.628277 | S25: 2418.937138 | T25: 2330.246918 | U25: 641.4853611 | V25: 678.0468294 | W25: 1494.731075 | X25: 1641.046951 | Y25: 1791.377704 | Z25: 2132.38447 | AA25: 678.0912701 | AB25: 556.8040959 | AC25: 2002.594507 | AD25: 1836.184333 | AE25: 1950.393784 | AF25: 1774.173808 | AH25: 852.7747916 | AI25: 762.65465 | AJ25: 2157.966054 | AK25: 2126.827916 | AL25: 2064.500593 | AM25: 2078.399
A26: 24 | B26: INPP5E | C26: 214.91661 | D26: 237.7303286 | E26: 669.9852928 | F26: 643.8129493 | G26: 782.1665422 | H26: 645.907965 | I26: 157.6257515 | J26: 160.381727 | K26: 421.1369293 | L26: 396.0087147 | M26: 425.2680971 | N26: 397.2740482 | O26: 120.7149643 | P26: 107.3935687 | Q26: 426.1702113 | R26: 435.762981 | S26: 482.6649509 | T26: 490.6891386 | U26: 206.9584632 | V26: 194.2613506 | W26: 524.9830667 | X26: 543.9482729 | Y26: 548.6907495 | Z26: 538.5973551 | AA26: 155.4363943 | AB26: 173.0234215 | AC26: 557.6176867 | AD26: 558.5105604 | AE26: 661.7042785 | AF26: 567.9834658 | AH26: 171.1304367 | AI26: 174.5580793 | AJ26: 519.9786374 | AK26: 509.7185257 | AL26: 580.0989236 | AM26: 528.0903946
A27: 25 | B27: CG15744 | C27: 1359.676512 | D27: 848.1470676 | E27: 2229.951049 | F27: 2440.525931 | G27: 2619.496066 | H27: 2207.4188 | I27: 919.8434266 | J27: 693.8964515 | K27: 2123.7451 | L27: 1733.020593 | M27: 2015.479999 | N27: 1837.49042 | O27: 566.9945294 | P27: 519.8209712 | Q27: 1587.934885 | R27: 1861.4325 | S27: 2142.807887 | T27: 1871.147209 | U27: 809.8001279 | V27: 735.0177062 | W27: 1844.125577 | X27: 1872.122721 | Y27: 2311.874857 | Z27: 2428.927372 | AA27: 739.2943503 | AB27: 686.5716621 | AC27: 2080.313887 | AD27: 2161.802459 | AE27: 2637.626777 | AF27: 2234.756764 | AH27: 879.1217893 | AI27: 696.6907717 | AJ27: 1973.2141 | AK27: 1937.184175 | AL27: 2345.457117 | AM27: 2115.948113
A28: 26 | B28: fz3 | C28: 140.3537045 | D28: 152.6041848 | E28: 501.238997 | F28: 479.2707033 | G28: 539.6441241 | H28: 434.0048256 | I28: 206.2090311 | J28: 197.4768203 | K28: 642.7879447 | L28: 600.5746199 | M28: 644.2629932 | N28: 687.9814879 | O28: 172.8418807 | P28: 188.6155955 | Q28: 787.7979406 | R28: 621.498022 | S28: 645.4240622 | T28: 689.7025446 | U28: 164.0210227 | V28: 138.2244225 | W28: 316.4159401 | X28: 380.3548074 | Y28: 405.5540322 | Z28: 564.7937245 | AA28: 137.9497999 | AB28: 131.6082409 | AC28: 488.9529919 | AD28: 429.1258746 | AE28: 411.5228769 | AF28: 381.0652707 | AH28: 164.2750878 | AI28: 161.7058528 | AJ28: 547.4387629 | AK28: 534.6024391 | AL28: 529.2816177 | AM28: 551.5095707
A29: 27 | B29: PhKgamma | C29: 2875.057915 | D29: 2903.632005 | E29: 4053.661016 | F29: 4129.016497 | G29: 4436.509575 | H29: 4175.738335 | I29: 3163.311314 | J29: 3181.449768 | K29: 4638.25273 | L29: 4514.344958 | M29: 4448.049862 | N29: 4579.229858 | O29: 2585.312153 | P29: 2787.720452 | Q29: 4671.736703 | R29: 4415.799575 | S29: 4947.876985 | T29: 4496.228802 | U29: 2730.821216 | V29: 2790.639017 | W29: 3722.12103 | X29: 3791.278564 | Y29: 3832.160294 | Z29: 4365.362999 | AA29: 2841.571583 | AB29: 2616.519082 | AC29: 4207.410313 | AD29: 3925.747008 | AE29: 4245.935787 | AF29: 4071.925101 | AH29: 2839.214836 | AI29: 2855.992065 | AJ29: 4258.636358 | AK29: 4248.9259 | AL29: 4382.106501 | AM29: 4337.697019
A30: 28 | B30: Lnk | C30: 1384.896318 | D30: 1200.071004 | E30: 1879.958732 | F30: 2049.600058 | G30: 2018.903899 | H30: 1960.387332 | I30: 1421.870649 | J30: 1456.527929 | K30: 2143.447412 | L30: 1963.83269 | M30: 2199.035887 | N30: 2100.77263 | O30: 1451.323094 | P30: 1264.356217 | Q30: 2458.309236 | R30: 2171.671249 | S30: 2356.078446 | T30: 2315.505184 | U30: 1225.434552 | V30: 1176.775489 | W30: 1725.581014 | X30: 1887.459609 | Y30: 2064.638709 | Z30: 2086.27886 | AA30: 1185.202506 | AB30: 1142.13865 | AC30: 2035.040462 | AD30: 1908.424116 | AE30: 2087.227693 | AF30: 1882.607015 | AH30: 1333.745424 | AI30: 1247.973858 | AJ30: 2048.467371 | AK30: 2046.472692 | AL30: 2145.176927 | AM30: 2069.110204
A31: 29 | B31: Alh | C31: 3195.239804 | D31: 2469.696296 | E31: 4172.408409 | F31: 4833.566517 | G31: 5282.163661 | H31: 4285.656006 | I31: 2881.528293 | J31: 2805.043674 | K31: 4371.450582 | L31: 4369.218957 | M31: 4380.806615 | N31: 4502.439213 | O31: 2980.379309 | P31: 2152.383709 | Q31: 4766.652118 | R31: 4131.073881 | S31: 4548.275305 | T31: 4284.579625 | U31: 2337.514261 | V31: 2688.838598 | W31: 3427.987903 | X31: 3939.535142 | Y31: 4461.094354 | Z31: 4452.334945 | AA31: 2707.507693 | AB31: 2284.277299 | AC31: 4541.679102 | AD31: 4331.152357 | AE31: 4803.482911 | AF31: 4446.794189 | AH31: 2820.433872 | AI31: 2480.047915 | AJ31: 4256.035623 | AK31: 4387.820919 | AL31: 4695.164569 | AM31: 4394.360796
A32: 30 | B32: Usp32 | C32: 1846.528425 | D32: 1358.903931 | E32: 2492.445287 | F32: 2759.67163 | G32: 3126.126667 | H32: 2587.031376 | I32: 1951.96821 | J32: 1583.087659 | K32: 3050.574716 | L32: 2659.356768 | M32: 3105.002324 | N32: 2840.470266 | O32: 1346.154754 | P32: 1239.087142 | Q32: 2542.783955 | R32: 2806.43606 | S32: 2964.46078 | T32: 2894.644725 | U32: 1519.985394 | V32: 1594.250603 | W32: 2230.063893 | X32: 2145.119317 | Y32: 2873.578036 | Z32: 2949.711196 | AA32: 1413.499711 | AB32: 1473.460095 | AC32: 2469.665343 | AD32: 2445.370562 | AE32: 2930.696419 | AF32: 2916.336923 | AH32: 1615.627299 | AI32: 1449.757886 | AJ32: 2557.106639 | AK32: 2532.308318 | AL32: 2999.972845 | AM32: 2837.638897
A33: 31 | B33: arr | C33: 631.5916702 | D33: 463.0031728 | E33: 1377.469762 | F33: 1581.372459 | G33: 1815.743759 | H33: 1679.360709 | I33: 394.0643788 | J33: 415.6832516 | K33: 943.2482101 | L33: 971.1090898 | M33: 1021.370387 | N33: 981.8232396 | O33: 385.0075756 | P33: 276.154891 | Q33: 1163.662982 | R33: 1052.158392 | S33: 1170.743125 | T33: 1148.802254 | U33: 455.1368693 | V33: 462.3046564 | W33: 1033.922508 | X33: 1103.233433 | Y33: 1409.679791 | Z33: 1371.641902 | AA33: 442.0222462 | AB33: 490.5398068 | AC33: 1101.653346 | AD33: 1187.104492 | AE33: 1895.251761 | AF33: 1497.410955 | AH33: 461.564548 | AI33: 421.5371557 | AJ33: 1123.991362 | AK33: 1170.344077 | AL33: 1462.557764 | AM33: 1335.807812
A34: 32 | B34: Hsp70Aa | C34: 0 | D34: 0 | E34: 44.9990122 | F34: 41.9637943 | G34: 52.05978609 | H34: 120.1162181 | I34: 2.15925687 | J34: 1.091032156 | K34: 34.47904684 | L34: 39.36928742 | M34: 90.86925151 | N34: 89.32789251 | O34: 0.9145073055 | P34: 0.902466964 | Q34: 41.76278239 | R34: 47.96454357 | S34: 70.71602769 | T34: 98.98021251 | U34: 0 | V34: 0.9339488008 | W34: 38.32643781 | X34: 38.85344807 | Y34: 101.9306926 | Z34: 96.40263943 | AA34: 0 | AB34: 0 | AC34: 32.44595471 | AD34: 35.5807886 | AE34: 90.88222344 | AF34: 123.9236653 | AH34: 0.6147528351 | AI34: 0.5854895842 | AJ34: 38.40264679 | AK34: 38.77365133 | AL34: 81.29159626 | AM34: 105.7501256
A35: 33 | B35: botv | C35: 713.8301689 | D35: 649.8654398 | E35: 1248.722589 | F35: 1328.485383 | G35: 1474.180772 | H35: 1256.687602 | I35: 502.0272223 | J35: 478.9631167 | K35: 1055.715577 | L35: 903.1777703 | M35: 983.2053014 | N35: 948.1293854 | O35: 467.3132331 | P35: 435.8915436 | Q35: 984.2728487 | R35: 983.7834044 | S35: 1186.457798 | T35: 1105.630033 | U35: 585.6666885 | V35: 582.7840517 | W35: 1022.335446 | X35: 1112.435566 | Y35: 1136.418785 | Z35: 1217.60725 | AA35: 612.0308025 | AB35: 561.4057827 | AC35: 1220.118808 | AD35: 1241.014778 | AE35: 1421.438821 | AF35: 1215.484617 | AH35: 576.173623 | AI35: 541.7819869 | AJ35: 1106.233054 | AK35: 1091.678051 | AL35: 1240.340295 | AM35: 1148.707778
A36: 34 | B36: Fbl6 | C36: 1114.057529 | D36: 996.5987576 | E36: 1603.714796 | F36: 1686.281944 | G36: 1869.073296 | H36: 1600.038678 | I36: 990.0192748 | J36: 986.2930694 | K36: 1701.787241 | L36: 1582.490965 | M36: 1579.307591 | N36: 1823.386016 | O36: 1027.906211 | P36: 849.2214131 | Q36: 1994.172859 | R36: 1784.893334 | S36: 1882.393308 | T36: 1802.703445 | U36: 866.4775494 | V36: 878.8458216 | W36: 1295.968385 | X36: 1381.342325 | Y36: 1558.238354 | Z36: 1669.232659 | AA36: 878.2156277 | AB36: 730.7478548 | AC36: 1629.843306 | AD36: 1372.555875 | AE36: 1683.874005 | AF36: 1511.868716 | AH36: 975.3352385 | AI36: 888.3413833 | AJ36: 1645.097318 | AK36: 1637.751492 | AL36: 1714.577311 | AM36: 1681.445903
A37: 35 | B37: CG11210 | C37: 1230.287941 | D37: 1060.962427 | E37: 1767.461202 | F37: 1830.946604 | G37: 2084.930945 | H37: 1766.614943 | I37: 888.534202 | J37: 966.6544906 | K37: 1532.675725 | L37: 1523.823007 | M37: 1462.086257 | N37: 1483.313162 | O37: 935.5409735 | P37: 899.7595631 | Q37: 1556.612798 | R37: 1636.917615 | S37: 1744.328683 | T37: 1582.630419 | U37: 1020.193586 | V37: 1066.569531 | W37: 1455.513324 | X37: 1525.509066 | Y37: 1534.382234 | Z37: 1600.074244 | AA37: 1066.682256 | AB37: 1011.450746 | AC37: 1692.471544 | AD37: 1664.749624 | AE37: 1709.402719 | AF37: 1573.830549 | AH37: 1028.247792 | AI37: 1001.079352 | AJ37: 1600.946919 | AK37: 1611.873456 | AL37: 1707.026168 | AM37: 1601.292663
A38: 36 | B38: Klp64D | C38: 778.5244546 | D38: 787.9358927 | E38: 1069.976512 | F38: 1116.45779 | G38: 1224.039848 | H38: 1060.648869 | I38: 645.6178041 | J38: 654.6192938 | K38: 956.3830851 | L38: 944.8628982 | M38: 920.5055178 | N38: 1023.352874 | O38: 683.1369572 | P38: 615.4824694 | Q38: 1120.951046 | R38: 1049.096825 | S38: 1162.885789 | T38: 1023.497517 | U38: 640.6266123 | V38: 669.6412902 | W38: 935.8781326 | X38: 993.8303032 | Y38: 1007.378866 | Z38: 1085.577548 | AA38: 709.1785489 | AB38: 565.0871321 | AC38: 1039.025108 | AD38: 1087.909566 | AE38: 1128.369179 | AF38: 1067.808916 | AH38: 691.4168754 | AI38: 658.5532156 | AJ38: 1024.442777 | AK38: 1031.434995 | AL38: 1088.63584 | AM38: 1052.177145
A39: 37 | B39: dap | C39: 1702.88518 | D39: 1538.499332 | E39: 3069.93261 | F39: 3085.443191 | G39: 3978.129508 | H39: 3230.672997 | I39: 922.0026834 | J39: 973.2006835 | K39: 2537.493662 | L39: 2407.702107 | M39: 2444.382866 | N39: 2722.149987 | O39: 973.0357731 | P39: 778.8289899 | Q39: 2344.410739 | R39: 2503.340966 | S39: 3083.443303 | T39: 2392.372796 | U39: 1038.227311 | V39: 1152.49282 | W39: 2206.889768 | X39: 2540.811012 | Y39: 2679.475972 | Z39: 2716.039581 | AA39: 1287.20764 | AB39: 938.7440956 | AC39: 3043.128729 | AD39: 2727.860459 | AE39: 3329.965513 | AF39: 2669.522289 | AH39: 1184.671718 | AI39: 1076.353184 | AJ39: 2640.371102 | AK39: 2617.514907 | AL39: 3103.079432 | AM39: 2746.15153
A40: 38 | B40: lncRNA:noe | C40: 292.7690555 | D40: 357.1145548 | E40: 832.4817258 | F40: 858.0491623 | G40: 888.8256161 | H40: 1401.733601 | I40: 315.251503 | J40: 341.4930649 | K40: 926.0086867 | L40: 1001.986962 | M40: 1263.991289 | N40: 1395.552426 | O40: 325.5646008 | P40: 361.8892526 | Q40: 868.476043 | R40: 1051.13787 | S40: 1359.319199 | T40: 1410.994519 | U40: 480.0405848 | V40: 593.9914373 | W40: 1170.293322 | X40: 1147.199177 | Y40: 1395.582993 | Z40: 1508.910878 | AA40: 579.0005687 | AB40: 520.9109393 | AC40: 927.350659 | AD40: 1139.663441 | AE40: 1390.804363 | AF40: 1762.814138 | AH40: 398.5252626 | AI40: 435.0798498 | AJ40: 944.9220873 | AK40: 965.2312297 | AL40: 1259.704692 | AM40: 1496.001112
A41: 39 | B41: syd | C41: 1026.336464 | D41: 811.8127379 | E41: 1854.959281 | F41: 2143.46644 | G41: 2106.51671 | H41: 2046.508394 | I41: 1333.341117 | J41: 1135.764475 | K41: 2751.75631 | L41: 2684.059066 | M41: 2733.347085 | N41: 2887.484946 | O41: 1065.401011 | P41: 1088.375159 | Q41: 2794.309804 | R41: 2711.527495 | S41: 2815.171388 | T41: 2598.757069 | U41: 1125.81969 | V41: 1204.793953 | W41: 1796.886014 | X41: 1846.561242 | Y41: 2229.462808 | Z41: 2193.160047 | AA41: 861.7005108 | AB41: 984.760963 | AC41: 1946.757282 | AD41: 1970.960047 | AE41: 2250.611466 | AF41: 2017.890349 | AH41: 1082.519759 | AI41: 1045.101457 | AJ41: 2228.933738 | AK41: 2273.095721 | AL41: 2427.021892 | AM41: 2348.760161
A42: 40 | B42: Best1 | C42: 1298.271767 | D42: 1296.616509 | E42: 2229.951049 | F42: 2186.534545 | G42: 2536.962259 | H42: 2267.476909 | I42: 1013.7711 | J42: 1095.396285 | K42: 1742.012795 | L42: 1637.299189 | M42: 1780.128637 | N42: 1625.140781 | O42: 1011.44508 | P42: 962.9322506 | Q42: 1815.73188 | R42: 1779.790723 | S42: 2076.581765 | T42: 2058.577824 | U42: 1177.344619 | V42: 1143.153332 | W42: 1803.125202 | X42: 1932.447812 | Y42: 1931.261314 | Z42: 1994.06764 | AA42: 1193.945804 | AB42: 1109.926842 | AC42: 1995.048936 | AD42: 2067.998561 | AE42: 2240.39998 | AF42: 1992.072919 | AH42: 1138.955674 | AI42: 1121.605044 | AJ42: 1917.173973 | AK42: 1887.54795 | AL42: 2113.066791 | AM42: 1987.467215
A43: 41 | B43: Cdk12 | C43: 3259.934089 | D43: 2849.649572 | E43: 4372.404019 | F43: 4831.357896 | G43: 5131.063307 | H43: 4405.772224 | I43: 3282.070442 | J43: 3141.081578 | K43: 5001.924581 | L43: 4659.470959 | M43: 4759.731394 | N43: 4800.982433 | O43: 3022.446645 | P43: 2579.250583 | Q43: 5223.195262 | R43: 4860.747256 | S43: 5147.677825 | T43: 4576.255357 | U43: 2644.946335 | V43: 2925.127644 | W43: 3756.882218 | X43: 3816.840043 | Y43: 4234.461219 | Z43: 4586.460357 | AA43: 2737.623494 | AB43: 2541.971757 | AC43: 4328.894004 | AD43: 4185.594586 | AE43: 4805.525208 | AF43: 3971.753472 | AH43: 2989.404201 | AI43: 2807.416227 | AJ43: 4536.660017 | AK43: 4559.960068 | AL43: 4815.69179 | AM43: 4468.244769
A44: 42 | B44: Ndf | C44: 6198.589777 | D44: 5929.762607 | E44: 8202.319947 | F44: 8905.158874 | G44: 9623.441921 | H44: 8291.418561 | I44: 5051.581447 | J44: 5289.323894 | K44: 8052.499297 | L44: 7169.841992 | M44: 7467.635089 | N44: 6887.650659 | O44: 5595.870202 | P44: 5279.431739 | Q44: 8751.20122 | R44: 8093.761597 | S44: 9033.691918 | T44: 8731.318321 | U44: 4866.529507 | V44: 5356.196373 | W44: 7364.023934 | X44: 7541.658762 | Y44: 7609.017765 | Z44: 8307.392668 | AA44: 5450.960052 | AB44: 4796.798261 | AC44: 8062.442466 | AD44: 7988.426142 | AE44: 8648.107307 | AF44: 7595.487984 | AH44: 5432.706197 | AI44: 5330.302575 | AJ44: 8086.497373 | AK44: 8050.533697 | AL44: 8476.3788 | AM44: 7962.653638
A45: 43 | B45: CG5966 | C45: 1279.63104 | D45: 1203.185375 | E45: 1716.212327 | F45: 1749.227636 | G45: 1789.07899 | H45: 1785.878865 | I45: 868.0212617 | J45: 852.0961141 | K45: 1795.373225 | L45: 1760.038732 | M45: 1886.445661 | N45: 1867.266385 | O45: 790.134312 | P45: 874.4904881 | Q45: 1846.104813 | R45: 1835.919444 | S45: 1783.615365 | T45: 1673.186784 | U45: 1095.763482 | V45: 772.3756583 | W45: 1622.188763 | X45: 1636.957115 | Y45: 1732.821774 | Z45: 1925.957079 | AA45: 742.2087827 | AB45: 587.1752284 | AC45: 1843.382962 | AD45: 1882.547178 | AE45: 2182.194511 | AF45: 2022.021138 | AH45: 955.1517756 | AI45: 857.8645728 | AJ45: 1764.652418 | AK45: 1764.188581 | AL45: 1874.83126 | AM45: 1854.86205
A46: 44 | B46: Sara | C46: 1868.458691 | D46: 1638.159208 | E46: 2203.701625 | F46: 2433.900069 | G46: 2573.785034 | H46: 2332.067705 | I46: 1773.829519 | J46: 1696.555003 | K46: 2406.965842 | L46: 2151.415766 | M46: 2248.105282 | N46: 2114.093456 | O46: 1732.991344 | P46: 1609.098597 | Q46: 2590.241663 | R46: 2474.766344 | S46: 2645.677417 | T46: 2691.419396 | U46: 1511.397906 | V46: 1559.694497 | W46: 2132.91083 | X46: 2116.490461 | Y46: 2384.527585 | Z46: 2385.965326 | AA46: 1575.736447 | AB46: 1485.424481 | AC46: 2363.272794 | AD46: 2429.197476 | AE46: 2520.19469 | AF46: 2462.982847 | AH46: 1692.482781 | AI46: 1597.786357 | AJ46: 2339.418551 | AK46: 2334.348224 | AL46: 2474.458002 | AM46: 2397.305746
A47: 45 | B47: fu | C47: 875.0176264 | D47: 769.249666 | E47: 1227.473055 | F47: 1394.744005 | G47: 1592.267604 | H47: 1155.835306 | I47: 653.1752031 | J47: 643.7089723 | K47: 1065.566733 | L47: 1010.478377 | M47: 1035.000775 | N47: 1011.599204 | O47: 708.7431618 | P47: 572.1640552 | Q47: 1175.052832 | R47: 1114.410246 | S47: 1231.356863 | T47: 1180.391683 | U47: 644.9203564 | V47: 660.3018022 | W47: 1054.422696 | X47: 1120.615239 | Y47: 1141.840631 | Z47: 1202.937283 | AA47: 674.2053602 | AB47: 632.2717585 | AC47: 1211.064123 | AD47: 1257.187864 | AE47: 1319.323963 | AF47: 1148.359298 | AH47: 711.2123416 | AI47: 655.5392508 | AJ47: 1146.715888 | AK47: 1169.152407 | AL47: 1263.957967 | AM47: 1139.824555
A48: 46 | B48: DnaJ-1 | C48: 5996.831327 | D48: 5542.542465 | E48: 15040.91983 | F48: 16289.68236 | G48: 25977.83326 | H48: 39009.44157 | I48: 2981.933737 | J48: 2670.846719 | K48: 10727.90915 | L48: 11149.22781 | M48: 19656.83649 | N48: 18431.32182 | O48: 3015.130586 | P48: 2610.836927 | Q48: 11299.6801 | R48: 13251.48081 | S48: 23497.92577 | T48: 23688.9132 | U48: 4015.509436 | V48: 3771.285258 | W48: 21478.8488 | X48: 21437.9012 | Y48: 49075.291 | Z48: 42767.14485 | AA48: 4191.925258 | AB48: 3771.542455 | AC48: 20901.98585 | AD48: 23419.70634 | AE48: 52332.84347 | AF48: 55319.52417 | AH48: 4040.266069 | AI48: 3673.410765 | AJ48: 15889.86874 | AK48: 16223.88498 | AL48: 34108.146 | AM48: 35843.26912
A49: 47 | B49: CG1603 | C49: 623.916077 | D49: 659.2085532 | E49: 1022.477555 | F49: 965.1672688 | G49: 1297.6854 | H49: 1007.389791 | I49: 547.3716165 | J49: 507.3299527 | K49: 1011.385374 | L49: 841.4220253 | M49: 900.5142825 | N49: 981.8232396 | O49: 545.0463541 | P49: 494.5518963 | Q49: 1181.696911 | R49: 1083.79458 | S49: 1147.171116 | T49: 1065.616756 | U49: 498.9330587 | V49: 521.1434309 | W49: 728.2023184 | X49: 771.9566655 | Y49: 917.3762333 | Z49: 925.2557676 | AA49: 565.3998842 | AB49: 465.6906984 | AC49: 933.3871157 | AD49: 935.8825606 | AE49: 1059.952224 | AF49: 907.7408481 | AH49: 556.1333981 | AI49: 529.5849063 | AJ49: 975.4298548 | AK49: 929.9751278 | AL49: 1064.539851 | AM49: 977.5652804
A50: 48 | B50: CG12567 | C50: 2209.474332 | D50: 1899.766382 | E50: 4967.390958 | F50: 4470.248403 | G50: 5795.143017 | H50: 4827.312159 | I50: 2354.669617 | J50: 2214.795277 | K50: 5996.891362 | L50: 5992.623103 | M50: 6325.408598 | N50: 8473.61254 | O50: 2277.123191 | P50: 1754.395778 | Q50: 6451.400726 | R50: 5900.659382 | S50: 7340.99716 | T50: 4526.765251 | U50: 1689.158909 | V50: 2184.506245 | W50: 3433.335778 | X50: 3846.491359 | Y50: 4194.339563 | Z50: 4610.561016 | AA50: 1906.038785 | AB50: 1466.097396 | AC50: 4654.108108 | AD50: 3882.61878 | AE50: 4761.615819 | AF50: 3960.393802 | AH50: 2087.292967 | AI50: 1903.912216 | AJ50: 5100.625386 | AK50: 5000.343224 | AL50: 5683.500831 | AM50: 5279.728954
A51: 49 | B51: Fs | C51: 203.9514768 | D51: 227.3490916 | E51: 104.9976951 | F51: 119.2655206 | G51: 106.6590739 | H51: 129.181593 | I51: 194.3331183 | J51: 174.565145 | K51: 113.2882968 | L51: 113.4761814 | M51: 104.4996392 | N51: 127.7232147 | O51: 171.9273734 | P51: 200.347666 | Q51: 82.57641064 | R51: 103.0727426 | S51: 117.8600461 | T51: 111.6159843 | U51: 230.1446811 | V51: 203.6008386 | W51: 144.3926262 | X51: 139.0544457 | Y51: 148.5585626 | Z51: 101.6419133 | AA51: 212.7535647 | AB51: 192.3505059 | AC51: 114.6926771 | AD51: 104.5859544 | AE51: 124.5801265 | AF51: 112.5639959 | AH51: 202.6220429 | AI51: 199.6426494 | AJ51: 111.9895412 | AK51: 114.8806832 | AL51: 120.4314897 | AM51: 116.5453403
A52: 50 | B52: Axud1 | C52: 1405.730072 | D52: 1125.326097 | E52: 2282.449897 | F52: 2467.02938 | G52: 2882.334498 | H52: 2285.607659 | I52: 983.5415042 | J52: 924.1042365 | K52: 1729.69885 | L52: 1870.427126 | M52: 1987.310531 | N52: 2032.601344 | O52: 866.9529256 | P52: 643.4589453 | Q52: 1624.951897 | R52: 1752.236624 | S52: 1962.089149 | T52: 1706.882175 | U52: 1087.175994 | V52: 1088.050353 | W52: 1858.386577 | X52: 2070.479798 | Y52: 2241.390868 | Z52: 2289.562687 | AA52: 1071.539643 | AB52: 1042.742216 | AC52: 2447.028631 | AD52: 2396.851304 | AE52: 2612.098062 | AF52: 2224.429792 | AH52: 1082.988028 | AI52: 964.7363696 | AJ52: 1988.50317 | AK52: 2053.564722 | AL52: 2337.044622 | AM52: 2107.816731
A53: 51 | B53: CG9896 | C53: 1722.62242 | D53: 1686.951022 | E53: 2362.448141 | F53: 2478.072484 | G53: 2550.929518 | H53: 2431.78683 | I53: 1869.916449 | J53: 1862.391891 | K53: 2355.247271 | L53: 2513.458821 | M53: 2549.791197 | N53: 2673.568151 | O53: 1803.408406 | P53: 1778.762386 | Q53: 2470.64824 | R53: 2355.365246 | S53: 2702.923725 | T53: 2310.240279 | U53: 1988.003495 | V53: 1945.415352 | W53: 2346.825831 | X53: 2219.758836 | Y53: 2322.718548 | Z53: 2252.887769 | AA53: 1954.612658 | AB53: 1926.266071 | AC53: 2333.090511 | AD53: 2262.07559 | AE53: 2388.466524 | AF53: 2311.176357 | AH53: 1867.712686 | AI53: 1839.957344 | AJ53: 2373.651999 | AK53: 2428.419177 | AL53: 2502.965903 | AM53: 2395.931877
A54: 52 | B54: alpha-Man-Ia | C54: 1393.668425 | D54: 1176.194159 | E54: 2538.694272 | F54: 2705.560422 | G54: 3244.213499 | H54: 2675.418781 | I54: 1541.709405 | J54: 1524.171922 | K54: 3658.062684 | L54: 3330.950495 | M54: 3497.557491 | N54: 4005.650759 | O54: 1727.5043 | P54: 1237.282208 | Q54: 4427.804088 | R54: 3891.251163 | S54: 4114.999326 | T54: 3671.744692 | U54: 1112.079709 | V54: 1213.199492 | W54: 1927.017641 | X54: 2262.70212 | Y54: 2537.423624 | Z54: 2723.374564 | AA54: 1363.95436 | AB54: 1055.626939 | AC54: 2684.714113 | AD54: 2520.844962 | AE54: 2813.264332 | AF54: 2545.598624 | AH54: 1427.78324 | AI54: 1241.294944 | AJ54: 3047.258559 | AK54: 3015.209352 | AL54: 3241.491654 | AM54: 3124.357484
A55: 53 | B55: CG34116 | C55: 44.95704597 | D55: 55.02055641 | E55: 266.2441555 | F55: 274.9732837 | G55: 346.6419903 | H55: 310.4890919 | I55: 121.9980131 | J55: 111.28528 | K55: 490.095023 | L55: 440.7816298 | M55: 434.3550222 | N55: 615.8923115 | O55: 122.5439789 | P55: 102.8812339 | Q55: 704.2723758 | R55: 506.179013 | S55: 574.7080346 | T55: 511.7487583 | U55: 61.82991433 | V55: 76.58380167 | W55: 186.284314 | X55: 199.3795361 | Y55: 254.8267315 | Z55: 332.1699641 | AA55: 73.83228728 | AB55: 52.45922887 | AC55: 287.4862499 | AD55: 226.4232002 | AE55: 290.0061961 | AF55: 245.7819361 | AH55: 85.03224793 | AI55: 79.64602016 | AJ55: 386.8764236 | AK55: 378.7595706 | AL55: 380.1075949 | AM55: 403.2164124
A56: 54 | B56: CG10494 | C56: 554.8357381 | D56: 533.5955848 | E56: 767.4831526 | F56: 816.085368 | G56: 868.509602 | H56: 730.8958551 | I56: 441.5680299 | J56: 475.6900202 | K56: 739.6576478 | L56: 668.5059394 | M56: 625.1804504 | N56: 746.7498382 | O56: 438.0489993 | P56: 373.6213231 | Q56: 796.3403279 | R56: 683.7498765 | S56: 775.6313513 | T56: 664.431001 | U56: 416.4931729 | V56: 440.823834 | W56: 582.9183797 | X56: 652.3289439 | Y56: 664.71824 | Z56: 682.1534595 | AA56: 443.9652012 | AB56: 397.5857346 | AC56: 710.7927752 | AD56: 659.8618976 | AE56: 774.0306221 | AF56: 616.5202347 | AH56: 458.9822283 | AI56: 444.2632993 | AJ56: 719.4384566 | AK56: 714.9285581 | AL56: 741.6140532 | AM56: 688.1500777
A57: 55 | B57: numb | C57: 1662.314188 | D57: 1401.467003 | E57: 2708.69054 | F57: 2919.796635 | G57: 3278.496773 | H57: 2873.723858 | I57: 1290.15598 | J57: 1093.214221 | K57: 2139.342764 | L57: 2230.926287 | M57: 2506.173957 | N57: 2616.366957 | O57: 967.5487292 | P57: 853.7337479 | Q57: 1925.833761 | R57: 2059.413807 | S57: 2493.020595 | T57: 1957.49165 | U57: 1483.917944 | V57: 1479.3749 | W57: 2304.934144 | X57: 2545.923308 | Y57: 2871.409298 | Z57: 2602.871265 | AA57: 1318.294919 | AB57: 1284.790939 | AC57: 2796.388562 | AD57: 2793.631008 | AE57: 3142.074174 | AF57: 2767.628524 | AH57: 1344.446352 | AI57: 1222.516162 | AJ57: 2375.037954 | AK57: 2435.575878 | AL57: 2858.234959 | AM57: 2563.616451
A58: 56 | B58: CG5815 | C58: 524.1333652 | D58: 500.3756262 | E58: 809.9822197 | F58: 853.6319208 | G58: 878.6676091 | H58: 773.9563861 | I58: 400.5421494 | J58: 462.5976343 | K58: 628.0112104 | L58: 615.2416094 | M58: 624.2717579 | N58: 656.6383677 | O58: 437.134492 | P58: 382.6459927 | Q58: 737.4927709 | R58: 688.8524875 | S58: 757.6717252 | T58: 717.0800502 | U58: 350.3695145 | V58: 462.3046564 | W58: 631.0492551 | X58: 760.7096148 | Y58: 648.4527039 | Z58: 739.7854722 | AA58: 463.3947505 | AB58: 346.0468431 | AC58: 771.9118992 | AD58: 697.5990976 | AE58: 843.4687254 | AF58: 638.2068761 | AH58: 435.1148543 | AI58: 430.7941505 | AJ58: 715.6894711 | AK58: 721.8654911 | AL58: 750.5065043 | AM58: 705.1334305
A59: 57 | B59: Cubn | C59: 296.0585954 | D59: 246.0353183 | E59: 192.4957744 | F59: 172.2724187 | G59: 153.6398565 | H59: 179.0411552 | I59: 373.5514385 | J59: 418.9563481 | K59: 189.6347576 | L59: 209.9695329 | M59: 162.6559602 | N59: 219.4018412 | O59: 363.0594003 | P59: 340.2300454 | Q59: 226.8478407 | R59: 228.5969736 | S59: 156.0242516 | T59: 204.2783109 | U59: 405.3294384 | V59: 420.2769604 | W59: 250.4588145 | X59: 213.6939644 | Y59: 213.6207068 | Z59: 204.3316814 | AA59: 352.6463195 | AB59: 467.5313731 | AC59: 156.1933169 | AD59: 181.1385601 | AE59: 166.4472182 | AF59: 203.4413505 | AH59: 358.1290384 | AI59: 378.606009 | AJ59: 203.1261008 | AK59: 203.1483847 | AL59: 170.4775987 | AM59: 202.0988679
A60: 58 | B60: Rif1 | C60: 3526.386825 | D60: 3258.670312 | E60: 4859.893318 | F60: 5501.674294 | G60: 6548.105289 | H60: 5072.077283 | I60: 3351.166662 | J60: 2973.062626 | K60: 5345.89412 | L60: 4383.114 | M60: 4853.326723 | N60: 4490.685543 | O60: 3528.169185 | P60: 2877.064681 | Q60: 6256.824126 | R60: 5394.480369 | S60: 5849.225719 | T60: 6207.322902 | U60: 2315.186792 | V60: 2427.332933 | W60: 3933.362094 | X60: 4295.35093 | Y60: 4811.345564 | Z60: 5371.303584 | AA60: 2637.561315 | AB60: 2317.409444 | AC60: 5059.305263 | AD60: 4924.1655 | AE60: 5718.432037 | AF60: 4857.807678 | AH60: 3071.694156 | AI60: 2770.707999 | AJ60: 5091.055784 | AK60: 5026.855956 | AL60: 5556.087066 | AM60: 5199.839398
A61: 59 | B61: pigeon | C61: 762.0767548 | D61: 654.0179346 | E61: 1606.214741 | F61: 1584.68539 | G61: 1913.514576 | H61: 1502.585898 | I61: 1014.850729 | J61: 1031.025388 | K61: 2396.293756 | L61: 2307.349022 | M61: 2509.808727 | N61: 2487.860164 | O61: 905.3622324 | P61: 814.0252015 | Q61: 2549.428034 | R61: 2235.964148 | S61: 2445.876577 | T61: 2217.577953 | U61: 644.0616076 | V61: 678.0468294 | W61: 1221.098135 | X61: 1328.174448 | Y61: 1706.796916 | Z61: 1810.693054 | AA61: 629.5173968 | AB61: 508.9465538 | AC61: 1615.506722 | AD61: 1410.293075 | AE61: 1621.583942 | AF61: 1502.574441 | AH61: 791.1737441 | AI61: 737.2123814 | AJ61: 1877.708278 | AK61: 1855.61346 | AL61: 2039.516148 | AM61: 1904.258302
A62: 60 | B62: CG13384 | C62: 1173.269248 | D62: 1177.232282 | E62: 1578.715345 | F62: 1516.218147 | G62: 1701.466179 | H62: 1626.101631 | I62: 1164.919081 | J62: 1163.040279 | K62: 1665.666334 | L62: 1603.333529 | M62: 1629.28568 | N62: 1796.744364 | O62: 1154.10822 | P62: 1177.719388 | Q62: 1904.95237 | R62: 1814.488478 | S62: 1900.352935 | T62: 1960.650593 | U62: 1333.636902 | V62: 1258.029035 | W62: 1500.970262 | X62: 1434.510201 | Y62: 1526.791651 | Z62: 1675.519788 | AA62: 1296.922415 | AB62: 1215.765638 | AC62: 1781.509281 | AD62: 1651.811155 | AE62: 1621.583942 | AF62: 1767.977624 | AH62: 1224.571173 | AI62: 1198.357324 | AJ62: 1686.362718 | AK62: 1661.396718 | AL62: 1675.896077 | AM62: 1765.3988
A63: 61 | B63: N | C63: 2401.364163 | D63: 1016.323108 | E63: 2964.934915 | F63: 3876.12942 | G63: 4357.785021 | H63: 3370.053137 | I63: 1523.355722 | J63: 989.5661658 | K63: 2324.051943 | L63: 3591.096571 | M63: 2360.783154 | N63: 3779.196715 | O63: 972.1212657 | P63: 719.2661703 | Q63: 4349.024294 | R63: 2756.430472 | S63: 2629.962744 | T63: 2768.287007 | U63: 881.9350279 | V63: 885.3834632 | W63: 2237.194393 | X63: 2413.003617 | Y63: 3266.119639 | Z63: 3254.636936 | AA63: 863.6434657 | AB63: 938.7440956 | AC63: 2920.890481 | AD63: 2686.888642 | AE63: 4833.096219 | AF63: 3259.192396 | AH63: 1328.483929 | AI63: 909.8566006 | AJ63: 2959.219205 | AK63: 3394.867032 | AL63: 3489.549356 | AM63: 3286.273238
A64: 62 | B64: Gk2 | C64: 2094.340434 | D64: 2059.637432 | E64: 2454.94611 | F64: 2592.920763 | G64: 2794.721687 | H64: 2565.50111 | I64: 2151.699471 | J64: 2015.136393 | K64: 2712.351685 | L64: 2436.264139 | M64: 2671.555994 | N64: 2639.090719 | O64: 1924.123371 | P64: 1783.274721 | Q64: 2804.750499 | R64: 2566.613342 | S64: 2839.865874 | T64: 2594.545145 | U64: 2256.791873 | V64: 2089.243467 | W64: 2251.455393 | X64: 2479.463462 | Y64: 2829.118904 | Z64: 2891.031328 | AA64: 2076.047341 | AB64: 1891.293251 | AC64: 2817.51616 | AD64: 2600.632185 | AE64: 2719.318663 | AF64: 2482.604094 | AH64: 2100.600498 | AI64: 1967.717053 | AJ64: 2608.20397 | AK64: 2580.581391 | AL64: 2770.916224 | AM64: 2634.554479
A65: 63 | B65: CG14971 | C65: 755.4976749 | D65: 710.0766148 | E65: 1501.217046 | F65: 1380.38797 | G65: 1639.248386 | H65: 1403.999945 | I65: 845.3490646 | J65: 911.0118506 | K65: 1774.029053 | L65: 1648.106444 | M65: 1783.763407 | N65: 2021.631251 | O65: 988.5823972 | P65: 842.9041443 | Q65: 2178.308764 | R65: 1836.939967 | S65: 1896.985505 | T65: 1912.213467 | U65: 718.772754 | V65: 819.0730983 | W65: 1118.597197 | X65: 1150.266555 | Y65: 1292.567932 | Z65: 1489.001637 | AA65: 735.4084405 | AB65: 606.5023127 | AC65: 1394.421495 | AD65: 1278.751978 | AE65: 1405.100443 | AF65: 1269.184872 | AH65: 808.7220662 | AI65: 777.9136041 | AJ65: 1593.314711 | AK65: 1543.964374 | AL65: 1603.533135 | AM65: 1619.206235
A66: 64 | B66: Ilp8 | C66: 1285.113607 | D66: 1299.73088 | E66: 721.2341678 | F66: 732.1577794 | G66: 824.0683212 | H66: 549.5883562 | I66: 950.0730228 | J66: 825.9113424 | K66: 614.8763354 | L66: 476.2911831 | M66: 479.789648 | N66: 496.7884548 | O66: 1262.020082 | P66: 1202.085996 | Q66: 748.8826207 | R66: 578.6360895 | S66: 618.4846231 | T66: 574.9276174 | U66: 966.9511601 | V66: 1027.343681 | W66: 489.3305664 | X66: 484.6456417 | Y66: 438.0851043 | Z66: 551.1716124 | AA66: 1209.489443 | AB66: 1020.65412 | AC66: 636.0916237 | AD66: 585.4657032 | AE66: 518.7434776 | AF66: 500.8581471 | AH66: 1134.729463 | AI66: 1075.145204 | AJ66: 642.0830628 | AK66: 616.5507547 | AL66: 575.8342348 | AM66: 534.6668376
A67: 65 | B67: Liprin-alpha | C67: 2243.466245 | D67: 1703.561001 | E67: 2481.195534 | F67: 2798.322493 | G67: 2666.476848 | H67: 2434.053173 | I67: 2206.760521 | J67: 1980.223364 | K67: 3073.560747 | L67: 2977.398855 | M67: 3011.406995 | N67: 3153.11789 | O67: 2054.897915 | P67: 1504.412429 | Q67: 3185.361312 | R67: 2733.978984 | S67: 2884.764939 | T67: 2635.611403 | U67: 1739.825089 | V67: 1916.462939 | W67: 2326.325644 | X67: 2393.576893 | Y67: 2605.738875 | Z67: 2733.853112 | AA67: 1816.662858 | AB67: 1721.030842 | AC67: 2773.751849 | AD67: 2758.050219 | AE67: 2873.512098 | AF67: 2464.015544 | AH67: 2012.322526 | AI67: 1765.138115 | AJ67: 2768.039017 | AK67: 2812.232031 | AL67: 2808.379951 | AM67: 2684.130225
A68: 66 | B68: snRNA:7SK | C68: 27.41283291 | D68: 11.41936076 | E68: 54.99879269 | F68: 59.63276031 | G68: 151.1003547 | H68: 70.25665584 | I68: 20.51294026 | J68: 12.00135372 | K68: 97.69063272 | L68: 84.14220253 | M68: 98.13879163 | N68: 140.2604628 | O68: 21.94817533 | P68: 18.04933928 | Q68: 101.5594935 | R68: 95.92908715 | S68: 127.9623358 | T68: 159.0001286 | U68: 4.29374405 | V68: 9.339488008 | W68: 33.86987527 | X68: 54.19033546 | Y68: 68.31525141 | Z68: 68.11056047 | AA68: 2.914432393 | AB68: 5.522024092 | AC68: 44.51886809 | AD68: 37.73720003 | AE68: 73.52269761 | AF68: 89.84465732 | AH68: =AVERAGE(C68, I68, O68, U68, AA68) -> 15.41642499 | AI68: 11.26631317 | AJ68: 66.52753247 | AK68: =AVERAGE(F68, L68, Q68, W68, AC68) -> 64.74463995 | AL68: =AVERAGE(G68, M68, S68, Y68, AE68) -> 103.8078862 | AM68: 105.494493
A69: 67 | B69: bcd | C69: 2382.723436 | D69: 2215.355988 | E69: 3274.92811 | F69: 3489.620789 | G69: 3917.181465 | H69: 3283.932075 | I69: 1924.9775 | J69: 1973.677171 | K69: 3536.565091 | L69: 3076.979994 | M69: 3228.584506 | N69: 3416.400099 | O69: 2157.322734 | P69: 1774.250051 | Q69: 4228.481717 | R69: 3549.376224 | S69: 4010.608999 | T69: 3564.340631 | U69: 1684.865165 | V69: 1718.465793 | W69: 2240.759643 | X69: 2711.561691 | Y69: 2733.694426 | Z69: 3163.47357 | AA69: 1835.12093 | AB69: 1673.1733 | AC69: 3176.685333 | AD69: 2978.004185 | AE69: 3395.319022 | AF69: 2618.920126 | AH69: 1997.001953 | AI69: 1870.984461 | AJ69: 3291.483979 | AK69: 3242.505495 | AL69: 3457.077684 | AM69: 3209.4133
A70: 68 | B70: out | C70: 1782.930652 | D70: 1829.17397 | E70: 2541.194217 | F70: 2341.137998 | G70: 2682.98361 | H70: 2478.246876 | I70: 1524.43535 | J70: 1635.457202 | K70: 2136.059045 | L70: 2005.517818 | M70: 2325.344146 | N70: 1944.057029 | O70: 1561.06397 | P70: 1386.189257 | Q70: 2263.732637 | R70: 2196.163782 | S70: 2480.673352 | T70: 2240.743534 | U70: 1802.513752 | V70: 1863.227858 | W70: 2181.933018 | X70: 2234.073264 | Y70: 2386.696323 | Z70: 2238.217803 | AA70: 1759.345688 | AB70: 1538.804047 | AC70: 2370.818365 | AD70: 2257.762767 | AE70: 2286.351666 | AF70: 2254.378011 | AH70: 1686.057883 | AI70: 1650.570467 | AJ70: 2298.747456 | AK70: 2232.627967 | AL70: 2432.409819 | AM70: 2231.128651
A71: 69 | B71: Su(var)3-9 | C71: 354.1738012 | D71: 306.2464932 | E71: 619.9863904 | F71: 704.55002 | G71: 681.8562226 | H71: 628.910387 | I71: 402.7014062 | J71: 360.0406116 | K71: 786.4506399 | L71: 666.9620458 | M71: 698.7845441 | N71: 769.4736004 | O71: 429.8184336 | P71: 382.6459927 | Q71: 994.7135443 | R71: 786.822619 | S71: 863.1845285 | T71: 776.0469853 | U71: 291.9745954 | V71: 300.7315139 | W71: 459.9172537 | X71: 520.4317123 | Y71: 542.184535 | Z71: 664.3399283 | AA71: 287.5573294 | AB71: 277.9418793 | AC71: 594.590984 | AD71: 519.6951546 | AE71: 603.4988096 | AF71: 483.3022945 | AH71: 353.2451132 | AI71: 325.5212981 | AJ71: 691.1317624 | AK71: 684.1467696 | AL71: 677.901728 | AM71: 664.4146391
A72: 70 | B72: Xrcc2 | C72: 93.20363189 | D72: 83.04989646 | E72: 247.4945671 | F72: 276.0775941 | G72: 364.4185026 | H72: 261.7627016 | I72: 116.599871 | J72: 115.6494086 | K72: 391.5834606 | L72: 372.0783635 | M72: 371.6552387 | N72: 426.2664344 | O72: 150.8937054 | P72: 111.0034366 | Q72: 578.9840286 | R72: 455.1529028 | S72: 435.5209324 | T72: 411.7155648 | U72: 72.99364886 | V72: 51.36718404 | W72: 167.5667514 | X72: 188.1324854 | Y72: 200.608278 | Z72: 266.1551132 | AA72: 69.94637743 | AB72: 51.53889152 | AC72: 232.4035826 | AD72: 185.451383 | AE72: 247.1179559 | AF72: 202.4086533 | AH72: 100.7274469 | AI72: 82.52176344 | AJ72: 323.6064781 | AK72: 325.422064 | AL72: 323.8641815 | AM72: 313.6616935
A73: 71 | B73: CG8008 | C73: 192.9863437 | D73: 239.806576 | E73: 152.4966525 | F73: 154.6034527 | G73: 123.1658354 | H73: 141.6464836 | I73: 278.5441362 | J73: 279.304232 | K73: 176.4998827 | L73: 157.4771497 | M73: 185.3732731 | N73: 151.2305549 | O73: 208.5076657 | P73: 289.6918954 | Q73: 126.2375013 | R73: 159.2014638 | S73: 129.0848124 | T73: 174.7948434 | U73: 256.7658942 | V73: 273.6469986 | W73: 197.8713766 | X73: 170.7506797 | Y73: 148.5585626 | Z73: 163.4653451 | AA73: 285.6143745 | AB73: 283.4639034 | AC73: 153.1750885 | AD73: 176.8257373 | AE73: 158.2780296 | AF73: 184.8528007 | AH73: 244.4836828 | AI73: 273.1827211 | AJ73: 161.2561003 | AK73: 157.8729138 | AL73: 148.8921026 | AM73: 163.1980055
A74: 72 | B74: CG7099 | C74: 534.001985 | D74: 453.6600594 | E74: 796.2325215 | F74: 832.6500237 | G74: 971.3594233 | H74: 717.2977927 | I74: 504.1864791 | J74: 489.8734382 | K74: 684.6553588 | L74: 668.5059394 | M74: 619.7282953 | N74: 635.4817616 | O74: 498.4064815 | P74: 354.6695168 | Q74: 846.6454976 | R74: 633.7442885 | S74: 745.3244823 | T74: 784.4708332 | U74: 382.1432205 | V74: 363.3060835 | W74: 574.8965671 | X74: 614.497955 | Y74: 766.6489325 | Z74: 705.2062646 | AA74: 367.2184815 | AB74: 357.0908913 | AC74: 666.2739072 | AD74: 641.5324004 | AE74: 808.7496737 | AF74: 732.1823223 | AH74: 457.1913295 | AI74: 403.7199979 | AJ74: 713.7407704 | AK74: 717.794387 | AL74: 782.3621614 | AM74: 714.9277949
A75: 73 | B75: Rbcn-3B | C75: 1566.917529 | D75: 1240.557828 | E75: 2188.701955 | F75: 2245.062995 | G75: 2370.624893 | H75: 2022.711785 | I75: 1614.04451 | J75: 1361.608131 | K75: 1984.187053 | L75: 2133.660989 | M75: 2139.062181 | N75: 2070.996666 | O75: 1158.680756 | P75: 985.4939247 | Q75: 1922.986298 | R75: 1846.124666 | S75: 1891.373122 | T75: 1820.604122 | U75: 1523.420389 | V75: 1543.817368 | W75: 2134.693455 | X75: 2115.468001 | Y75: 2446.336622 | Z75: 2353.481828 | AA75: 1244.462632 | AB75: 1516.715951 | AC75: 2237.261761 | AD75: 2377.443602 | AE75: 2640.690223 | AF75: 2475.375214 | AH75: 1421.505163 | AI75: 1329.638641 | AJ75: 2093.566104 | AK75: 2134.7331 | AL75: 2297.617408 | AM75: 2148.633923
A76: 74 | B76: Ranbp21 | C76: 3055.982613 | D76: 2440.628832 | E76: 3749.917684 | F76: 3833.061316 | G76: 4166.052638 | H76: 3434.643933 | I76: 3471.005418 | J76: 3074.528617 | K76: 4070.990317 | L76: 3902.963083 | M76: 4165.446489 | N76: 3385.840557 | O76: 2956.602119 | P76: 2483.589085 | Q76: 3807.057277 | R76: 3567.745624 | S76: 3746.826991 | T76: 3907.612432 | U76: 2504.970279 | V76: 2729.932345 | W76: 3255.073276 | X76: 3547.933284 | Y76: 4111.927514 | Z76: 3915.8333 | AA76: 2573.443803 | AB76: 2583.386938 | AC76: 3938.78799 | AD76: 3735.982802 | AE76: 3981.458305 | AF76: 3609.276751 | AH76: 2912.400846 | AI76: 2662.413163 | AJ76: 3764.365309 | AK76: 3747.388588 | AL76: 4034.342387 | AM76: 3650.641395
A77: 75 | B77: Ptp10D | C77: 1941.925083 | D77: 1396.276384 | E77: 3006.18401 | F77: 3382.502682 | G77: 3701.323816 | H77: 3103.757748 | I77: 1447.781731 | J77: 1177.223697 | K77: 2193.524123 | L77: 2166.854702 | M77: 2239.92705 | N77: 2228.495845 | O77: 986.7533826 | P77: 872.6855542 | Q77: 2464.004161 | R77: 2174.732816 | S77: 2339.241297 | T77: 2209.154105 | U77: 1487.352939 | V77: 1379.442379 | W77: 2273.738206 | X77: 2361.880659 | Y77: 2842.131333 | Z77: 2827.112187 | AA77: 1320.237874 | AB77: 1351.055228 | AC77: 2508.147755 | AD77: 2431.353887 | AE77: 3518.878 | AF77: 2752.138066 | AH77: 1436.810202 | AI77: 1235.336648 | AJ77: 2489.119651 | AK77: 2559.049501 | AL77: 2928.300299 | AM77: 2624.13159
A78: 76 | B78: yin | C78: 10659.20595 | D78: 10491.27817 | E78: 15687.15564 | F78: 15654.70389 | G78: 18224.73438 | H78: 14898.94373 | I78: 7775.483988 | J78: 8933.371296 | K78: 12992.85415 | L78: 11495.05998 | M78: 12017.45851 | N78: 10034.49992 | O78: 7347.151692 | P78: 7104.21994 | Q78: 13346.05644 | R78: 12464.6582 | S78: 13954.62946 | T78: 14673.29001 | U78: 6997.085304 | V78: 7017.691289 | W78: 11911.50035 | X78: 13181.54349 | Y78: 13993.78285 | Z78: 13565.52794 | AA78: 7703.816292 | AB78: 6774.603223 | AC78: 13327.74181 | AD78: 13229.58412 | AE78: 14936.34025 | AF78: 12205.44833 | AH78: 8096.548645 | AI78: 8064.232784 | AJ78: 13453.06168 | AK78: 13147.01249 | AL78: 14625.38909 | AM78: 13075.54199
A79: 77 | B79: CG32023 | C79: 91.01060525 | D79: 78.89740164 | E79: 32.49928659 | F79: 64.05000182 | G79: 46.98078257 | H79: 44.19370287 | I79: 147.9090956 | J79: 105.8301192 | K79: 69.77902337 | L79: 49.40459598 | M79: 63.60847606 | N79: 77.57422244 | O79: 119.800457 | P79: 114.6133044 | Q79: 46.50855312 | R79: 56.1287212 | S79: 51.63392498 | T79: 50.54308724 | U79: 102.1911084 | V79: 171.8465793 | W79: 67.73975055 | X79: 80.77427361 | Y79: 50.96534629 | Z79: 63.91914136 | AA79: 132.1209351 | AB79: 130.6879035 | AC79: 48.29165352 | AD79: 52.83208004 | AE79: 46.97283459 | AF79: 53.70025495 | AH79: 118.6064403 | AI79: 120.3750616 | AJ79: 52.96365343 | AK79: 55.198911 | AL79: 52.0322729 | AM79: 57.98608177
A80: 78 | B80: Calx | C80: 3126.159465 | D80: 2519.526234 | E80: 4001.162168 | F80: 4013.063907 | G80: 4412.384309 | H80: 3843.718978 | I80: 3456.970249 | J80: 3377.835556 | K80: 4777.810777 | L80: 4676.453789 | M80: 4821.522485 | N80: 5021.95143 | O80: 3173.34035 | P80: 2570.225913 | Q80: 4878.652307 | R80: 4278.029078 | S80: 4432.660212 | T80: 4409.884362 | U80: 2629.488856 | V80: 2675.763314 | W80: 3499.292903 | X80: 3517.259509 | Y80: 4220.364421 | Z80: 4347.549468 | AA80: 2431.608093 | AB80: 2502.397251 | AC80: 4138.745618 | AD80: 3946.232917 | AE80: 4331.712268 | AF80: 4056.434643 | AH80: 2963.513403 | AI80: 2729.149654 | AJ80: 4259.132755 | AK80: 4241.241705 | AL80: 4443.728739 | AM80: 4335.907776
A81: 79 | B81: lncRNA:let7C | C81: 9.868619847 | D81: 15.57185559 | E81: 4.999890245 | F81: 4.417241505 | G81: 2.53950176 | H81: 6.79903121 | I81: 25.91108244 | J81: 24.00270744 | K81: 2.46278906 | L81: 6.94752131 | M81: 5.452155091 | N81: 9.402936053 | O81: 17.3756388 | P81: 29.78140981 | Q81: 6.644079017 | R81: 9.184699833 | S81: 4.48990652 | T81: 6.317885905 | U81: 16.31622739 | V81: 16.81107841 | W81: 3.565250029 | X81: 4.089836639 | Y81: 5.42184535 | Z81: 3.143564329 | AA81: 19.42954929 | AB81: 17.48640962 | AC81: 4.527342517 | AD81: 1.078205715 | AE81: 3.063445734 | AF81: 9.294274895 | AH81: 17.78022355 | AI81: 20.73069218 | AJ81: 4.439870174 | AK81: 5.220286876 | AL81: 4.193370891 | AM81: 6.991538479
A82: 80 | B82: mRpL48 | C82: 331.1470215 | D82: 337.3902044 | E82: 204.9955 | F82: 204.2974196 | G82: 215.8576496 | H82: 199.4382488 | I82: 381.1088375 | J82: 379.6791904 | K82: 246.278906 | L82: 231.5840437 | M82: 237.1687464 | N82: 205.2974372 | O82: 423.4168824 | P82: 393.4755963 | Q82: 274.305548 | R82: 249.0074177 | S82: 228.9852325 | T82: 222.1789877 | U82: 292.8333442 | V82: 285.788333 | W82: 208.5671267 | X82: 193.2447812 | Y82: 239.6455645 | Z82: 202.2359719 | AA82: 313.787221 | AB82: 286.2249154 | AC82: 196.9393995 | AD82: 186.5295887 | AE82: 173.5952583 | AF82: 179.6893146 | AH82: 348.4586613 | AI82: 336.5116479 | AJ82: 226.2172961 | AK82: 223.1387075 | AL82: 219.0504903 | AM82: 201.767992
A83: 81 | B83: loco | C83: 971.5107983 | D83: 764.0590475 | E83: 1066.226595 | F83: 1250.079346 | G83: 1423.390737 | H83: 1033.452744 | I83: 1072.071036 | J83: 891.3732718 | K83: 1229.752671 | L83: 1347.047187 | M83: 1255.813056 | N83: 1275.664991 | O83: 952.9166123 | P83: 823.9523381 | Q83: 1255.730934 | R83: 1237.893433 | S83: 1138.191303 | T83: 1168.808892 | U83: 840.7150851 | V83: 825.6107399 | W83: 1086.509946 | X83: 1107.32327 | Y83: 1211.240251 | Z83: 1323.440583 | AA83: 716.9503686 | AB83: 778.6053969 | AC83: 1240.49185 | AD83: 1218.372458 | AE83: 1277.456871 | AF83: 1201.026856 | AH83: 910.83278 | AI83: 816.7201588 | AJ83: 1175.742399 | AK83: 1235.971853 | AL83: 1261.218444 | AM83: 1200.478813
A84: 82 | B84: CTCF | C84: 1560.338449 | D84: 1428.458219 | E84: 2122.453409 | F84: 2357.702653 | G84: 2585.212792 | H84: 2146.227519 | I84: 1058.035866 | J84: 1075.757706 | K84: 1719.026764 | L84: 1498.348763 | M84: 1538.416428 | N84: 1429.24628 | O84: 1184.286961 | P84: 958.4199157 | Q84: 1922.037144 | R84: 1830.816833 | S84: 1993.518495 | T84: 1959.597612 | U84: 1100.915975 | V84: 1057.230043 | W84: 1834.32114 | X84: 1867.010426 | Y84: 1849.933634 | Z84: 1886.138598 | AA84: 1181.316597 | AB84: 1048.26424 | AC84: 2023.722105 | AD84: 2083.093441 | AE84: 2372.128147 | AF84: 1894.999381 | AH84: 1216.978769 | AI84: 1113.626025 | AJ84: 1924.312112 | AK84: 1927.226361 | AL84: 2067.841899 | AM84: 1863.241878
A85: 83 | B85: ksr | C85: 1301.561306 | D85: 1212.528488 | E85: 1646.213863 | F85: 1786.774189 | G85: 1988.429878 | H85: 1550.179116 | I85: 1461.816901 | J85: 1288.508977 | K85: 1656.636108 | L85: 1582.490965 | M85: 1706.524543 | N85: 1582.043991 | O85: 1314.146998 | P85: 1029.714806 | Q85: 1595.528118 | R85: 1537.926961 | S85: 1670.245225 | T85: 1597.372153 | U85: 1131.830932 | V85: 1148.757025 | W85: 1402.034574 | X85: 1482.565782 | Y85: 1620.047391 | Z85: 1758.300315 | AA85: 1223.090128 | AB85: 1034.45918 | AC85: 1713.599143 | AD85: 1692.782973 | AE85: 1754.333257 | AF85: 1612.040346 | AH85: 1286.489253 | AI85: 1142.793695 | AJ85: 1602.802361 | AK85: 1616.085398 | AL85: 1747.916059 | AM85: 1619.987184
A86: 84 | B86: Sik3 | C86: 1154.628522 | D86: 862.6807995 | E86: 1666.213424 | F86: 1850.824191 | G86: 2213.175784 | H86: 1563.777178 | I86: 877.7379176 | J86: 687.3502585 | K86: 1300.352624 | L86: 1285.291442 | M86: 1402.112551 | N86: 1321.112515 | O86: 601.745807 | P86: 546.8949802 | Q86: 1206.374919 | R86: 1284.837454 | S86: 1354.829292 | T86: 1247.782466 | U86: 891.3812649 | V86: 878.8458216 | W86: 1455.513324 | X86: 1419.173314 | Y86: 1699.206333 | Z86: 1708.003286 | AA86: 785.9252686 | AB86: 831.9849632 | AC86: 1524.205314 | AD86: 1631.325247 | AE86: 2028.001076 | AF86: 1755.585258 | AH86: 862.283756 | AI86: 761.5513646 | AJ86: 1430.531921 | AK86: 1464.441838 | AL86: 1739.465007 | AM86: 1519.252141
A87: 85 | B87: CG34348 | C87: 723.6987888 | D87: 607.3023679 | E87: 1348.720394 | F87: 1346.154349 | G87: 1494.496786 | H87: 1201.162181 | I87: 896.091601 | J87: 804.0906993 | K87: 1715.743045 | L87: 1702.142721 | M87: 1804.663335 | N87: 2043.571436 | O87: 768.1861366 | P87: 677.7526899 | Q87: 1935.325302 | R87: 1707.333647 | S87: 1815.044711 | T87: 1585.789362 | U87: 573.6442051 | V87: 709.8010886 | W87: 837.8337568 | X87: 1023.481619 | Y87: 1250.277538 | Z87: 1283.622101 | AA87: 585.800911 | AB87: 450.9653008 | AC87: 1299.347303 | AD87: 1124.568561 | AE87: 1230.484036 | AF87: 1030.631816 | AH87: 709.4843285 | AI87: 649.9824293 | AJ87: 1427.39396 | AK87: 1424.160686 | AL87: 1518.993281 | AM87: 1428.955379
A88: 86 | B88: nop5 | C88: 5847.705516 | D88: 6018.003122 | E88: 8433.56487 | F88: 8499.876966 | G88: 8732.076803 | H88: 8532.784169 | I88: 6550.105715 | J88: 6840.771621 | K88: 9764.137694 | L88: 9037.181331 | M88: 9477.662933 | N88: 8824.655486 | O88: 6511.292015 | P88: 6256.803461 | Q88: 11229.44269 | R88: 10114.39556 | S88: 10784.75546 | T88: 10789.89614 | U88: 5556.96355 | V88: 6201.420037 | W88: 7594.873874 | X88: 7711.386982 | Y88: 8605.55294 | Z88: 8857.516425 | AA88: 5735.602949 | AB88: 4575.917297 | AC88: 8465.375951 | AD88: 8076.839011 | AE88: 8131.406126 | AF88: 7540.755031 | AH88: 6040.333949 | AI88: 5978.583108 | AJ88: 9097.479016 | AK88: 8965.350163 | AL88: 9146.290853 | AM88: 8909.121451
A89: 87 | B89: CG6791 | C89: 1921.09133 | D89: 1699.408506 | E89: 2344.948525 | F89: 2394.144896 | G89: 2564.896778 | H89: 2256.14519 | I89: 1649.672249 | J89: 1525.262955 | K89: 2152.477639 | L89: 2021.728701 | M89: 2055.462469 | N89: 2165.026026 | O89: 1703.72711 | P89: 1312.186966 | Q89: 2231.461396 | R89: 2015.531352 | S89: 2203.421625 | T89: 2057.524843 | U89: 1584.391555 | V89: 1590.514808 | W89: 1848.58214 | X89: 1873.145181 | Y89: 2174.159985 | Z89: 2349.290409 | AA89: 1609.738158 | AB89: 1494.627854 | AC89: 2245.561889 | AD89: 2145.629373 | AE89: 2391.52997 | AF89: 2044.740477 | AH89: 1693.72408 | AI89: 1524.400218 | AJ89: 2164.606318 | AK89: 2148.295804 | AL89: 2277.894165 | AM89: 2174.545389
A90: 88 | B90: Ada3 | C90: 959.4491518 | D90: 897.9770055 | E90: 1197.473714 | F90: 1173.88193 | G90: 1133.887536 | H90: 1056.116181 | I90: 852.9064636 | J90: 815.0010208 | K90: 1106.613218 | L90: 967.2493557 | M90: 1069.53109 | N90: 1060.964618 | O90: 922.7378712 | P90: 777.9265229 | Q90: 1232.951235 | R90: 1089.917714 | S90: 1162.885789 | T90: 1154.067159 | U90: 784.8964124 | V90: 821.8749447 | W90: 941.2260076 | X90: 971.3362017 | Y90: 1042.078676 | Z90: 1035.280519 | AA90: 791.7541334 | AB90: 734.4292042 | AC90: 1103.16246 | AD90: 1257.187864 | AE90: 1164.109379 | AF90: 1071.939705 | AH90: 862.3488065 | AI90: 809.4417396 | AJ90: 1116.285327 | AK90: 1083.694198 | AL90: 1114.498494 | AM90: 1075.673636
A91: 89 | B91: rt | C91: 797.165181 | D91: 728.7628415 | E91: 989.9782685 | F91: 1035.843133 | G91: 1207.533087 | H91: 1041.384947 | I91: 755.7399045 | J91: 698.2605801 | K91: 1033.550476 | L91: 966.4774089 | M91: 1045.905085 | N91: 1059.397462 | O91: 797.4503704 | P91: 659.7033507 | Q91: 1269.019092 | R91: 1087.876669 | S91: 1269.521069 | T91: 1144.59033 | U91: 604.5591623 | V91: 634.1512357 | W91: 746.0285685 | X91: 870.1127449 | Y91: 957.4978889 | Z91: 1041.567648 | AA91: 728.6080982 | AB91: 562.32612 | AC91: 1096.371446 | AD91: 1052.328778 | AE91: 1087.523236 | AF91: 1002.748991 | AH91: 736.7045433 | AI91: 656.6408256 | AJ91: 1026.98957 | AK91: 1022.74793 | AL91: 1113.596073 | AM91: 1057.937876
A92: 90 | B92: mus101 | C92: 1146.952929 | D92: 837.7658306 | E92: 1844.9595 | F92: 1965.67247 | G92: 2277.933079 | H92: 1893.530192 | I92: 1627.000051 | J92: 1296.146202 | K92: 2959.451521 | L92: 2565.179257 | M92: 2721.534083 | N92: 2659.463747 | O92: 1432.11844 | P92: 1058.593749 | Q92: 3021.157645 | R92: 2663.562952 | S92: 2844.35578 | T92: 2761.969121 | U92: 697.3040338 | V92: 792.9225319 | W92: 1547.318512 | X92: 1698.304664 | Y92: 2232.715915 | Z92: 2237.169948 | AA92: 778.1534489 | AB92: 638.7141199 | AC92: 2025.985777 | AD92: 1877.15615 | AE92: 2083.143099 | AF92: 1785.533477 | AH92: 1136.305781 | AI92: 924.8284866 | AJ92: 2279.774591 | AK92: 2225.062732 | AL92: 2431.936391 | AM92: 2267.533297
A93: 91 | B93: repo | C93: 41.66750602 | D93: 63.32554605 | E93: 27.49939635 | F93: 29.81638016 | G93: 15.23701056 | H93: 30.59564045 | I93: 71.25547671 | J93: 52.36954351 | K93: 28.73253904 | L93: 33.96565974 | M93: 28.16946797 | N93: 34.4774322 | O93: 64.01551138 | P93: 86.63682854 | Q93: 27.52547021 | R93: 33.67723272 | S93: 28.06191575 | T93: 47.38414429 | U93: 100.4736108 | V93: 91.52698248 | W93: 46.34825037 | X93: 28.62885647 | Y93: 39.03728652 | Z93: 31.43564329 | AA93: 86.46149432 | AB93: 115.9625059 | AC93: 33.20051179 | AD93: 48.51925718 | AE93: 30.63445734 | AF93: 29.94821911 | AH93: 72.77471984 | AI93: 81.9642813 | AJ93: 32.66123355 | AK93: 34.17125446 | AL93: 28.22802763 | AM93: 34.76821587
A94: 92 | B94: wapl | C94: 5402.521109 | D94: 3605.40363 | E94: 6152.364946 | F94: 7096.298477 | G94: 6699.205644 | H94: 5987.680153 | I94: 4565.748651 | J94: 3849.161448 | K94: 5592.993956 | L94: 5651.422612 | M94: 5775.649626 | N94: 5728.73879 | O94: 3617.790901 | P94: 2704.693491 | Q94: 5161.500242 | R94: 5162.821828 | S94: 5183.597077 | T94: 4856.348299 | U94: 3704.642367 | V94: 3902.03809 | W94: 5917.423735 | X94: 5979.341166 | Y94: 6805.500284 | Z94: 6619.298623 | AA94: 3571.151159 | AB94: 3477.034503 | AC94: 6875.52417 | AD94: 6874.639639 | AE94: 7505.442048 | AF94: 6436.801713 | AH94: 4172.370837 | AI94: 3507.666232 | AJ94: 5939.96141 | AK94: 6140.433847 | AL94: 6393.878936 | AM94: 5925.773516
A95: 93 | B95: CG7386 | C95: 80.04547209 | D95: 95.50738093 | E95: 231.2449238 | F95: 318.0413883 | G95: 335.2142324 | H95: 268.5617328 | I95: 71.25547671 | J95: 48.00541488 | K95: 125.6022421 | L95: 106.5286601 | M95: 114.4952569 | N95: 89.32789251 | O95: 48.46888719 | P95: 55.95295177 | Q95: 166.1019754 | R95: 114.2984868 | S95: 234.5976157 | T95: 160.0531096 | U95: 98.75611316 | V95: 71.91405766 | W95: 184.501689 | X95: 254.5923308 | Y95: 237.4768263 | Z95: 222.1452126 | AA95: 63.14603518 | AB95: 60.74226501 | AC95: 243.7219389 | AD95: 258.7693716 | AE95: 247.1179559 | AF95: 211.7029282 | AH95: 72.33439686 | AI95: 66.42441405 | AJ95: 190.2345538 | AK95: 203.7791303 | AL95: 233.7803774 | AM95: 190.3581751
A96: 94 | B96: hiw | C96: 492.334479 | D96: 380.9914 | E96: 307.4932501 | F96: 353.3793204 | G96: 349.181492 | H96: 429.4721381 | I96: 720.1121661 | J96: 616.4331684 | K96: 391.5834606 | L96: 436.9218957 | M96: 398.0073216 | N96: 347.908634 | O96: 497.4919742 | P96: 700.314364 | Q96: 274.305548 | R96: 324.5260608 | S96: 308.6810732 | T96: 351.6956487 | U96: 723.0664981 | V96: 765.8380167 | W96: 347.6118778 | X96: 353.7708692 | Y96: 428.3257827 | Z96: 336.3613832 | AA96: 479.9098673 | AB96: 579.8125296 | AC96: 298.0500491 | AD96: 371.9809717 | AE96: 394.1633511 | AF96: 482.2695973 | AH96: 582.582997 | AI96: 608.6778957 | AJ96: 323.8088371 | AK96: 342.0537382 | AL96: 375.6718041 | AM96: 389.5414803
A97: 95 | B97: Atg18b | C97: 326.7609683 | D97: 289.6365139 | E97: 524.9884757 | F97: 544.4250155 | G97: 538.3743732 | H97: 487.2639034 | I97: 390.8254935 | J97: 376.406094 | K97: 549.2019604 | L97: 540.3627686 | M97: 554.3024342 | N97: 630.7802936 | O97: 312.7614985 | P97: 351.059649 | Q97: 511.5940843 | R97: 540.876768 | S97: 563.4832683 | T97: 471.7354809 | U97: 373.5557324 | V97: 414.6732676 | W97: 440.3083786 | X97: 454.9943261 | Y97: 513.9909392 | Z97: 504.0181475 | AA97: 272.9851675 | AB97: 316.5960479 | AC97: 426.3247537 | AD97: 443.1425489 | AE97: 462.5803058 | AF97: 495.6946611 | AH97: 335.377772 | AI97: 349.6743145 | AJ97: 490.4835306 | AK97: 492.6030001 | AL97: 526.5462641 | AM97: 517.8984973
A98: 96 | B98: fan | C98: 2.193026633 | D98: 2.076247412 | E98: 26.24942379 | F98: 20.98189715 | G98: 12.6975088 | H98: 23.79660924 | I98: 1.079628435 | J98: 0 | K98: 4.104648434 | L98: 8.491414935 | M98: 5.452155091 | N98: 10.18651406 | O98: 1.829014611 | P98: 0.902466964 | Q98: 5.694924872 | R98: 5.102611018 | S98: 2.24495326 | T98: 4.211923937 | U98: 1.71749762 | V98: 1.867897602 | W98: 32.08725026 | X98: 46.01066218 | Y98: 9.759321631 | Z98: 25.14851464 | AA98: 0 | AB98: 1.840674697 | AC98: 13.58202755 | AD98: 34.50258288 | AE98: 21.44412014 | AF98: 21.68664142 | AH98: 1.36383346 | AI98: 1.337457335 | AJ98: 16.34365498 | AK98: 16.16750295 | AL98: 10.31961178 | AM98: 17.00604066
A99: 97 | B99: E(spl)mbeta-HLH | C99: 119.5199515 | D99: 103.8123706 | E99: 48.74892989 | F99: 50.79827731 | G99: 52.05978609 | H99: 56.65859342 | I99: 68.0165914 | J99: 55.64263998 | K99: 25.44882029 | L99: 27.01813843 | M99: 30.89554551 | N99: 26.64165215 | O99: 64.01551138 | P99: 81.22202676 | Q99: 29.42377851 | R99: 32.65671052 | S99: 30.30686901 | T99: 34.74837248 | U99: 97.89736435 | V99: 88.72513608 | W99: 41.00037533 | X99: 42.94328471 | Y99: 50.96534629 | Z99: 45.05775539 | AA99: 91.31888164 | AB99: 97.55575895 | AC99: 26.40949802 | AD99: 59.30131433 | AE99: 41.8670917 | AF99: 53.70025495 | AH99: 88.15366005 | AI99: 85.39158647 | AJ99: 34.20628041 | AK99: 34.93001352 | AL99: 41.21892772 | AM99: 43.36132568
A100: 98 | B100: Spt | C100: 231.3643097 | D100: 224.2347204 | E100: 482.4894086 | F100: 488.1051863 | G100: 573.9273978 | H100: 417.0072476 | I100: 128.4757838 | J100: 113.4673443 | K100: 261.8765701 | L100: 233.1279373 | M100: 263.5208294 | N100: 304.8118437 | O100: 128.0310228 | P100: 88.44176247 | Q100: 272.4072397 | R100: 260.2331619 | S100: 342.3553721 | T100: 246.3975503 | U100: 131.3885679 | V100: 147.5639105 | W100: 324.4377526 | X100: 322.0746353 | Y100: 341.5762571 | Z100: 435.907587 | AA100: 160.2937816 | AB100: 151.8556625 | AC100: 402.9334841 | AD100: 388.1540574 | AE100: 443.1784828 | AF100: 394.4903344 | AH100: 155.9106932 | AI100: 145.11268 | AJ100: 348.828891 | AK100: 344.20232 | AL100: 392.9116679 | AM100: 359.7229126
A101: 99 | B101: CG8516 | C101: 2211.667359 | D101: 1898.728258 | E101: 2514.944793 | F101: 2601.755246 | G101: 2957.2498 | H101: 2330.934533 | I101: 1992.994091 | J101: 1806.749251 | K101: 2609.735474 | L101: 2618.443587 | M101: 2542.521657 | N101: 2867.111918 | O101: 2023.804667 | P101: 1545.925909 | Q101: 2802.852191 | R101: 2490.074177 | S101: 2667.004473 | T101: 2379.737024 | U101: 1619.600256 | V101: 1795.983544 | W101: 1991.192141 | X101: 2213.624081 | Y101: 2430.071086 | Z101: 2547.334962 | AA101: 1732.144319 | AB101: 1510.273589 | AC101: 2663.586514 | AD101: 2361.270516 | AE101: 2580.442456 | AF101: 2316.339843 | AH101: 1916.042138 | AI101: 1711.53211 | AJ101: 2516.462223 | AK101: 2535.565936 | AL101: 2635.457895 | AM101: 2488.291656
A102: 100 | B102: CG13516 | C102: 127.1955447 | D102: 131.8417106 | E102: 96.24788721 | F102: 83.92758859 | G102: 83.80355809 | H102: 105.3849838 | I102: 161.9442652 | J102: 159.2906948 | K102: 110.8255077 | L102: 108.8445005 | M102: 119.0387195 | N102: 123.8053247 | O102: 128.9455301 | P102: 141.6873133 | Q102: 93.01710624 | R102: 92.86752054 | S102: 94.28803692 | T102: 98.98021251 | U102: 158.0097811 | V102: 152.2336545 | W102: 100.7183133 | X102: 97.13362017 | Y102: 86.74952561 | Z102: 94.30692988 | AA102: 130.1779802 | AB102: 152.7759999 | AC102: 106.3925492 | AD102: 83.02184006 | AE102: 92.92452059 | AF102: 113.5966932 | AH102: 141.2546203 | AI102: 147.5658746 | AJ102: 101.4402727 | AK102: 98.58001157 | AL102: 95.36087214 | AM102: 107.2148288
A103: 101 | B103: Sec15 | C103: 1236.867021 | D103: 1352.675189 | E103: 1654.963671 | F103: 1632.170736 | G103: 1809.395004 | H103: 1536.581054 | I103: 1068.832151 | J103: 1001.56752 | K103: 1601.633819 | L103: 1392.592049 | M103: 1437.551559 | N103: 1483.313162 | O103: 1061.742982 | P103: 931.3459068 | Q103: 1567.053494 | R103: 1469.551973 | S103: 1645.55074 | T103: 1386.775956 | U103: 1100.057226 | V103: 1139.417537 | W103: 1267.446385 | X103: 1357.825764 | Y103: 1447.632709 | Z103: 1543.490086 | AA103: 1200.746146 | AB103: 1043.662553 | AC103: 1566.460511 | AD103: 1468.516184 | AE103: 1549.082393 | AF103: 1319.787035 | AH103: 1133.649105 | AI103: 1093.733741 | AJ103: 1531.511576 | AK103: 1485.144635 | AL103: 1577.842481 | AM103: 1453.989459
A104: 102 | B104: CG17233 | C104: 2516.498061 | D104: 1865.508299 | E104: 3513.67287 | F104: 3926.927698 | G104: 4441.588579 | H104: 3391.583402 | I104: 1547.107547 | J104: 1273.234527 | K104: 2480.849513 | L104: 2575.986512 | M104: 2516.169574 | N104: 2481.59154 | O104: 1128.502015 | P104: 914.1990345 | Q104: 2377.631134 | R104: 2550.284987 | S104: 2825.273678 | T104: 2416.591359 | U104: 1625.611497 | V104: 1709.126305 | W104: 3084.832587 | X104: 3399.676706 | Y104: 3667.336195 | Z104: 3421.245845 | AA104: 1698.142608 | AB104: 1585.741252 | AC104: 3594.709959 | AD104: 3679.916105 | AE104: 4187.730318 | AF104: 3339.742779 | AH104: 1703.172346 | AI104: 1469.561883 | AJ104: 3010.339213 | AK104: 3112.017578 | AL104: 3527.619669 | AM104: 3010.150985
A105: 103 | B105: CG43658 | C105: 1685.340967 | D105: 1060.962427 | E105: 2063.704699 | F105: 2389.727654 | G105: 2378.243399 | H105: 2069.171832 | I105: 1487.727983 | J105: 1235.048401 | K105: 1866.794108 | L105: 2032.535957 | M105: 2127.249178 | N105: 1935.437671 | O105: 1033.393255 | P105: 866.3682854 | Q105: 1641.087517 | R105: 1671.61537 | S105: 1742.08373 | T105: 1671.080822 | U105: 1345.659385 | V105: 1344.886273 | W105: 2092.801767 | X105: 2098.086196 | Y105: 2469.108373 | Z105: 2264.414172 | AA105: 1277.492866 | AB105: 1401.673782 | AC105: 2212.361377 | AD105: 2285.796116 | AE105: 2670.303531 | AF105: 2327.699513 | AH105: 1365.922891 | AI105: 1181.787834 | AJ105: 1975.349893 | AK105: 2073.702854 | AL105: 2277.397642 | AM105: 2053.560802
A106: 104 | B106: CG9663 | C106: 530.7124451 | D106: 493.1087602 | E106: 637.4860062 | F106: 659.2732946 | G106: 745.3437667 | H106: 687.8353241 | I106: 517.1420203 | J106: 590.2483966 | K106: 679.7297806 | L106: 723.3141631 | M106: 686.0628489 | N106: 736.5633242 | O106: 445.3650578 | P106: 543.2851123 | Q106: 648.2722813 | R106: 626.6006331 | S106: 656.6488285 | T106: 656.0071531 | U106: 522.1192765 | V106: 618.2741061 | W106: 637.2884426 | X106: 649.2615664 | Y106: 661.4651327 | Z106: 638.1435589 | AA106: 507.1112363 | AB106: 485.9381201 | AC106: 635.3370666 | AD106: 650.1580461 | AE106: 657.6196842 | AF106: 668.1550952 | AH106: 504.4900072 | AI106: 546.1708991 | AJ106: 647.6227155 | AK106: 660.6970496 | AL106: 681.4280522 | AM106: 677.3408911
A107: 105 | B107: Hsp27 | C107: 14932.31834 | D107: 14674.9167 | E107: 19305.82621 | F107: 19020.64192 | G107: 21178.17493 | H107: 26849.37425 | I107: 12594.94532 | J107: 12492.31819 | K107: 19395.28478 | L107: 18434.08988 | M107: 22591.00462 | N107: 21310.18741 | O107: 14268.14298 | P107: 12529.85133 | Q107: 22187.4273 | R107: 20984.99807 | S107: 28102.32491 | T107: 28062.99621 | U107: 9219.527225 | V107: 10643.28053 | W107: 17696.11852 | X107: 18077.07794 | Y107: 33093.85965 | Z107: 31493.27531 | AA107: 11117.5881 | AB107: 9334.06139 | AC107: 18980.8835 | AD107: 19731.16458 | AE107: 34395.34755 | AF107: 34524.10045 | AH107: 12426.50439 | AI107: 11934.88563 | AJ107: 19513.10806 | AK107: 19263.83222 | AL107: 27872.14233 | AM107: 28447.98672
A108: 106 | B108: raptor | C108: 2312.546584 | D108: 1220.833478 | E108: 2524.944574 | F108: 2925.318187 | G108: 3131.20567 | H108: 2366.062861 | I108: 2760.609908 | J108: 1868.938084 | K108: 3353.49777 | L108: 3166.525824 | M108: 3612.96144 | N108: 3006.588803 | O108: 1420.229845 | P108: 1380.774455 | Q108: 2645.292603 | R108: 3153.413609 | S108: 2988.032789 | T108: 2870.426163 | U108: 1663.396445 | V108: 1724.069486 | W108: 2468.044332 | X108: 2438.565096 | Y108: 3503.596465 | Z108: 3428.580829 | AA108: 1511.618934 | AB108: 1603.227661 | AC108: 2952.581878 | AD108: 2916.546459 | AE108: 3170.666335 | AF108: 3014.443158 | AH108: 1933.680343 | AI108: 1559.568633 | AJ108: 2788.872232 | AK108: 2831.552565 | AL108: 3281.29254 | AM108: 2937.220363
A109: 107 | B109: CG17658 | C109: 365.1389343 | D109: 313.5133591 | E109: 556.2377897 | F109: 472.644841 | G109: 604.401419 | H109: 453.2687474 | I109: 299.0570765 | J109: 240.0270744 | K109: 502.4089683 | L109: 491.7301194 | M109: 517.9547336 | N109: 650.3697437 | O109: 308.188962 | P109: 217.4945383 | Q109: 518.2381633 | R109: 556.184601 | S109: 631.9543427 | T109: 394.8678691 | U109: 231.0034299 | V109: 297.9296675 | W109: 319.0898776 | X109: 386.4895624 | Y109: 399.0478178 | Z109: 511.3531309 | AA109: 281.7284646 | AB109: 212.5979275 | AC109: 479.8983068 | AD109: 445.2989603 | AE109: 489.1301688 | AF109: 357.3132348 | AH109: 297.0233735 | AI109: 256.3125134 | AJ109: 475.1746212 | AK109: 456.3202616 | AL109: 528.4976964 | AM109: 473.4345452
A110: 108 | B110: CG44837 | C110: 36.18493944 | D110: 34.25808229 | E110: 21.24953354 | F110: 22.08620752 | G110: 20.31601408 | H110: 22.66343737 | I110: 70.17584827 | J110: 69.82605801 | K110: 24.6278906 | L110: 39.36928742 | M110: 33.62162306 | N110: 31.34312018 | O110: 49.3833945 | P110: 66.78255533 | Q110: 23.72885363 | R110: 24.49253289 | S110: 30.30686901 | T110: 36.85433445 | U110: 65.26490957 | V110: 55.10297925 | W110: 35.65250029 | X110: 27.60639731 | Y110: 41.20602466 | Z110: 25.14851464 | AA110: 45.65944082 | AB110: 56.14057827 | AC110: 19.61848424 | AD110: 25.87693716 | AE110: 27.5710116 | AF110: 38.20979679 | AH110: 53.33370652 | AI110: 56.42205063 | AJ110: 24.97545246 | AK110: 28.09106662 | AL110: 30.60430848 | AM110: 30.84384068
A111: 109 | B111: ERR | C111: 873.9211131 | D111: 873.0620366 | E111: 1043.727089 | F111: 1084.432789 | G111: 1128.808532 | H111: 1044.784463 | I111: 755.7399045 | J111: 745.1749628 | K111: 1053.252788 | L111: 958.7579408 | M111: 965.9401436 | N111: 934.8085593 | O111: 879.7560279 | P111: 857.3436158 | Q111: 1227.25631 | R111: 1144.00539 | S111: 1186.457798 | T111: 1180.391683 | U111: 718.772754 | V111: 708.8671398 | W111: 939.4433826 | X111: 937.5950494 | Y111: 950.9916745 | Z111: 999.6534567 | AA111: 764.5527644 | AB111: 693.9343609 | AC111: 1062.416377 | AD111: 987.6364349 | AE111: 1008.894795 | AF111: 969.7026807 | AH111: 798.5485128 | AI111: 775.6764232 | AJ111: 1065.219189 | AK111: 1054.46136 | AL111: 1048.218589 | AM111: 1025.868169
A112: 110 | B112: CG1492 | C112: 231.3643097 | D112: 207.6247412 | E112: 423.7406982 | F112: 447.2457024 | G112: 537.1046223 | H112: 464.600466 | I112: 345.4810992 | J112: 319.6724218 | K112: 682.1925697 | L112: 649.2072691 | M112: 591.5588273 | N112: 734.9961682 | O112: 336.5386884 | P112: 276.154891 | Q112: 941.5609122 | R112: 659.2573436 | S112: 717.2625666 | T112: 686.5436017 | U112: 184.6309942 | V112: 182.1200162 | W112: 370.786003 | X112: 362.9730017 | Y112: 471.7005455 | Z112: 473.630359 | AA112: 204.981745 | AB112: 184.9878071 | AC112: 450.4705805 | AD112: 402.1707317 | AE112: 426.8401056 | AF112: 426.503948 | AH112: 260.5993673 | AI112: 234.1119754 | AJ112: 573.7501527 | AK112: 571.8540934 | AL112: 548.8933335 | AM112: 557.2549086
A113: 111 | B113: swm | C113: 4350.964839 | D113: 3926.183855 | E113: 4981.140656 | F113: 4850.131172 | G113: 5481.51455 | H113: 4613.142676 | I113: 4177.082415 | J113: 3745.513393 | K113: 4729.375925 | L113: 4681.085469 | M113: 4781.540015 | N113: 4724.975367 | O113: 3814.409971 | P113: 3048.533404 | Q113: 4692.618094 | R113: 4559.693206 | S113: 4899.61049 | T113: 4335.122712 | U113: 3399.786539 | V113: 3812.379005 | W113: 4158.864159 | X113: 4496.775384 | Y113: 4705.077395 | Z113: 5009.793686 | AA113: 3844.136326 | AB113: 3269.038262 | AC113: 5060.814377 | AD113: 4774.294906 | AE113: 4873.942163 | AF113: 4546.965818 | AH113: 3917.276018 | AI113: 3560.329584 | AJ113: 4724.562642 | AK113: 4688.702654 | AL113: 4948.336922 | AM113: 4646.000052
A114: 112 | B114: CG31030 | C114: 146.9327844 | D114: 170.2522877 | E114: 98.74783234 | F114: 97.17931311 | G114: 74.91530193 | H114: 140.5133117 | I114: 240.757141 | J114: 273.8490713 | K114: 138.7371171 | L114: 144.3540539 | M114: 134.4864922 | N114: 121.4545907 | O114: 257.8910602 | P114: 309.5461686 | Q114: 158.5087423 | R114: 171.4477302 | S114: 118.9825228 | T114: 150.5762807 | U114: 234.4384251 | V114: 222.2798146 | W114: 123.8924385 | X114: 137.0095274 | Y114: 127.9555503 | Z114: 112.1204611 | AA114: 216.6394745 | AB114: 239.2877106 | AC114: 135.0657184 | AD114: 101.3513372 | AE114: 99.05141206 | AF114: 118.7601792 | AH114: 219.331777 | AI114: 243.0430106 | AJ114: 130.9903697 | AK114: 131.8000532 | AL114: 111.0782559 | AM114: 128.6849647
A115: 113 | B115: Klp68D | C115: 1255.507747 | D115: 1240.557828 | E115: 1541.216168 | F115: 1561.494872 | G115: 1832.25052 | H115: 1508.251757 | I115: 1164.919081 | J115: 1196.862276 | K115: 1731.340709 | L115: 1469.78673 | M115: 1523.877348 | N115: 1637.678029 | O115: 1209.893165 | P115: 1145.230577 | Q115: 1942.918535 | R115: 1724.682524 | S115: 1868.923589 | T115: 1681.610632 | U115: 1029.639823 | V115: 1130.078049 | W115: 1245.163573 | X115: 1327.151989 | Y115: 1471.488828 | Z115: 1671.328368 | AA115: 1164.80148 | AB115: 1000.406698 | AC115: 1628.334192 | AD115: 1470.672595 | AE115: 1570.526513 | AF115: 1418.925967 | AH115: 1164.952259 | AI115: 1142.627086 | AJ115: 1617.794635 | AK115: 1569.539581 | AL115: 1653.41336 | AM115: 1583.558951
A116: 114 | B116: CG31195 | C116: 2573.516753 | D116: 2246.499699 | E116: 3182.430141 | F116: 3351.581992 | G116: 4016.222034 | H116: 3222.740794 | I116: 1845.084995 | J116: 1812.204412 | K116: 2705.784248 | L116: 2401.526533 | M116: 2557.96943 | N116: 2506.666036 | O116: 1928.695907 | P116: 1618.123266 | Q116: 2878.784523 | R116: 2679.891307 | S116: 3053.136434 | T116: 3029.426291 | U116: 1830.852463 | V116: 1837.077291 | W116: 2502.80552 | X116: 2617.495449 | Y116: 2901.771632 | Z116: 2990.577532 | AA116: 2145.993719 | AB116: 1805.701878 | AC116: 2982.764162 | AD116: 2945.658013 | AE116: 3400.424765 | AF116: 2845.080815 | AH116: 2064.828768 | AI116: 1863.921309 | AJ116: 2850.513719 | AK116: 2823.492546 | AL116: 3185.904859 | AM116: 2918.898294
A117: 115 | B117: fz4 | C117: 2368.468763 | D117: 2272.452792 | E117: 2983.684504 | F117: 3014.767327 | G117: 3598.473994 | H117: 2922.450249 | I117: 1850.483137 | J117: 1850.390537 | K117: 2520.254138 | L117: 2368.33282 | M117: 2479.821874 | N117: 2470.621448 | O117: 1880.22702 | P117: 1650.612077 | Q117: 2798.10642 | R117: 2619.680497 | S117: 2878.030079 | T117: 2655.618042 | U117: 1706.333886 | V117: 1753.955848 | W117: 2198.867955 | X117: 2500.935105 | Y117: 2679.475972 | Z117: 2740.14024 | AA117: 1965.29891 | AB117: 1728.393541 | AC117: 2772.997292 | AD117: 2608.179625 | AE117: 3065.488031 | AF117: 2569.35066 | AH117: 1954.162343 | AI117: 1851.160959 | AJ117: 2654.782062 | AK117: 2630.614363 | AL117: 2940.25799 | AM117: 2671.636128
A118: 116 | B118: e(y)3 | C118: 8648.200526 | D118: 4923.820737 | E118: 8721.05856 | F118: 10277.81667 | G118: 11083.65543 | H118: 8179.234546 | I118: 8858.351309 | J118: 7293.549965 | K118: 9965.265468 | L118: 10467.59877 | M118: 9862.039867 | N118: 9690.509181 | O118: 7141.387549 | P118: 4955.446099 | Q118: 9894.931965 | R118: 8862.214817 | S118: 8382.655473 | T118: 8783.96737 | U118: 6074.789082 | V118: 6591.810636 | W118: 9630.63164 | X118: 9836.057116 | Y118: 11087.67374 | Z118: 11258.15172 | AA118: 5641.369635 | AB118: 5984.953778 | AC118: 10741.87468 | AD118: 10982.60341 | AE118: 11670.7071 | AF118: 10246.42172 | AH118: 7272.81962 | AI118: 5949.916243 | AJ118: 9790.752462 | AK118: 10202.57075 | AL118: 10417.34632 | AM118: 9631.656908
A119: 117 | B119: Coq2 | C119: 585.5381109 | D119: 520.0999766 | E119: 899.9802441 | F119: 828.2327822 | G119: 1024.68896 | H119: 754.6924644 | I119: 561.4067862 | J119: 600.067686 | K119: 1009.743515 | L119: 927.8800683 | M119: 997.7443816 | N119: 1006.114158 | O119: 651.1292015 | P119: 488.2346275 | Q119: 1140.883283 | R119: 960.3113937 | S119: 1048.393172 | T119: 994.0140491 | U119: 422.5044146 | V119: 405.3337796 | W119: 557.070317 | X119: 710.609116 | Y119: 734.1178604 | Z119: 781.6996632 | AA119: 463.3947505 | AB119: 390.2230358 | AC119: 753.8025292 | AD119: 736.4145033 | AE119: 826.1091996 | AF119: 658.8608203 | AH119: 536.7946527 | AI119: 480.7918211 | AJ119: 872.2959775 | AK119: 841.5737959 | AL119: 926.2107149 | AM119: 839.0762309
A120: 118 | B120: Clamp | C120: 3089.974525 | D120: 2772.828418 | E120: 4174.908354 | F120: 4146.685463 | G120: 5235.182879 | H120: 4052.222601 | I120: 3033.755902 | J120: 2773.403742 | K120: 4724.450347 | L120: 4537.503362 | M120: 4686.1273 | N120: 5202.174371 | O120: 3210.83515 | P120: 2712.815694 | Q120: 5363.670075 | R120: 4965.861043 | S120: 5442.889179 | T120: 4758.421067 | U120: 2447.434109 | V120: 2711.253369 | W120: 3140.985275 | X120: 3397.631788 | Y120: 3875.535056 | Z120: 4017.475213 | AA120: 2640.475748 | AB120: 2138.863998 | AC120: 3967.461159 | AD120: 3500.933957 | AE120: 4054.981003 | AF120: 3437.849014 | AH120: 2884.495087 | AI120: 2621.833044 | AJ120: 4274.295042 | AK120: 4231.261067 | AL120: 4658.943084 | AM120: 4293.628453
A121: 119 | B121: asRNA:CR44321 | C121: 9.868619847 | D121: 3.114371117 | E121: 27.49939635 | F121: 18.7732764 | G121: 16.50676144 | H121: 30.59564045 | I121: 8.63702748 | J121: 8.728257251 | K121: 26.26974998 | L121: 23.93035118 | M121: 31.80423803 | N121: 25.85807415 | O121: 10.97408767 | P121: 9.02466964 | Q121: 27.52547021 | R121: 30.61566611 | S121: 33.6742989 | T121: 34.74837248 | U121: 14.59872977 | V121: 15.87712961 | W121: 18.71756265 | X121: 26.58393815 | Y121: 18.43427419 | Z121: 29.33993374 | AA121: 7.771819714 | AB121: 11.04404818 | AC121: 32.44595471 | AD121: 24.79873145 | AE121: 40.84594312 | AF121: 52.66755774 | AH121: 10.3700569 | AI121: 9.557695161 | AJ121: 26.49162678 | AK121: 24.27852303 | AL121: 28.25310314 | AM121: 34.64191571
A122: 120 | B122: ihog | C122: 1017.564358 | D122: 900.0532529 | E122: 1204.973549 | F122: 1335.111245 | G122: 1594.807105 | H122: 1193.229977 | I122: 896.091601 | J122: 792.0893455 | K122: 1118.106233 | L122: 997.3552814 | M122: 1007.739999 | N122: 1084.471958 | O122: 845.9192576 | P122: 657.8984167 | Q122: 1175.052832 | R122: 1169.518445 | S122: 1249.316489 | T122: 1147.749273 | U122: 760.8514457 | V122: 811.6015079 | W122: 1026.792008 | X122: 1014.279486 | Y122: 1115.815773 | Z122: 1241.70791 | AA122: 800.4974306 | AB122: 749.1546018 | AC122: 1223.891594 | AD122: 1188.182698 | AE122: 1388.762066 | AF122: 1160.751665 | AH122: 864.1848185 | AI122: 782.159425 | AJ122: 1149.763243 | AK122: 1151.640592 | AL122: 1271.288287 | AM122: 1165.582157
A123: 121 | B123: Ptpmeg | C123: 2727.028618 | D123: 2607.766749 | E123: 3032.433433 | F123: 3031.331983 | G123: 2897.571509 | H123: 2811.399406 | I123: 2649.408179 | J123: 2743.945873 | K123: 2931.539911 | L123: 2816.833918 | M123: 2884.190043 | N123: 2789.537696 | O123: 2601.773284 | P123: 2246.240273 | Q123: 3034.445803 | R123: 2810.518149 | S123: 2839.865874 | T123: 2894.644725 | U123: 2435.411625 | V123: 2470.294578 | W123: 2724.742334 | X123: 2814.830067 | Y123: 2957.074454 | Z123: 2882.64849 | AA123: 2333.488869 | AB123: 2376.311034 | AC123: 2974.464034 | AD123: 2958.596482 | AE123: 2972.56351 | AF123: 2812.034504 | AH123: 2549.422115 | AI123: 2488.911702 | AJ123: 2939.525103 | AK123: 2916.363614 | AL123: 2910.253078 | AM123: 2838.052964
A124: 122 | B124: Sirt2 | C124: 325.6644549 | D124: 322.8564725 | E124: 712.4843599 | F124: 725.5319172 | G124: 845.6540862 | H124: 678.7699492 | I124: 518.2216488 | J124: 514.9671778 | K124: 1077.880679 | L124: 1025.145367 | M124: 972.3009912 | N124: 1181.635631 | O124: 550.5333979 | P124: 581.1887248 | Q124: 1469.290617 | R124: 1148.087479 | S124: 1219.00962 | T124: 1233.040732 | U124: 407.9056848 | V124: 429.6164484 | W124: 574.0052546 | X124: 659.486158 | Y124: 789.420683 | Z124: 824.6617091 | AA124: 422.592697 | AB124: 355.2502166 | AC124: 824.7308953 | AD124: 670.6439547 | AE124: 754.6287991 | AF124: 767.2940274 | AH124: 444.9835767 | AI124: 440.775808 | AJ124: 931.6783611 | AK124: 923.7408101 | AL124: 916.2028359 | AM124: 937.0804098
A125: 123 | B125: dx | C125: 2516.498061 | D125: 2018.112484 | E125: 3429.924708 | F125: 3471.951823 | G125: 3992.096767 | H125: 3251.07009 | I125: 1526.594607 | J125: 1139.037571 | K125: 2574.435498 | L125: 2636.970311 | M125: 2819.672874 | N125: 2923.529535 | O125: 1267.507125 | P125: 971.9569202 | Q125: 2213.427467 | R125: 2500.279399 | S125: 2904.969518 | T125: 2214.41901 | U125: 1770.740046 | V125: 1944.481403 | W125: 2620.458771 | X125: 2974.333695 | Y125: 3235.757305 | Z125: 3166.617134 | AA125: 1778.775237 | AB125: 1592.183613 | AC125: 3474.735382 | AD125: 3296.074871 | AE125: 3649.585018 | AF125: 3040.260588 | AH125: 1772.023015 | AI125: 1533.154398 | AJ125: 2862.596365 | AK125: 2883.508751 | AL125: 3320.416297 | AM125: 2919.179271
A126: 124 | B126: gfzf | C126: 1712.7538 | D126: 1760.657805 | E126: 1917.457909 | F126: 2090.459542 | G126: 2271.584325 | H126: 1941.123411 | I126: 1472.613185 | J126: 1388.883935 | K126: 1782.23835 | L126: 1718.353604 | M126: 1744.689629 | N126: 1897.825927 | O126: 1544.602839 | P126: 1188.548992 | Q126: 2019.800021 | R126: 1949.197409 | S126: 2143.930363 | T126: 1887.994905 | U126: 1373.998096 | V126: 1415.866382 | W126: 1777.277139 | X126: 1830.201896 | Y126: 1842.34305 | Z126: 1999.306913 | AA126: 1542.706213 | AB126: 1397.992433 | AC126: 2056.922617 | AD126: 2010.853658 | AE126: 2140.327419 | AF126: 1900.162867 | AH126: 1529.334827 | AI126: 1430.389909 | AJ126: 1910.739207 | AK126: 1932.562585 | AL126: 2028.574957 | AM126: 1925.282805
A127: 125 | B127: Pits | C127: 1435.335931 | D127: 1187.613519 | E127: 2338.698662 | F127: 2652.553524 | G127: 2625.84482 | H127: 2528.106438 | I127: 760.0584182 | J127: 573.8829143 | K127: 1362.74328 | L127: 1625.719987 | M127: 1441.186329 | N127: 1698.797114 | O127: 515.7821203 | P127: 452.1359489 | Q127: 1236.747851 | R127: 1406.279597 | S127: 1621.97873 | T127: 1162.491007 | U127: 916.2849803 | V127: 907.7982344 | W127: 1801.342577 | X127: 2090.928982 | Y127: 1603.781855 | Z127: 1491.097347 | AA127: 768.4386742 | AB127: 783.2070837 | AC127: 1884.883601 | AD127: 2166.115281 | AE127: 2600.865428 | AF127: 1653.348234 | AH127: 879.1800248 | AI127: 780.9275401 | AJ127: 1724.883194 | AK127: 1840.249508 | AL127: 1978.731432 | AM127: 1706.768028
A128: 126 | B128: OS9 | C128: 157.8979175 | D128: 210.7391123 | E128: 102.49775 | F128: 90.55345085 | G128: 92.69181425 | H128: 139.3801398 | I128: 249.3941685 | J128: 285.850425 | K128: 162.544078 | L128: 176.77582 | M128: 135.3951848 | N128: 168.469271 | O128: 276.1812063 | P128: 343.8399133 | Q128: 149.0172008 | R128: 147.9757195 | S128: 138.0646255 | T128: 183.2186912 | U128: 293.692093 | V128: 240.0248418 | W128: 175.5885639 | X128: 162.5710064 | Y128: 125.7868121 | Z128: 148.7953783 | AA128: 234.1260689 | AB128: 273.3401925 | AC128: 166.002559 | AD128: 156.3398287 | AE128: 148.0665438 | AF128: 175.5585258 | AH128: 242.2582908 | AI128: 270.758897 | AJ128: 151.1300303 | AK128: 151.5875189 | AL128: 128.0009961 | AM128: 163.0844012
A129: 127 | B129: beta4GalNAcTA | C129: 819.0954473 | D129: 817.0033565 | E129: 998.7280764 | F129: 972.8974414 | G129: 1144.045543 | H129: 922.4019009 | I129: 746.0232485 | J129: 780.0879918 | K129: 953.0993663 | L129: 876.1596319 | M129: 1003.196537 | N129: 1037.457278 | O129: 683.1369572 | P129: 647.0688132 | Q129: 1021.28986 | R129: 938.8804274 | S129: 1107.884434 | T129: 899.2457605 | U129: 711.9027635 | V129: 768.6398631 | W129: 856.5513194 | X129: 874.2025815 | Y129: 923.8824477 | Z129: 948.3085727 | AA129: 721.807756 | AB129: 647.9174934 | AC129: 935.6507869 | AD129: 842.0786634 | AE129: 1030.338915 | AF129: 847.8444099 | AH129: 736.3932345 | AI129: 732.1435036 | AJ129: 953.0638819 | AK129: 932.509808 | AL129: 1041.869575 | AM129: 931.0515844
A130: 128 | B130: CG8475 | C130: 2739.090264 | D130: 2493.573141 | E130: 3252.428604 | F130: 3315.139749 | G130: 3533.716699 | H130: 3277.133043 | I130: 2704.46923 | J130: 2730.853487 | K130: 3928.969481 | L130: 3452.918091 | M130: 3711.100232 | N130: 3769.793779 | O130: 2938.311973 | P130: 2737.182302 | Q130: 4477.160104 | R130: 4165.771635 | S130: 4089.182363 | T130: 4362.500217 | U130: 2718.798733 | V130: 2709.385471 | W130: 3064.3324 | X130: 3118.500437 | Y130: 3471.065393 | Z130: 3830.957063 | AA130: 2780.368503 | AB130: 2483.990504 | AC130: 3437.762085 | AD130: 3196.879945 | AE130: 3810.926493 | AF130: 3852.993293 | AH130: 2776.20774 | AI130: 2630.996981 | AJ130: 3632.130535 | AK130: 3549.462486 | AL130: 3723.198236 | AM130: 3818.675479
A131: 129 | B131: dome | C131: 3171.116511 | D131: 2175.907287 | E131: 3309.927342 | F131: 3769.011314 | G131: 3656.882535 | H131: 3009.704483 | I131: 3400.82957 | J131: 3006.884623 | K131: 3945.388075 | L131: 4012.57953 | M131: 3960.990673 | N131: 4084.008559 | O131: 3107.495824 | P131: 2262.484679 | Q131: 3976.955869 | R131: 3607.54599 | S131: 3458.350497 | T131: 3575.923422 | U131: 2628.630108 | V131: 2809.317993 | W131: 3328.160902 | X131: 3423.193267 | Y131: 3923.247296 | Z131: 4003.853101 | AA131: 2389.834562 | AB131: 2522.644673 | AC131: 4046.689654 | AD131: 3987.204734 | AE131: 3929.379728 | AF131: 3688.794436 | AH131: 2939.581315 | AI131: 2555.447851 | AJ131: 3721.424368 | AK131: 3826.679454 | AL131: 3785.770146 | AM131: 3672.4568
A132: 130 | B132: brat | C132: 8588.988807 | D132: 7838.872102 | E132: 9818.534468 | F132: 10857.57962 | G132: 12093.10738 | H132: 10021.772 | I132: 7186.006863 | J132: 6763.308337 | K132: 9477.633234 | L132: 8871.984713 | M132: 9117.820697 | N132: 9451.51789 | O132: 7255.700962 | P132: 5385.922841 | Q132: 10231.88169 | R132: 9548.005738 | S132: 10353.72443 | T132: 9296.769109 | U132: 6353.882446 | V132: 6632.904383 | W132: 7503.068686 | X132: 8431.198231 | Y132: 9311.477205 | Z132: 9580.536221 | AA132: 6347.633752 | AB132: 6352.16838 | AC132: 9348.962299 | AD132: 8969.593343 | AE132: 10918.1206 | AF132: 8770.697409 | AH132: =AVERAGE(C132, I132, O132, U132, AA132) -> 7146.442566 | AI132: 6594.635209 | AJ132: 9276.016075 | AK132: =AVERAGE(F132, L132, Q132, W132, AC132) -> 9362.695401 | AL132: =AVERAGE(G132, M132, S132, Y132, AE132) -> 10358.85006 | AM132: 9424.258527
A133: 131 | B133: Abl | C133: 3542.834525 | D133: 2620.224233 | E133: 3651.169851 | F133: 4137.85098 | G133: 3992.096767 | H133: 3194.411497 | I133: 3183.824255 | J133: 3121.442999 | K133: 3620.299919 | L133: 4034.965988 | M133: 3640.222216 | N133: 4022.889475 | O133: 3246.500935 | P133: 2286.851287 | Q133: 4071.871283 | R133: 3551.417269 | S133: 3490.902319 | T133: 3294.777499 | U133: 2942.073423 | V133: 3064.286015 | W133: 3501.075528 | X133: 3905.79399 | Y133: 3887.463116 | Z133: 3910.594026 | AA133: 2772.596683 | AB133: 2894.460961 | AC133: 4165.155116 | AD133: 4041.11502 | AE133: 4268.401056 | AF133: 3669.173189 | AH133: 3137.565964 | AI133: 2797.453099 | AJ133: 3801.91434 | AK133: 3982.183779 | AL133: 3855.817095 | AM133: 3618.369137
A134: 132 | B134: CG12772 | C134: 421.0611135 | D134: 397.6013793 | E134: 682.4850184 | F134: 700.1327785 | G134: 780.8967913 | H134: 657.2396837 | I134: 579.7604696 | J134: 605.5228468 | K134: 931.7551945 | L134: 951.0384727 | M134: 930.5011355 | N134: 992.0097536 | O134: 554.1914271 | P134: 520.7234382 | Q134: 1168.408753 | R134: 955.2087827 | S134: 977.6771447 | T134: 979.2723153 | U134: 413.9169265 | V134: 405.3337796 | W134: 598.9620048 | X134: 605.2958225 | Y134: 752.5521346 | Z134: 845.6188046 | AA134: 390.5339406 | AB134: 380.099325 | AC134: 743.2387299 | AD134: 642.6106061 | AE134: 685.1906958 | AF134: 673.3185813 | AH134: 471.8927755 | AI134: 461.8561538 | AJ134: 824.9699401 | AK134: 832.3561478 | AL134: 825.3635804 | AM134: 829.4918277
A135: 133 | B135: sotv | C135: 768.6558347 | D135: 725.6484703 | E135: 1028.727418 | F135: 1055.72072 | G135: 1212.612091 | H135: 968.8619475 | I135: 463.1605986 | J135: 547.6981425 | K135: 836.5273508 | L135: 714.0508013 | M135: 736.9496298 | N135: 765.5557103 | O135: 583.4556609 | P135: 508.9913677 | Q135: 909.2896712 | R135: 843.9718625 | S135: 926.0432197 | T135: 883.4510457 | U135: 538.4355039 | V135: 599.5951301 | W135: 792.3768189 | X135: 814.8999503 | Y135: 844.7235056 | Z135: 909.537946 | AA135: 643.1180813 | AB135: 563.2464574 | AC135: 886.6045763 | AD135: 846.3914863 | AE135: 947.6258803 | AF135: 823.0596768 | AH135: 599.3651359 | AI135: 589.0359136 | AJ135: 890.705167 | AK135: 871.6085175 | AL135: 933.5908652 | AM135: 870.0932653
A136: 134 | B136: Ugt307A1 | C136: 12.06164648 | D136: 15.57185559 | E136: 3.749917684 | F136: 4.417241505 | G136: 5.079003521 | H136: 4.532687474 | I136: 25.91108244 | J136: 15.27445019 | K136: 8.209296868 | L136: 5.403627686 | M136: 6.360847606 | N136: 10.18651406 | O136: 12.80310228 | P136: 18.04933928 | Q136: 8.542387308 | R136: 8.16417763 | S136: 6.73485978 | T136: 6.317885905 | U136: 22.32746906 | V136: 24.28266882 | W136: 8.021812565 | X136: 7.157214118 | Y136: 10.8436907 | Z136: 9.430692988 | AA136: 14.57216196 | AB136: 16.56607228 | AC136: 8.300127949 | AD136: 1.078205715 | AE136: 4.084594312 | AF136: 5.163486053 | AH136: 17.53509244 | AI136: 17.94887723 | AJ136: 7.364708475 | AK136: 6.937039402 | AL136: 6.620599184 | AM136: 7.126253295
A137: 135 | B137: CG3711 | C137: 1209.454188 | D137: 960.2644279 | E137: 1296.221546 | F137: 1256.705208 | G137: 1286.257642 | H137: 1223.825618 | I137: 1154.122797 | J137: 1039.753645 | K137: 1289.680538 | L137: 1318.485155 | M137: 1320.330224 | N137: 1348.537746 | O137: 1037.051284 | P137: 875.392955 | Q137: 1338.307345 | R137: 1290.960588 | S137: 1404.218264 | T137: 1227.775828 | U137: 1051.108544 | V137: 1044.154759 | W137: 1142.662634 | X137: 1112.435566 | Y137: 1276.302395 | Z137: 1385.264014 | AA137: 1068.625211 | AB137: 994.8846739 | AC137: 1299.347303 | AD137: 1196.808344 | AE137: 1350.979569 | AF137: 1280.544541 | AH137: 1104.072405 | AI137: 982.8900922 | AJ137: 1273.243873 | AK137: 1271.101529 | AL137: 1327.617619 | AM137: 1293.189549
A138: 136 | B138: CG5776 | C138: 1801.571379 | D138: 1565.490548 | E138: 2214.951378 | F138: 2129.110405 | G138: 2500.139483 | H138: 1968.319535 | I138: 1496.365011 | J138: 1587.451788 | K138: 2284.647318 | L138: 2069.589404 | M138: 2114.527483 | N138: 2295.883553 | O138: 1732.076837 | P138: 1460.191548 | Q138: 2535.190722 | R138: 2327.811147 | S138: 2409.957325 | T138: 2293.392584 | U138: 1456.437982 | V138: 1565.29819 | W138: 1618.623513 | X138: 1709.551715 | Y138: 1942.105004 | Z138: 2041.221105 | AA138: 1513.561889 | AB138: 1292.153637 | AC138: 2044.095147 | AD138: 1871.765121 | AE138: 2279.203626 | AF138: 1988.974828 | AH138: 1600.002619 | AI138: 1494.117142 | AJ138: 2139.501616 | AK138: 2079.321838 | AL138: 2249.186584 | AM138: 2117.558321
A139: 137 | B139: ATP7 | C139: 1607.488522 | D139: 1191.766014 | E139: 2042.455165 | F139: 2137.944888 | G139: 2368.085391 | H139: 2138.295316 | I139: 2063.169939 | J139: 1772.927254 | K139: 2864.223677 | L139: 2633.882523 | M139: 2799.681639 | N139: 2729.202189 | O139: 1865.594903 | P139: 1462.898949 | Q139: 2835.123432 | R139: 2583.96222 | S139: 2680.474192 | T139: 2685.10151 | U139: 1454.720484 | V139: 1574.637678 | W139: 1828.973265 | X139: 1913.021088 | Y139: 2202.353581 | Z139: 2313.663346 | AA139: 1415.442665 | AB139: 1393.390746 | AC139: 2259.143916 | AD139: 2091.719087 | AE139: 2417.058684 | AF139: 2195.51427 | AH139: 1681.283303 | AI139: 1479.124128 | AJ139: 2365.983891 | AK139: 2339.013605 | AL139: 2493.530698 | AM139: 2412.355326
A140: 138 | B140: lncRNA:CR43650 | C140: 185.3107505 | D140: 149.4898136 | E140: 51.24887501 | F140: 48.58965655 | G140: 43.17152993 | H140: 53.25907782 | I140: 70.17584827 | J140: 58.91573644 | K140: 51.71857027 | L140: 55.58017048 | M140: 45.43462576 | N140: 64.25339636 | O140: 74.98959905 | P140: 67.6850223 | Q140: 42.71193654 | R140: 43.88245476 | S140: 49.38897172 | T140: 66.337802 | U140: 90.16862506 | V140: 88.72513608 | W140: 57.04400046 | X140: 47.03312134 | Y140: 56.38719164 | Z140: 37.72277195 | AA140: 92.29035911 | AB140: 86.51171077 | AC140: 40.74608266 | AD140: 38.81540574 | AE140: 64.33236041 | AF140: 49.56946611 | AH140: 102.5870364 | AI140: 90.26548384 | AJ140: 48.69389299 | AK140: 48.93436934 | AL140: 51.74293589 | AM140: 54.22850285
A141: 139 | B141: Cyp18a1 | C141: 401.3238738 | D141: 520.0999766 | E141: 297.4934696 | F141: 299.268112 | G141: 237.4434146 | H141: 318.421295 | I141: 493.3901948 | J141: 505.1478884 | K141: 259.413781 | L141: 286.3922673 | M141: 268.9729845 | N141: 237.4241353 | O141: 365.8029222 | P141: 438.5989445 | Q141: 193.6274456 | R141: 263.2947286 | S141: 262.6595314 | T141: 249.5564932 | U141: 729.9364886 | V141: 488.4552228 | W141: 430.503941 | X141: 379.3323482 | Y141: 338.3231499 | Z141: 294.4471922 | AA141: 574.1431814 | AB141: 659.881879 | AC141: 355.3963876 | AD141: 322.3835088 | AE141: 331.8732878 | AF141: 280.8936413 | AH141: 512.9193321 | AI141: 522.4367823 | AJ141: 307.287005 | AK141: 313.0376307 | AL141: 287.8544736 | AM141: 276.1485514
A142: 140 | B142: CG14937 | C142: 12.06164648 | D142: 14.53373188 | E142: 16.2496433 | F142: 22.08620752 | G142: 29.20427024 | H142: 28.32929671 | I142: 17.27405496 | J142: 13.09238588 | K142: 22.98603123 | L142: 31.6498193 | M142: 14.53908024 | N142: 37.61174421 | O142: 19.20465342 | P142: 20.75674017 | Q142: 43.66109069 | R142: 41.84141035 | S142: 19.08210271 | T142: 27.37750559 | U142: 15.45747858 | V142: 7.471590406 | W142: 65.06581302 | X142: 47.03312134 | Y142: 28.19359582 | Z142: 22.00495031 | AA142: 12.62920704 | AB142: 11.96438553 | AC142: 49.04621061 | AD142: 69.00516576 | AE142: 46.97283459 | AF142: 52.66755774 | AH142: 15.32540809 | AI142: 13.56376677 | AJ142: 39.40175777 | AK142: 42.30182823 | AL142: 27.59837672 | AM142: 33.59821091
A143: 141 | B143: lncRNA:CR32027 | C143: 401.3238738 | D143: 339.4664518 | E143: 642.4858965 | F143: 637.1870871 | G143: 817.7195668 | H143: 602.847434 | I143: 256.9515675 | J143: 276.0311356 | K143: 392.4043903 | L143: 366.6747358 | M143: 354.3900809 | N143: 418.4306544 | O143: 288.0698012 | P143: 201.250133 | Q143: 486.9160766 | R143: 448.0092474 | S143: 509.60439 | T143: 480.1593288 | U143: 251.6134014 | V143: 217.6100706 | W143: 394.8514407 | X143: 450.9044894 | Y143: 429.4101517 | Z143: 505.0660023 | AA143: 283.6714196 | AB143: 218.1199516 | AC143: 482.1619781 | AD143: 478.7233375 | AE143: 635.1544155 | AF143: 458.5175615 | AH143: 296.3260127 | AI143: 250.4955485 | AJ143: 479.7639564 | AK143: 473.5582636 | AL143: 549.255721 | AM143: 493.0041962
A144: 142 | B144: CG34426 | C144: 142.5467311 | D144: 170.2522877 | E144: 27.49939635 | F144: 25.39913865 | G144: 10.15800704 | H144: 12.46489055 | I144: 52.90179331 | J144: 39.27715763 | K144: 7.388367181 | L144: 3.859734061 | M144: 4.543462576 | N144: 3.917890022 | O144: 39.32381414 | P144: 45.1233482 | Q144: 3.796616581 | R144: 5.102611018 | S144: 0 | T144: 5.264904921 | U144: 111.6373453 | V144: 108.3380609 | W144: 31.19593775 | X144: 34.76361143 | Y144: 17.34990512 | Z144: 17.8135312 | AA144: 119.4917281 | AB144: 150.0149878 | AC144: 14.33658464 | AD144: 28.03334859 | AE144: 15.31722867 | AF144: 17.55585258 | AH144: 93.1802824 | AI144: 102.6011685 | AJ144: 16.8433805 | AK144: 15.71760234 | AL144: 9.473720681 | AM144: 11.40341385
A145: 143 | B145: Lint-1 | C145: 1287.306633 | D145: 1216.680983 | E145: 1531.216387 | F145: 1559.286251 | G145: 1686.229169 | H145: 1419.864351 | I145: 1101.221004 | J145: 1301.601363 | K145: 1540.885022 | L145: 1431.961337 | M145: 1464.812334 | N145: 1512.305549 | O145: 1371.760958 | P145: 1231.867406 | Q145: 1863.189587 | R145: 1659.369103 | S145: 1791.472701 | T145: 1777.431901 | U145: 996.1486197 | V145: 1048.824503 | W145: 1297.75101 | X145: 1438.600038 | Y145: 1528.960389 | Z145: 1541.394376 | AA145: 1074.454075 | AB145: 1002.247373 | AC145: 1530.996328 | AD145: 1525.661087 | AE145: 1569.505364 | AF145: 1363.160318 | AH145: 1166.178258 | AI145: 1160.244326 | AJ145: 1552.807667 | AK145: 1536.636903 | AL145: 1608.195992 | AM145: 1522.831299
A146: 144 | B146: Hnf4 | C146: 1855.300531 | D146: 1907.033248 | E146: 2551.193997 | F146: 2638.197489 | G146: 2666.476848 | H146: 2499.777142 | I146: 1475.852071 | J146: 1549.265662 | K146: 1916.870819 | L146: 1917.515882 | M146: 2123.614408 | N146: 1957.377855 | O146: 1385.478568 | P146: 1295.040093 | Q146: 2110.918819 | R146: 2060.434329 | S146: 2102.398728 | T146: 2132.286493 | U146: 1778.468786 | V146: 1759.559541 | W146: 2381.587019 | X146: 2415.048535 | Y146: 2555.857898 | Z146: 2251.839915 | AA146: 1691.342265 | AB146: 1780.85277 | AC146: 2367.04558 | AD146: 2661.011705 | AE146: 2697.874543 | AF146: 2504.290736 | AH146: 1637.288444 | AI146: 1658.350263 | AJ146: 2265.523247 | AK146: 2283.052958 | AL146: 2429.244485 | AM146: 2269.114428
A147: 145 | B147: foi | C147: 4170.040142 | D147: 4117.198617 | E147: 4963.641041 | F147: 4818.106171 | G147: 5664.358676 | H147: 5016.551861 | I147: 3698.807018 | J147: 3586.222698 | K147: 4548.771394 | L147: 4370.762851 | M147: 4576.175506 | N147: 4528.297288 | O147: 3468.72621 | P147: 3163.146709 | Q147: 4478.109258 | R147: 4638.273416 | S147: 4896.24306 | T147: 4260.361062 | U147: 3843.759674 | V147: 4013.177997 | W147: 4107.168033 | X147: 4378.170122 | Y147: 4699.65555 | Z147: 4862.046163 | AA147: 3804.30575 | AB147: 3449.424383 | AC147: 4898.584604 | AD147: 4607.17302 | AE147: 4952.570603 | AF147: 4605.829559 | AH147: 3797.127759 | AI147: 3665.834081 | AJ147: 4599.254866 | AK147: 4534.546183 | AL147: 4957.800679 | AM147: 4654.617187
A148: 146 | B148: plx | C148: 1299.36828 | D148: 1147.126695 | E148: 1366.220009 | F148: 1522.844009 | G148: 1537.668316 | H148: 1410.798976 | I148: 1097.982118 | J148: 1079.030803 | K148: 1593.424522 | L148: 1438.136911 | M148: 1559.316356 | N148: 1455.887932 | O148: 1204.406121 | P148: 1078.448022 | Q148: 1679.053683 | R148: 1658.348581 | S148: 1554.630133 | T148: 1554.199933 | U148: 1379.150589 | V148: 1263.632727 | W148: 1366.382074 | X148: 1371.117733 | Y148: 1637.397296 | Z148: 1622.079194 | AA148: 1097.769535 | AB148: 1283.870601 | AC148: 1429.131121 | AD148: 1455.577715 | AE148: 1673.662519 | AF148: 1754.552561 | AH148: 1215.735329 | AI148: 1170.42177 | AJ148: 1486.842282 | AK148: 1487.10956 | AL148: 1592.534924 | AM148: 1559.503719
A149: 147 | B149: Pgant5 | C149: 2532.945761 | D149: 2459.315059 | E149: 3449.924269 | F149: 3092.069053 | G149: 3429.597127 | H149: 3269.20084 | I149: 2939.828228 | J149: 2838.865671 | K149: 3832.920707 | L149: 3814.961146 | M149: 3931.912513 | N149: 4017.404429 | O149: 2558.791441 | P149: 2223.678599 | Q149: 3877.294684 | R149: 3691.228811 | S149: 3709.785262 | T149: 3555.916784 | U149: 2396.767929 | V149: 2662.688031 | W149: 2859.330523 | X149: 2821.987281 | Y149: 3159.85147 | Z149: 3391.905911 | AA149: 2410.235589 | AB149: 2071.679372 | AC149: 3294.396239 | AD149: 2931.641339 | AE149: 3299.331055 | AF149: 2988.625727 | AH149: 2567.71379 | AI149: 2451.245346 | AJ149: 3462.773284 | AK149: 3387.610329 | AL149: 3506.095486 | AM149: 3444.610738
A150: 148 | B150: CG12945 | C150: 1815.826052 | D150: 1659.959806 | E150: 2891.186534 | F150: 2618.319902 | G150: 3084.224888 | H150: 2554.169391 | I150: 1947.649697 | J150: 2148.242316 | K150: 3179.460677 | L150: 2822.237546 | M150: 2999.593992 | N150: 3351.363125 | O150: 1932.353937 | P150: 1812.153664 | Q150: 3783.328423 | R150: 3111.572199 | S150: 3323.653301 | T150: 3283.194709 | U150: 1419.511783 | V150: 1439.215102 | W150: 2003.670516 | X150: 2050.030615 | Y150: 2303.199905 | Z150: 2536.856414 | AA150: 1532.991439 | AB150: 1267.304529 | AC150: 2567.757764 | AD150: 2162.880664 | AE150: 2386.424227 | AF150: 2142.846712 | AH150: 1729.666581 | AI150: 1665.375083 | AJ150: 2885.080783 | AK150: 2759.06283 | AL150: 2819.419263 | AM150: 2773.68607
A151: 149 | B151: Drak | C151: 2875.057915 | D151: 2734.417841 | E151: 3397.425421 | F151: 3670.72769 | G151: 3632.757268 | H151: 3341.72384 | I151: 2452.915804 | J151: 2276.98411 | K151: 2952.884083 | L151: 3268.422803 | M151: 3147.710872 | N151: 3000.320179 | O151: 2124.400471 | P151: 1989.037189 | Q151: 2781.021646 | R151: 3025.848334 | S151: 3094.668069 | T151: 2770.392969 | U151: 2539.320231 | V151: 2735.536038 | W151: 3403.922465 | X151: 3366.958013 | Y151: 3362.628486 | Z151: 3482.021422 | AA151: 2646.304613 | AB151: 2622.961444 | AC151: 3782.594673 | AD151: 3857.820048 | AE151: 3753.742173 | AF151: 3622.701815 | AH151: 2527.599807 | AI151: 2471.787324 | AJ151: 3263.569658 | AK151: 3381.337856 | AL151: 3398.301374 | AM151: 3243.432045
A152: 150 | B152: CG9384 | C152: 884.8862463 | D152: 759.9065526 | E152: 2013.705796 | F152: 2073.894887 | G152: 2298.249093 | H152: 2104.30016 | I152: 386.5069797 | J152: 413.5011873 | K152: 822.5715461 | L152: 847.5975998 | M152: 893.2447424 | N152: 925.4056232 | O152: 353.9143272 | P152: 294.2042303 | Q152: 823.8657981 | R152: 878.6696174 | S152: 1032.6785 | T152: 923.4643231 | U152: 638.9091147 | V152: 603.3309253 | W152: 1515.231262 | X152: 1618.55285 | Y152: 1530.044758 | Z152: 1402.029691 | AA152: 603.2875053 | AB152: 635.9531079 | AC152: 1613.997607 | AD152: 1629.168835 | AE152: 2103.566071 | AF152: 1575.895943 | AH152: 573.5008346 | AI152: 541.3792007 | AJ152: 1357.874402 | AK152: 1374.917431 | AL152: 1571.556633 | AM152: 1386.219148
A153: 151 | B153: Mipp2 | C153: 206.1445035 | D153: 203.4722463 | E153: 284.993744 | F153: 276.0775941 | G153: 339.023485 | H153: 283.2929671 | I153: 223.483086 | J153: 195.294756 | K153: 295.5346872 | L153: 256.2863417 | M153: 274.4251396 | N153: 224.8868873 | O153: 173.756388 | P153: 143.4922473 | Q153: 277.1530104 | R153: 258.1921175 | S153: 312.0485031 | T153: 290.6227516 | U153: 202.6647192 | V153: 237.2229954 | W153: 258.4806271 | X153: 238.2329842 | Y153: 264.5860531 | Z153: 267.202968 | AA153: 236.0690238 | AB153: 175.7844336 | AC153: 292.0135924 | AD153: 270.6296345 | AE153: 285.9216018 | AF153: 319.1034381 | AH153: 208.4235441 | AI153: 191.0533357 | AJ153: 281.6351322 | AK153: 272.0022331 | AL153: 295.2009565 | AM153: 277.0218024
A154: 152 | B154: Ugt316A1 | C154: 2006.619369 | D154: 1963.091928 | E154: 2506.194985 | F154: 2482.489726 | G154: 2891.222754 | H154: 2310.53744 | I154: 1690.698129 | J154: 1802.385122 | K154: 2356.068201 | L154: 2191.557 | M154: 2159.053416 | N154: 2194.018412 | O154: 1853.706308 | P154: 1661.441681 | Q154: 2691.801156 | R154: 2458.437989 | S154: 2624.350361 | T154: 2532.419267 | U154: 1459.014228 | V154: 1535.411829 | W154: 1898.49564 | X154: 2053.097993 | Y154: 2012.588994 | Z154: 2280.131994 | AA154: 1642.768392 | AB154: 1338.170505 | AC154: 2314.226583 | AD154: 2112.204996 | AE154: 2406.847198 | AF154: 2024.086533 | AH154: 1730.561285 | AI154: 1660.100213 | AJ154: 2353.357313 | AK154: 2315.714021 | AL154: 2418.812545 | AM154: 2268.238729
A155: 153 | B155: Six4 | C155: 308.1202419 | D155: 317.665854 | E155: 203.7455275 | F155: 220.8620752 | G155: 200.6206391 | H155: 256.0968423 | I155: 423.2143465 | J155: 411.319123 | K155: 296.3556169 | L155: 284.0764269 | M155: 310.7728402 | N155: 300.8939537 | O155: 436.2199847 | P155: 455.7458168 | Q155: 294.2377851 | R155: 301.0540501 | S155: 286.2315406 | T155: 293.7816946 | U155: 384.7194669 | V155: 388.5227011 | W155: 242.437002 | X155: 229.0308518 | Y155: 222.2956594 | Z155: 232.6237604 | AA155: 321.5590407 | AB155: 322.118072 | AC155: 227.87624 | AD155: 229.6578173 | AE155: 203.208567 | AF155: 249.912725 | AH155: 374.7666161 | AI155: 379.0743134 | AJ155: 252.9304343 | AK155: 253.8979058 | AL155: 244.6258493 | AM155: 266.6617952
A156: 154 | B156: Gycalpha99B | C156: 98.68619847 | D156: 127.6892158 | E156: 69.99846343 | F156: 68.46724332 | G156: 59.67829137 | H156: 72.52299958 | I156: 173.820178 | J156: 156.0175984 | K156: 126.4231718 | L156: 108.8445005 | M156: 111.7691794 | N156: 83.84284647 | O156: 159.1242712 | P156: 175.078591 | Q156: 78.77979406 | R156: 86.74438731 | S156: 75.20593421 | T156: 113.7219463 | U156: 136.5410608 | V156: 154.1015521 | W156: 107.8488134 | X156: 89.97640605 | Y156: 106.2681689 | Z156: 91.16336555 | AA156: 146.6930971 | AB156: 171.1827468 | AC156: 88.28317909 | AD156: 88.41286863 | AE156: 72.50154903 | AF156: 87.7792629 | AH156: 142.9729611 | AI156: 156.8139408 | AJ156: 94.26668434 | AK156: 90.44470607 | AL156: 85.08462457 | AM156: 89.80608416
A157: 155 | B157: stv | C157: 611.8544305 | D157: 669.5897902 | E157: 1859.959171 | F157: 2076.103507 | G157: 6093.534474 | H157: 10668.81314 | I157: 326.0477874 | J157: 286.9414571 | K157: 841.4529289 | L157: 913.2130789 | M157: 2548.882505 | N157: 1958.945011 | O157: 220.3962606 | P157: 259.0080187 | Q157: 723.2554587 | R157: 1131.759124 | S157: 2889.254846 | T157: 2831.465866 | U157: 652.6490957 | V157: 551.0297925 | W157: 4242.647534 | X157: 3242.217995 | Y157: 10508.62066 | Z157: 7927.021384 | AA157: 553.7421546 | AB157: 755.5969632 | AC157: 2426.655589 | AD157: 3834.099523 | AE157: 17525.97304 | AF157: 16917.6457 | AH157: 472.9379458 | AI157: 504.4332043 | AJ157: 2018.794136 | AK157: 2076.375034 | AL157: 7913.253105 | AM157: 8060.778221
A158: 156 | B158: PDCD-5 | C158: 755.4976749 | D158: 715.2672333 | E158: 588.7370763 | F158: 573.1370852 | G158: 647.5729489 | H158: 528.0580907 | I158: 603.5122951 | J158: 628.4345221 | K158: 521.2903511 | L158: 515.6604706 | M158: 496.1461133 | N158: 503.8406569 | O158: 681.3079426 | P158: 619.9948042 | Q158: 523.9330882 | R158: 566.389823 | S158: 510.7268666 | T158: 524.3845301 | U158: 596.830423 | V158: 639.7549286 | W158: 508.0481291 | X158: 496.9151516 | Y158: 543.2689041 | Z158: 567.9372888 | AA158: 694.606387 | AB158: 632.2717585 | AC158: 528.9445175 | AD158: 528.3208004 | AE158: 530.9972605 | AF158: 476.0734141 | AH158: 666.3509445 | AI158: 647.1446493 | AJ158: 534.1906324 | AK158: 529.9446581 | AL158: 545.7424187 | AM158: 520.0587961
A159: 157 | B159: LysE | C159: 28.50934622 | D159: 14.53373188 | E159: 17.49961586 | F159: 5.521551881 | G159: 8.888256161 | H159: 9.065374947 | I159: 28.07033931 | J159: 16.36548235 | K159: 8.209296868 | L159: 5.403627686 | M159: 11.8130027 | N159: 3.917890022 | O159: 18.29014611 | P159: 60.46528659 | Q159: 3.796616581 | R159: 13.26678865 | S159: 4.48990652 | T159: 7.370866889 | U159: 60.97116552 | V159: 74.71590406 | W159: 28.52200023 | X159: 11.24705076 | Y159: 5.42184535 | Z159: 8.382838212 | AA159: 67.03194503 | AB159: 135.2895902 | AC159: 10.56379921 | AD159: 14.0166743 | AE159: 5.10574289 | AF159: 11.35966932 | AH159: 40.57458844 | AI159: 60.27399903 | AJ159: 13.71826575 | AK159: 10.76151912 | AL159: 7.143750724 | AM159: 8.019327877
A160: 158 | B160: CG4266 | C160: 2909.049828 | D160: 1796.992135 | E160: 3246.178741 | F160: 3544.836308 | G160: 3128.666169 | H160: 2924.716592 | I160: 3355.485176 | J160: 3106.168549 | K160: 4401.004051 | L160: 4705.015821 | M160: 4629.788365 | N160: 5412.956855 | O160: 3045.309327 | P160: 2170.433048 | Q160: 4880.550615 | R160: 3934.113095 | S160: 3965.709934 | T160: 3790.731543 | U160: 2270.531854 | V160: 2640.27326 | W160: 3460.966465 | X160: 3477.383602 | Y160: 4092.40887 | Z160: 4091.872902 | AA160: 2112.963485 | AB160: 2071.679372 | AC160: 4056.498896 | AD160: 4041.11502 | AE160: 4199.984101 | AF160: 3587.590109 | AH160: 2738.667934 | AI160: 2357.109273 | AJ160: 4009.039754 | AK160: 4129.573621 | AL160: 4003.311488 | AM160: 3961.5736
A161: 159 | B161: snoRNA:Psi18S-920 | C161: 16.44769974 | D161: 19.72435041 | E161: 6.249862806 | F161: 5.521551881 | G161: 11.42775792 | H161: 12.46489055 | I161: 18.35368339 | J161: 21.82064313 | K161: 10.67208593 | L161: 10.03530856 | M161: 6.360847606 | N161: 3.134312018 | O161: 16.4611315 | P161: 23.46414106 | Q161: 6.644079017 | R161: 7.143655426 | S161: 10.10228967 | T161: 10.52980984 | U161: 18.03372501 | V161: 32.68820803 | W161: 12.4783751 | X161: 8.179673277 | Y161: 13.01242884 | Z161: 12.57425732 | AA161: 21.37250421 | AB161: 13.80506023 | AC161: 3.772785431 | AD161: 10.78205715 | AE161: 13.27493151 | AF161: 6.196183263 | AH161: 18.13374877 | AI161: 22.30048057 | AJ161: 7.963437657 | AK161: 7.690419998 | AL161: 10.83565111 | AM161: 8.979890599
A162: 160 | B162: noc | C162: 308.1202419 | D162: 315.5896066 | E162: 194.9957195 | F162: 203.1931092 | G162: 191.7323829 | H162: 228.9007174 | I162: 409.1791768 | J162: 400.4088014 | K162: 286.5044607 | L162: 306.4628845 | M162: 320.7684578 | N162: 319.6998258 | O162: 342.9402396 | P162: 354.6695168 | Q162: 188.8816749 | R162: 260.2331619 | S162: 301.9462135 | T162: 257.9803411 | U162: 448.2668789 | V162: 474.4459908 | W162: 323.5464401 | X162: 278.1088914 | Y162: 290.6109108 | Z162: 244.1501629 | AA162: 391.5054181 | AB162: 446.3636141 | AC162: 252.0220668 | AD162: 249.0655202 | AE162: 253.2448473 | AF162: 302.5802827 | AH162: 380.002391 | AI162: 398.2955059 | AJ162: 249.1900724 | AK162: 254.8212351 | AL162: 271.6605625 | AM162: 270.662266
A163: 161 | B163: CG14182 | C163: 155.7048909 | D163: 140.1467003 | E163: 363.7420153 | F163: 347.8577685 | G163: 412.669036 | H163: 325.2203262 | I163: 219.1645723 | J163: 253.1194603 | K163: 671.5204838 | L163: 596.7148859 | M163: 597.0109824 | N163: 691.1157999 | O163: 262.4635967 | P163: 275.252424 | Q163: 921.6286751 | R163: 632.7237663 | S163: 682.465791 | T163: 662.325039 | U163: 129.6710703 | V163: 133.5546785 | W163: 233.5238769 | X163: 261.7495449 | Y163: 346.9981024 | Z163: 404.4719437 | AA163: 116.5772957 | AB163: 117.8031806 | AC163: 341.059803 | AD163: 308.3668345 | AE163: 316.5560592 | AF163: 263.3377887 | AH163: 176.7162852 | AI163: 183.9752887 | AJ163: 506.2949708 | AK163: 488.1570019 | AL163: 471.1399942 | AM163: 469.2941795
A164: 162 | B164: otk2 | C164: 76.75593214 | D164: 91.35488611 | E164: 139.9969269 | F164: 131.4129348 | G164: 116.817081 | H164: 142.7796554 | I164: 86.3702748 | J164: 91.64670114 | K164: 128.8859608 | L164: 115.7920218 | M164: 103.5909467 | N164: 115.9695447 | O164: 99.6812963 | P164: 88.44176247 | Q164: 160.4070506 | R164: 137.7704975 | S164: 129.0848124 | T164: 175.8478244 | U164: 60.11241671 | V164: 72.84800646 | W164: 100.7183133 | X164: 106.3357526 | Y164: 134.4617647 | Z164: 135.1732662 | AA164: 79.66115207 | AB164: 108.5998071 | AC164: 124.5019192 | AD164: 138.0103315 | AE164: 138.8762066 | AF164: 115.6620876 | AH164: 80.5162144 | AI164: 90.57823266 | AJ164: 130.9020342 | AK164: 126.5664479 | AL164: 124.5661623 | AM164: 137.0864756
A165: 163 | B165: xmas-2 | C165: 1505.512783 | D165: 1268.587168 | E165: 2429.946659 | F165: 2695.621628 | G165: 3136.284674 | H165: 2522.440579 | I165: 729.828822 | J165: 662.2565189 | K165: 1444.015319 | L165: 1206.552868 | M165: 1388.482163 | N165: 1069.583976 | O165: 707.8286545 | P165: 650.678681 | Q165: 1297.493717 | R165: 1554.255316 | S165: 1838.61672 | T165: 1762.690167 | U165: 922.296222 | V165: 852.6952551 | W165: 1927.017641 | X165: 1987.660606 | Y165: 2204.522319 | Z165: 2140.767308 | AA165: 992.8499685 | AB165: 1028.016818 | AC165: 2063.713631 | AD165: 2196.305041 | AE165: 2855.131424 | AF165: 2176.92572 | AH165: 971.6632901 | AI165: 892.4468884 | AJ165: 1832.437393 | AK165: 1838.079897 | AL165: 2284.60746 | AM165: 1934.48155
A166: 164 | B166: CG8563 | C166: 18.64072638 | D166: 23.87684523 | E166: 3.749917684 | F166: 5.521551881 | G166: 3.80925264 | H166: 6.79903121 | I166: 25.91108244 | J166: 31.63993254 | K166: 4.104648434 | L166: 12.351149 | M166: 8.178232636 | N166: 7.835780044 | O166: 10.97408767 | P166: 10.82960357 | Q166: 13.28815803 | R166: 4.082088815 | S166: 8.97981304 | T166: 7.370866889 | U166: 34.3499524 | V166: 14.00923201 | W166: 6.23918755 | X166: 4.089836639 | Y166: 2.16873814 | Z166: 3.143564329 | AA166: 15.54363943 | AB166: 14.72539758 | AC166: 4.527342517 | AD166: 1.078205715 | AE166: 7.148040046 | AF166: 9.294274895 | AH166: 21.08389766 | AI166: 19.01620219 | AJ166: 6.381850844 | AK166: 8.385477796 | AL166: 6.0568153 | AM166: 6.888703474
A167: 165 | B167: Pdk1 | C167: 5277.518591 | D167: 5050.471829 | E167: 5941.119583 | F167: 6080.332931 | G167: 6703.014896 | H167: 6153.123245 | I167: 4978.166714 | J167: 5308.962473 | K167: 6497.658471 | L167: 6140.064945 | M167: 6508.964486 | N167: 6623.584872 | O167: 5296.826313 | P167: 4681.998609 | Q167: 7116.757782 | R167: 6784.43161 | S167: 7210.789871 | T167: 6785.409462 | U167: 4480.951291 | V167: 4889.221972 | W167: 4991.35004 | X167: 5548.88586 | Y167: 6384.765085 | Z167: 6245.214468 | AA167: 4920.533357 | AB167: 4652.305297 | AC167: 5921.009456 | AD167: 5607.747924 | AE167: 6629.296568 | AF167: 5751.090766 | AH167: 4990.799253 | AI167: 4916.592036 | AJ167: 6093.579066 | AK167: 6049.903031 | AL167: 6687.366181 | AM167: 6311.684562
A168: 166 | B168: CG13315 | C168: 3516.518205 | D168: 4036.224968 | E168: 3316.177205 | F168: 3056.731121 | G168: 2596.64055 | H168: 3762.130603 | I168: 3774.381009 | J168: 2935.967533 | K168: 2289.572896 | L168: 2776.692684 | M168: 2964.154984 | N168: 3071.625777 | O168: 4760.010525 | P168: 4592.65438 | Q168: 2544.682264 | R168: 2780.923005 | S168: 3019.462135 | T168: 1865.882304 | U168: 4671.593527 | V168: 4408.23834 | W168: 3051.854025 | X168: 3197.229792 | Y168: 3216.238662 | Z168: 3504.026372 | AA168: 5331.468324 | AB168: 5118.916333 | AC168: 2752.624251 | AD168: 2745.11175 | AE168: 2651.922857 | AF168: 2531.140863 | AH168: 4410.794318 | AI168: 4218.400311 | AJ168: 2790.982128 | AK168: 2836.516869 | AL168: 2889.683838 | AM168: 2946.961184
A169: 167 | B169: Topors | C169: 1729.2015 | D169: 1366.170797 | E169: 2347.44847 | F169: 2567.521625 | G169: 2776.945175 | H169: 2307.137924 | I169: 1093.663605 | J169: 925.1952686 | K169: 1485.882733 | L169: 1476.734252 | M169: 1608.385752 | N169: 1432.380592 | O169: 888.9011009 | P169: 721.0711042 | Q169: 1415.188831 | R169: 1497.106073 | S169: 1696.062188 | T169: 1628.961583 | U169: 1045.956051 | V169: 1149.690974 | W169: 2033.083829 | X169: 2168.635878 | Y169: 2261.99388 | Z169: 2107.235955 | AA169: 1128.856813 | AB169: 1125.572577 | AC169: 2143.696682 | AD169: 2415.180802 | AE169: 2517.131245 | AF169: 2103.604218 | AH169: 1177.315814 | AI169: 1057.540144 | AJ169: 1885.060109 | AK169: 1927.245044 | AL169: 2172.103648 | AM169: 1915.864054
A170: 168 | B170: Chd1 | C170: 5888.276509 | D170: 4508.571254 | E170: 5783.623041 | F170: 6528.682944 | G170: 6633.178598 | H170: 5781.442873 | I170: 5605.430834 | J170: 5298.052151 | K170: 6046.968073 | L170: 5896.129752 | M170: 5841.075487 | N170: 5701.31356 | O170: 5304.142372 | P170: 4291.230414 | Q170: 6559.604298 | R170: 5696.554941 | S170: 5954.738522 | T170: 6059.905564 | U170: 4859.659516 | V170: 5044.257473 | W170: 5857.705797 | X170: 5826.994751 | Y170: 6394.524406 | Z170: 6954.612151 | AA170: 4653.377054 | AB170: 4527.139418 | AC170: 6689.903127 | AD170: 6785.148564 | AE170: 7099.024914 | AF170: 6351.087845 | AH170: 5262.177257 | AI170: 4733.850142 | AJ170: 6187.560867 | AK170: 6306.405184 | AL170: 6384.508385 | AM170: 6169.672399
A171: 169 | B171: CG11257 | C171: 143.6432444 | D171: 157.7948033 | E171: 259.9942927 | F171: 281.5991459 | G171: 308.5494639 | H171: 275.360764 | I171: 212.6868017 | J171: 249.8463638 | K171: 382.553234 | L171: 368.2186294 | M171: 355.2987734 | N171: 414.5127643 | O171: 203.0206218 | P171: 209.3723356 | Q171: 451.7973732 | R171: 388.8189596 | S171: 451.2356053 | T171: 370.6493064 | U171: 167.456018 | V171: 191.4595042 | W171: 210.3497517 | X171: 249.480035 | Y171: 279.7672201 | Z171: 302.8300304 | AA171: 159.3223041 | AB171: 149.0946505 | AC171: 264.8495373 | AD171: 244.7526973 | AE171: 291.0273447 | AF171: 278.8282468 | AH171: 177.225798 | AI171: 191.5135315 | AJ171: 313.9088378 | AK171: 315.3628875 | AL171: 337.1756815 | AM171: 328.4362224
A172: 170 | B172: Usp15-31 | C172: 1663.410701 | D172: 1504.24125 | E172: 1771.211119 | F172: 2041.869886 | G172: 2112.865465 | H172: 1900.329223 | I172: 1380.844768 | J172: 1197.953308 | K172: 1801.119733 | L172: 1678.984317 | M172: 1707.433236 | N172: 1735.62528 | O172: 1257.447545 | P172: 990.9087264 | Q172: 1740.748703 | R172: 1736.928791 | S172: 1913.822654 | T172: 1711.094099 | U172: 1531.149128 | V172: 1516.732853 | W172: 1695.276389 | X172: 1748.405163 | Y172: 1891.139658 | Z172: 1940.627046 | AA172: 1446.529944 | AB172: 1385.10771 | AC172: 1837.346505 | AD172: 1889.016413 | AE172: 2191.384848 | AF172: 1890.868593 | AH172: 1455.876417 | AI172: 1318.988769 | AJ172: 1769.14049 | AK172: 1798.84516 | AL172: 1963.329172 | AM172: 1835.708848
A173: 171 | B173: CG43255 | C173: 91.01060525 | D173: 100.6979995 | E173: 58.74871038 | F173: 45.27672542 | G173: 38.0925264 | H173: 55.52542155 | I173: 201.8905173 | J173: 202.9319811 | K173: 77.98832024 | L173: 86.45804297 | M173: 87.23448145 | N173: 98.73082856 | O173: 152.72272 | P173: 175.981058 | Q173: 75.93233163 | R173: 93.88804274 | S173: 71.83850432 | T173: 87.39742169 | U173: 110.7785965 | V173: 144.7620641 | W173: 58.82662547 | X173: 78.72935529 | Y173: 50.96534629 | Z173: 67.06270569 | AA173: 118.5202506 | AB173: 93.87440956 | AC173: 55.83722438 | AD173: 59.30131433 | AE173: 42.88824027 | AF173: 38.20979679 | AH173: 134.9845379 | AI173: 143.6495024 | AJ173: 65.46664242 | AK173: 64.46618998 | AL173: 58.20381975 | AM173: 69.38523486
A174: 172 | B174: Cirl | C174: 2763.213557 | D174: 1957.901309 | E174: 3186.180059 | F174: 3350.477681 | G174: 3230.246239 | H174: 2854.459937 | I174: 2434.562121 | J174: 2317.3523 | K174: 2727.949349 | L174: 3083.155568 | M174: 2837.846725 | N174: 2770.731824 | O174: 2088.734686 | P174: 1693.930491 | Q174: 2826.581045 | R174: 2588.044309 | S174: 2412.202278 | T174: 2568.22062 | U174: 2411.366659 | V174: 2311.523282 | W174: 3116.028525 | X174: 3108.275845 | Y174: 3131.657874 | Z174: 2908.844859 | AA174: 2222.740438 | AB174: 2738.92395 | AC174: 3097.456839 | AD174: 3329.499248 | AE174: 3290.140718 | AF174: 3059.881835 | AH174: 2384.123492 | AI174: 2203.926266 | AJ174: 2990.839163 | AK174: 3094.739932 | AL174: 2980.418767 | AM174: 2832.427815
A175: 173 | B175: Ptp4E | C175: 1672.182807 | D175: 1325.683972 | E175: 2258.700418 | F175: 2589.607832 | G175: 2850.590726 | H175: 2401.191189 | I175: 1251.289356 | J175: 1064.847385 | K175: 1659.919827 | L175: 1719.897498 | M175: 1920.067284 | N175: 1793.610052 | O175: 1016.017616 | P175: 786.9511926 | Q175: 1605.01966 | R175: 1769.585501 | S175: 1834.126813 | T175: 1614.219849 | U175: 1458.15548 | V175: 1329.943092 | W175: 1992.083454 | X175: 2022.424218 | Y175: 2475.614587 | Z175: 2345.09899 | AA175: 1390.184251 | AB175: 1365.780625 | AC175: 2081.823001 | AD175: 2114.361407 | AE175: 2854.110275 | AF175: 2361.778521 | AH175: 1357.565902 | AI175: 1174.641253 | AJ175: 1919.509272 | AK175: 1997.686289 | AL175: 2386.901937 | AM175: 2103.17972
A176: 174 | B176: Jon66Cii | C176: 38.37796607 | D176: 17.648103 | E176: 8.749807928 | F176: 19.87758677 | G176: 12.6975088 | H176: 4.532687474 | I176: 46.4240227 | J176: 30.54890038 | K176: 21.34417186 | L176: 13.12309581 | M176: 39.07377815 | N176: 8.619358049 | O176: 60.35748216 | P176: 44.22088123 | Q176: 20.8813912 | R176: 15.30783306 | S176: 33.6742989 | T176: 21.05961968 | U176: 72.99364886 | V176: 38.29190083 | W176: 10.69575009 | X176: 10.2245916 | Y176: 6.50621442 | Z176: 14.66996687 | AA176: 43.71648589 | AB176: 19.32708432 | AC176: 12.07291338 | AD176: 4.31282286 | AE176: 12.25378294 | AF176: 10.32697211 | AH176: 52.37392114 | AI176: 30.00737395 | AJ176: 14.74880689 | AK176: 15.33014745 | AL176: 20.84111664 | AM176: 11.84172084
A177: 175 | B177: Amnionless | C177: 10.96513316 | D177: 12.45748447 | E177: 43.74903964 | F177: 33.12931129 | G177: 26.66476848 | H177: 24.92978111 | I177: 7.557399045 | J177: 8.728257251 | K177: 30.37439841 | L177: 48.63264917 | M177: 28.16946797 | N177: 53.2833043 | O177: 17.3756388 | P177: 18.95180624 | Q177: 36.06785752 | R177: 47.96454357 | S177: 49.38897172 | T177: 45.27818232 | U177: 31.77370597 | V177: 26.15056642 | W177: 38.32643781 | X177: 51.12295798 | Y177: 39.03728652 | Z177: 42.96204583 | AA177: 23.31545914 | AB177: 34.97281925 | AC177: 37.72785431 | AD177: 47.44105146 | AE177: 39.82479454 | AF177: 39.242494 | AH177: 18.19746723 | AI177: 20.25218673 | AJ177: 37.24911754 | AK177: 38.77682202 | AL177: 36.61705785 | AM177: 41.13916151
A178: 176 | B178: Srp14 | C178: 690.8033893 | D178: 665.4372954 | E178: 551.2378995 | F178: 552.1551881 | G178: 605.6711698 | H178: 569.9854498 | I178: 835.6324086 | J178: 789.9072812 | K178: 602.5623901 | L178: 576.6442687 | M178: 626.0891429 | N178: 698.168002 | O178: 879.7560279 | P178: 800.488197 | Q178: 636.8824315 | R178: 558.2256454 | S178: 643.179109 | T178: 567.5567505 | U178: 603.7004135 | V178: 741.5553478 | W178: 520.5265042 | X178: 491.8028558 | Y178: 555.1969639 | Z178: 601.4686417 | AA178: 668.3764954 | AB178: 613.8650115 | AC178: 547.8084446 | AD178: 500.2874518 | AE178: 501.3839518 | AF178: 498.7927527 | AH178: 735.6537469 | AI178: 722.2506266 | AJ178: 571.803534 | AK178: 566.8033674 | AL178: 586.3040675 | AM178: 587.1943193
A179: 177 | B179: CG15160 | C179: 1404.633558 | D179: 1278.968406 | E179: 1786.21079 | F179: 1770.209533 | G179: 2170.004254 | H179: 1725.820756 | I179: 1376.526255 | J179: 1379.064646 | K179: 1943.961498 | L179: 1728.388913 | M179: 1861.002271 | N179: 1940.139139 | O179: 1424.802382 | P179: 1258.038948 | Q179: 2107.122203 | R179: 1905.314954 | S179: 2084.439102 | T179: 1920.637315 | U179: 1153.299652 | V179: 1195.454465 | W179: 1349.447136 | X179: 1387.47708 | Y179: 1566.913306 | Z179: 1730.008236 | AA179: 1175.487732 | AB179: 1023.415132 | AC179: 1654.74369 | AD179: 1476.063624 | AE179: 1790.073457 | AF179: 1489.149378 | AH179: 1306.949916 | AI179: 1226.988319 | AJ179: 1768.297063 | AK179: 1721.982295 | AL179: 1894.486478 | AM179: 1761.150965
A180: 178 | B180: fwe | C180: 2433.163049 | D180: 2230.927844 | E180: 3061.182802 | F180: 2832.556115 | G180: 3131.20567 | H180: 2866.924827 | I180: 2031.860715 | J180: 2407.907969 | K180: 2968.481747 | L180: 2771.289056 | M180: 2955.976752 | N180: 3447.74322 | O180: 2230.483318 | P180: 2057.624678 | Q180: 3413.158307 | R180: 2981.965879 | S180: 3311.306058 | T180: 2786.187684 | U180: 1964.817277 | V180: 2209.722863 | W180: 2376.239144 | X180: 2540.811012 | Y180: 2505.976921 | Z180: 2593.440572 | AA180: 2140.164854 | AB180: 1783.613782 | AC180: 2643.213473 | AD180: 2491.733407 | AE180: 2668.261234 | AF180: 2486.734883 | AH180: 2160.097843 | AI180: 2137.959427 | AJ180: 2892.455095 | AK180: 2807.291219 | AL180: 2914.545327 | AM180: 2836.206237
A181: 179 | B181: CG12402 | C181: 46.05355929 | D181: 49.82993788 | E181: 19.99956098 | F181: 20.98189715 | G181: 24.12526672 | H181: 23.79660924 | I181: 31.30922461 | J181: 50.18747919 | K181: 14.77673436 | L181: 23.93035118 | M181: 20.89992785 | N181: 18.0222941 | O181: 26.52071186 | P181: 27.97647588 | Q181: 10.4406956 | R181: 11.22574424 | S181: 10.10228967 | T181: 16.84769575 | U181: 66.98240719 | V181: 29.88636163 | W181: 20.50018767 | X181: 26.58393815 | Y181: 33.61544117 | Z181: 23.05280508 | AA181: 57.31717039 | AB181: 44.17619273 | AC181: 28.67316928 | AD181: 8.62564572 | AE181: 37.78249738 | AF181: 25.81743026 | AH181: 45.63661467 | AI181: 40.41128946 | AJ181: 18.87806958 | AK181: 20.90526017 | AL181: 25.30508456 | AM181: 21.50736689
A182: 180 | B182: DAAM | C182: 2588.86794 | D182: 1919.490732 | E182: 2592.443092 | F182: 2833.660425 | G182: 2779.484677 | H182: 2488.445423 | I182: 2634.293381 | J182: 2380.632165 | K182: 2762.428396 | L182: 2778.236577 | M182: 2715.173235 | N182: 2816.179348 | O182: 2496.604944 | P182: 1812.153664 | Q182: 3011.666103 | R182: 2454.3559 | S182: 2516.592604 | T182: 2591.386202 | U182: 2161.470755 | V182: 2237.741327 | W182: 2666.807022 | X182: 2796.425802 | Y182: 2859.481238 | Z182: 3040.874561 | AA182: 2056.617792 | AB182: 2073.520046 | AC182: 3061.238099 | AD182: 3007.115739 | AE182: 3033.832425 | AF182: 2819.263385 | AH182: 2387.570962 | AI182: 2084.707587 | AJ182: 2818.916542 | AK182: 2870.321645 | AL182: 2780.912836 | AM182: 2751.229784
A183: 181 | B183: CG12299 | C183: 1939.732057 | D183: 1747.162197 | E183: 2029.955439 | F183: 2103.711267 | G183: 2326.183612 | H183: 1847.070146 | I183: 1829.970197 | J183: 1609.272431 | K183: 2330.619381 | L183: 2264.891947 | M183: 2239.018357 | N183: 2356.219059 | O183: 1772.315158 | P183: 1287.820358 | Q183: 2080.545887 | R183: 2167.589161 | S183: 2398.732558 | T183: 1926.955201 | U183: 1474.471707 | V183: 1638.146197 | W183: 1664.080451 | X183: 1959.03175 | Y183: 1976.804815 | Z183: 2182.681499 | AA183: 1580.593834 | AB183: 1453.212673 | AC183: 2230.470747 | AD183: 2074.467796 | AE183: 2162.792688 | AF183: 2040.609688 | AH183: 1719.416591 | AI183: 1547.122771 | AJ183: 2067.134381 | AK183: 2068.74006 | AL183: 2220.706406 | AM183: 2070.707119
A184: 182 | B184: rec | C184: 242.3294429 | D184: 196.2053804 | E184: 339.9925366 | F184: 362.2138034 | G184: 455.840566 | H184: 358.0823104 | I184: 316.3311314 | J184: 293.4876501 | K184: 626.369351 | L184: 560.4333857 | M184: 571.567592 | N184: 661.3398357 | O184: 342.9402396 | P184: 285.1795606 | Q184: 822.916644 | R184: 630.6827219 | S184: 633.0768193 | T184: 642.3184003 | U184: 198.3709751 | V184: 194.2613506 | W184: 324.4377526 | X184: 303.6703704 | Y184: 365.4323766 | Z184: 454.768973 | AA184: 188.4666281 | AB184: 170.2624095 | AC184: 405.9517124 | AD184: 350.4168574 | AE184: 429.9035513 | AF184: 398.6211233 | AH184: 257.6876834 | AI184: 227.8792702 | AJ184: 503.9335993 | AK184: 495.1906596 | AL184: 491.164181 | AM184: 503.0261286
A185: 183 | B185: RhoGAP15B | C185: 1583.365229 | D185: 1249.900942 | E185: 2056.204863 | F185: 2148.987992 | G185: 2130.641977 | H185: 1989.849801 | I185: 1371.128112 | J185: 1327.786134 | K185: 1490.808311 | L185: 1573.99955 | M185: 1724.698394 | N185: 1502.902613 | O185: 1075.460591 | P185: 971.0544532 | Q185: 1605.968814 | R185: 1472.61354 | S185: 1495.138871 | T185: 1573.15359 | U185: 1369.704352 | V185: 1278.575908 | W185: 1989.409516 | X185: 1909.95371 | Y185: 2269.584464 | Z185: 2039.125395 | AA185: 1150.229318 | AB185: 1304.118023 | AC185: 1962.602981 | AD185: 2153.176813 | AE185: 2302.690043 | AF185: 2219.266305 | AH185: 1309.97752 | AI185: 1226.287092 | AJ185: 1820.998897 | AK185: 1856.193771 | AL185: 1984.55075 | AM185: 1864.859541
A186: 184 | B186: CG44005 | C186: 1030.722517 | D186: 850.223315 | E186: 1609.964659 | F186: 1518.426767 | G186: 1974.462619 | H186: 1522.982991 | I186: 943.5952521 | J186: 786.6341848 | K186: 1353.713053 | L186: 1431.18939 | M186: 1751.050477 | N186: 2870.24623 | O186: 992.2404265 | P186: 688.5822935 | Q186: 1683.799454 | R186: 1569.563149 | S186: 1895.863028 | T186: 805.5304529 | U186: 786.61391 | V186: 765.8380167 | W186: 1090.966509 | X186: 1165.603442 | Y186: 1220.999573 | Z186: 1506.815169 | AA186: 800.4974306 | AB186: 600.0599513 | AC186: 1556.651269 | AD186: 1181.713464 | AE186: 1443.904089 | AF186: 1142.163115 | AH186: 910.7339073 | AI186: 738.2675523 | AJ186: 1459.018989 | AK186: 1456.206678 | AL186: 1657.255957 | AM186: 1569.547592
A187: 185 | B187: CG12321 | C187: 983.5724447 | D187: 949.8831908 | E187: 704.9845245 | F187: 672.5250191 | G187: 622.1779313 | H187: 541.6561531 | I187: 1420.79102 | J187: 1374.700517 | K187: 893.9924289 | L187: 842.965919 | M187: 832.3623439 | N187: 836.8613087 | O187: 1570.209044 | P187: 1357.310314 | Q187: 911.1879795 | R187: 814.3767185 | S187: 782.3662111 | T187: 819.2192057 | U187: 936.036203 | V187: 1005.862858 | W187: 632.8318801 | X187: 623.7000874 | Y187: 729.7803842 | Z187: 628.7128659 | AA187: 927.7609784 | AB187: 926.7797101 | AC187: 666.2739072 | AD187: 671.7221604 | AE187: 534.0607063 | AF187: 623.7491152 | AH187: 1167.673938 | AI187: 1122.907318 | AJ187: 761.854144 | AK187: 745.156941 | AL187: 700.1495153 | AM187: 690.0397297
A188: 186 | B188: CG2218 | C188: 2868.478835 | D188: 3142.400457 | E188: 3509.922952 | F188: 3817.600971 | G188: 4047.965806 | H188: 3452.774683 | I188: 2728.221055 | J188: 2676.30188 | K188: 3267.300153 | L188: 2923.362578 | M188: 3238.580124 | N188: 2889.052102 | O188: 2827.656589 | P188: 2442.978071 | Q188: 3938.989703 | R188: 3461.611315 | S188: 3777.13386 | T188: 3688.592388 | U188: 2297.153067 | V188: 2246.146866 | W188: 2889.635148 | X188: 3122.590274 | Y188: 3273.710223 | Z188: 3357.326704 | AA188: 2517.09811 | AB188: 2264.950215 | AC188: 3403.052459 | AD188: 3342.437717 | AE188: 3465.778274 | AF188: 2960.742903 | AH188: 2647.721531 | AI188: 2554.555498 | AJ188: 3401.780083 | AK188: 3394.528172 | AL188: 3560.633657 | AM188: 3269.697756
A189: 187 | B189: escl | C189: 274.1283291 | D189: 233.5778338 | E189: 453.7400397 | F189: 405.2819081 | G189: 530.7558679 | H189: 389.8111227 | I189: 329.2866727 | J189: 318.5813897 | K189: 602.5623901 | L189: 527.2396728 | M189: 525.2242737 | N189: 584.5491913 | O189: 402.3832144 | P189: 288.7894285 | Q189: 710.9164548 | R189: 575.5745229 | S189: 664.506165 | T189: 563.3448265 | U189: 242.1671644 | V189: 250.2982786 | W189: 308.3941275 | X189: 389.5569398 | Y189: 367.6011148 | Z189: 427.5247488 | AA189: 212.7535647 | AB189: 200.633542 | AC189: 446.6977951 | AD189: 315.9142745 | AE189: 432.9669971 | AF189: 355.2478404 | AH189: 292.1437891 | AI189: 258.3760945 | AJ189: 504.4621614 | AK189: 479.7059916 | AL189: 504.2108837 | AM189: 464.095546
A190: 188 | B190: spri | C190: 2564.744647 | D190: 1724.323475 | E190: 2651.191802 | F190: 3115.259571 | G190: 3165.488944 | H190: 2390.992642 | I190: 2751.972881 | J190: 2311.897139 | K190: 2888.851568 | L190: 2880.133556 | M190: 2863.290115 | N190: 2870.24623 | O190: 2249.687972 | P190: 1647.904676 | Q190: 2774.377567 | R190: 2564.572298 | S190: 2458.22382 | T190: 2509.253685 | U190: 2091.053353 | V190: 2144.346447 | W190: 2650.763396 | X190: 2720.763824 | Y190: 3193.466911 | Z190: 3236.823404 | AA190: 1879.808893 | AB190: 2024.742167 | AC190: 3161.594191 | AD190: 3107.388871 | AE190: 3279.929232 | AF190: 2897.748373 | AH190: 2307.453549 | AI190: 1970.642781 | AJ190: 2825.355705 | AK190: 2916.425656 | AL190: 2992.079805 | AM190: 2781.012867
A191: 189 | B191: lncRNA:CR43314 | C191: 12.06164648 | D191: 5.190618529 | E191: 18.74958842 | F191: 23.1905179 | G191: 17.77651232 | H191: 20.39709363 | I191: 10.79628435 | J191: 3.273096469 | K191: 8.209296868 | L191: 9.263361747 | M191: 9.995617666 | N191: 10.97009206 | O191: 1.829014611 | P191: 3.609867856 | Q191: 5.694924872 | R191: 8.16417763 | S191: 7.85733641 | T191: 12.63577181 | U191: 0.8587488101 | V191: 1.867897602 | W191: 28.52200023 | X191: 26.58393815 | Y191: 11.92805977 | Z191: 9.430692988 | AA191: 1.942954929 | AB191: 0 | AC191: 22.63671259 | AD191: 23.72052573 | AE191: 25.52871445 | AF191: 23.75203584 | AH191: 5.497729836 | AI191: 2.788296091 | AJ191: 16.76250459 | AK191: 17.86150347 | AL191: 14.61724812 | AM191: 15.43713727
A192: 190 | B192: CG31643 | C192: 607.4683772 | D192: 540.8624507 | E192: 727.4840306 | F192: 739.8879521 | G192: 893.9046196 | H192: 745.6270894 | I192: 505.2661076 | J192: 555.3353676 | K192: 689.5809369 | L192: 608.294088 | M192: 592.4675199 | N192: 617.4594675 | O192: 570.6525586 | P192: 556.8221168 | Q192: 787.7979406 | R192: 720.4886758 | S192: 770.0189682 | T192: 826.5900726 | U192: 484.3343289 | V192: 466.9744004 | W192: 639.9623802 | X192: 595.0712309 | Y192: 602.909203 | Z192: 705.2062646 | AA192: 521.6833983 | AB192: 468.4517104 | AC192: 726.638474 | AD192: 656.6272804 | AE192: 707.6559645 | AF192: 673.3185813 | AH192: 537.8809541 | AI192: 517.6892092 | AJ192: 714.2927525 | AK192: 700.516167 | AL192: 713.391255 | AM192: 713.6402951
A193: 191 | B193: Ire1 | C193: 1856.397045 | D193: 1572.757414 | E193: 2763.689333 | F193: 2913.170772 | G193: 3499.433426 | H193: 2951.912717 | I193: 1040.761811 | J193: 911.0118506 | K193: 1722.310483 | L193: 1606.421316 | M193: 1811.024183 | N193: 1708.20005 | O193: 895.3026521 | P193: 792.3659944 | Q193: 1593.62981 | R193: 1755.29819 | S193: 2032.805177 | T193: 1944.855878 | U193: 1386.020579 | V193: 1281.377755 | W193: 2148.954455 | X193: 2261.679661 | Y193: 2447.420991 | Z193: 2449.884467 | AA193: 1412.528233 | AB193: 1163.306409 | AC193: 2393.455078 | AD193: 2530.548813 | AE193: 3110.418568 | AF193: 2410.315289 | AH193: 1318.202064 | AI193: 1144.163885 | AJ193: 2124.407832 | AK193: 2131.126286 | AL193: 2580.220469 | AM193: 2293.03368
A194: 192 | B194: Vav | C194: 1146.952929 | D194: 1025.666221 | E194: 1519.966634 | F194: 1454.376765 | G194: 1592.267604 | H194: 1349.607695 | I194: 1475.852071 | J194: 1423.796964 | K194: 1866.794108 | L194: 1861.935711 | M194: 1845.554498 | N194: 1874.318587 | O194: 1377.248002 | P194: 1230.964939 | Q194: 2032.139025 | R194: 1799.180645 | S194: 1764.533262 | T194: 1818.49816 | U194: 1063.989776 | V194: 1172.105745 | W194: 1375.295199 | X194: 1392.589375 | Y194: 1473.657566 | Z194: 1603.217808 | AA194: 1085.140328 | AB194: 1025.255806 | AC194: 1666.816604 | AD194: 1491.158504 | AE194: 1521.511381 | AF194: 1519.097597 | AH194: 1229.836621 | AI194: 1175.557935 | AJ194: 1692.202314 | AK194: 1678.112661 | AL194: 1639.504862 | AM194: 1632.947969
A195: 193 | B195: PGAP1 | C195: 1109.671476 | D195: 1120.135479 | E195: 1301.221436 | F195: 1294.251761 | G195: 1560.523832 | H195: 1260.087118 | I195: 1133.609857 | J195: 1038.662613 | K195: 1478.494366 | L195: 1438.136911 | M195: 1430.282019 | N195: 1325.813984 | O195: 1109.297362 | P195: 1033.324674 | Q195: 1562.307723 | R195: 1457.305707 | S195: 1540.037936 | T195: 1491.021074 | U195: 980.6911411 | V195: 1020.806039 | W195: 1039.270383 | X195: 1194.232298 | Y195: 1267.627443 | Z195: 1322.392728 | AA195: 1017.136905 | AB195: 935.0627462 | AC195: 1300.856417 | AD195: 1207.590401 | AE195: 1270.308831 | AF195: 1194.830673 | AH195: 1070.081348 | AI195: 1029.59831 | AJ195: 1336.430065 | AK195: 1326.964639 | AL195: 1413.756012 | AM195: 1318.829115
A196: 194 | B196: CG1910 | C196: 3426.604113 | D196: 3352.101446 | E196: 5066.138791 | F196: 5215.657907 | G196: 4412.384309 | H196: 5161.597861 | I196: 1812.696142 | J196: 1755.47074 | K196: 3397.827973 | L196: 3127.928483 | M196: 3231.310584 | N196: 3297.296243 | O196: 1791.519811 | P196: 1479.143354 | Q196: 3300.208963 | R196: 3436.09826 | S196: 3859.074654 | T196: 3419.029256 | U196: 2678.437539 | V196: 2789.705068 | W196: 4452.105973 | X196: 4532.561455 | Y196: 4330.970066 | Z196: 4348.597322 | AA196: 2929.004555 | AB196: 2680.022359 | AC196: 4580.916071 | AD196: 4851.925718 | AE196: 5194.582816 | AF196: 4301.183882 | AH196: =AVERAGE(C196, I196, O196, U196, AA196) -> 2527.652432 | AI196: 2411.288593 | AJ196: 4159.439554 | AK196: =AVERAGE(F196, L196, Q196, W196, AC196) -> 4135.363479 | AL196: =AVERAGE(G196, M196, S196, Y196, AE196) -> 4205.664486 | AM196: 4105.540913
A197: 195 | B197: CG43736 | C197: 3887.139706 | D197: 2786.324026 | E197: 3606.170839 | F197: 4053.923391 | G197: 4588.879681 | H197: 3384.784371 | I197: 3412.705483 | J197: 3040.70662 | K197: 4027.481043 | L197: 4166.968892 | M197: 4000.973144 | N197: 4456.208111 | O197: 3372.702943 | P197: 2553.079041 | Q197: 4365.159914 | R197: 3877.984374 | S197: 4094.794746 | T197: 3675.956616 | U197: 2885.396002 | V197: 3187.567257 | W197: 3251.508026 | X197: 3633.819853 | Y197: 3673.842409 | Z197: 4047.863001 | AA197: 2978.549905 | AB197: 2743.525636 | AC197: 4150.063974 | AD197: 4073.461191 | AE197: 4265.33761 | AF197: 3794.129552 | AH197: 3307.298808 | AI197: 2862.240516 | AJ197: 3880.076759 | AK197: 3997.52484 | AL197: 4124.765518 | AM197: 3871.78833
A198: 196 | B198: Ent3 | C198: 82.23849872 | D198: 73.70678311 | E198: 28.74936891 | F198: 37.54655279 | G198: 53.32953697 | H198: 69.12348397 | I198: 73.41473358 | J198: 100.3749584 | K198: 62.39065619 | L198: 57.89601092 | M198: 62.69978354 | N198: 74.43991042 | O198: 76.81861366 | P198: 79.41709283 | Q198: 58.84755701 | R198: 52.04663239 | S198: 52.75640161 | T198: 71.60270692 | U198: 85.87488101 | V198: 93.39488008 | W198: 66.84843804 | X198: 76.68443697 | Y198: 67.23088234 | Z198: 63.91914136 | AA198: 78.68967461 | AB198: 95.71508426 | AC198: 45.27342517 | AD198: 56.06669718 | AE198: 78.6284405 | AF198: 90.87735453 | AH198: 79.40728031 | AI198: 88.52175973 | AJ198: 52.42188907 | AK198: 53.28239679 | AL198: 62.92900899 | AM198: 73.99251944
A199: 197 | B199: CG3744 | C199: 2905.760288 | D199: 2624.376728 | E199: 3298.677589 | F199: 3560.296653 | G199: 3896.865451 | H199: 3331.525293 | I199: 3214.053851 | J199: 3011.248752 | K199: 3903.520661 | L199: 3591.096571 | M199: 3776.526093 | N199: 3604.45882 | O199: 3082.804127 | P199: 2721.840363 | Q199: 3937.091395 | R199: 3799.404164 | S199: 3898.361336 | T199: 3891.817717 | U199: 2498.959037 | V199: 2575.830793 | W199: 2804.069148 | X199: 3102.14109 | Y199: 3419.015678 | Z199: 3747.128681 | AA199: 2737.623494 | AB199: 2398.399131 | AC199: 3464.92614 | AD199: 3251.868436 | AE199: 3521.941445 | AF199: 3177.609317 | AH199: 2887.84016 | AI199: 2666.339153 | AJ199: 3481.656986 | AK199: 3471.495981 | AL199: 3702.542001 | AM199: 3550.507966
A200: 198 | B200: lncRNA:CR44135 | C200: 1.096513316 | D200: 4.152494823 | E200: 12.49972561 | F200: 7.730172633 | G200: 7.618505281 | H200: 14.73123429 | I200: 3.238885305 | J200: 4.364128626 | K200: 9.851156241 | L200: 8.491414935 | M200: 8.178232636 | N200: 7.835780044 | O200: 4.572536527 | P200: 1.804933928 | Q200: 13.28815803 | R200: 11.22574424 | S200: 11.2247663 | T200: 13.68875279 | U200: 3.43499524 | V200: 1.867897602 | W200: 8.021812565 | X200: 12.26950992 | Y200: 15.18116698 | Z200: 15.71782165 | AA200: 2.914432393 | AB200: 4.601686743 | AC200: 12.82747047 | AD200: 11.86026287 | AE200: 32.67675449 | AF200: 23.75203584 | AH200: 3.051472556 | AI200: 3.358228344 | AJ200: 11.29766458 | AK200: 10.07180573 | AL200: 14.97588514 | AM200: 15.14512492
A201: 199 | B201: Hsp83 | C201: 79935.82076 | D201: 78216.39249 | E201: 106100.1709 | F201: 107463.7556 | G201: 134192.352 | H201: 164036.8265 | I201: 62875.40079 | J201: 64724.39165 | K201: 91779.93898 | L201: 83569.418 | M201: 114731.517 | N201: 95320.69708 | O201: 62994.92123 | P201: 56419.52719 | Q201: 92777.9194 | R201: 93854.36551 | S201: 124043.7699 | T201: 128234.1302 | U201: 68135.70684 | V201: 67464.72558 | W201: 114935.6391 | X201: 118951.8762 | Y201: 185925.9208 | Z201: 167734.3055 | AA201: 69536.41394 | AB201: 67930.0997 | AC201: 112310.5404 | AD201: 125009.327 | AE201: 214586.2045 | AF201: 213103.2656 | AH201: 68695.65271 | AI201: 66951.02732 | AJ201: 103580.8418 | AK201: 102211.4545 | AL201: 154695.9528 | AM201: 153685.845
... 2049 more rows
